{"text_format":"1","workbook":"xlsx","n_sheets":7,"sheets":["المصرية يوميات","قبض المصرية","الجل يوميات ","المخزن يوميات","المخزن قبض","الزيت يوميات","سعيد عبدالهادي"],"not_rendered":{"charts":0,"images":0,"macros":1,"external_links":0,"defined_names":10,"comments":1,"pivot_tables":0},"unopened":[],"bounds":{"document_bytes":16777216,"sheet_cells":100000,"rows_first":2000,"rows_last":500,"rows_between":2000,"halvings":0,"cell_chars":16384,"cell_head_chars":4096},"cells_cut":0,"cells_raw":0,"read":"whole","date_system":"1900"}

{"sheet":"المصرية يوميات","index":0,"n_rows":374,"n_cols":34,"rows_kept":374,"cut":false,"hidden":false,"merged":[]}
[1,"الاسم","01-يوليو","02-يوليو","03-يوليو","04-يوليو","05-يوليو","06-يوليو","07-يوليو","08-يوليو","09-يوليو","10-يوليو","11-يوليو","12-يوليو","13-يوليو","14-يوليو","15-يوليو","16-يوليو","17-يوليو","18-يوليو","19-يوليو","20-يوليو","21-يوليو","22-يوليو","23-يوليو","24-يوليو","25-يوليو","26-يوليو","27-يوليو","28-يوليو","29-يوليو","30-يوليو","31-يوليو","اجمالي الايام"]
[1,"ابانوب اشرف حبيب حنا",1,2,2,null,1,null,null,null,null,null,null,null,null,null,null,null,null,null,null,null,null,null,null,null,null,null,null,null,null,null,null,{"$f":"SUM(C2:AG2)","v":6}]
[2,"ابراهيم احمد ابراهيم عثمان",1,1,null,null,null,null,null,null,null,null,null,null,null,null,null,null,null,null,null,null,null,null,null,null,null,null,null,null,null,null,null,2]
[3,"ابراهيم السيد ابراهيم العدل عبدالجيد",null,null,null,1,1,1,1,1,1,null,null,null,2,1,1,1,1,null,2,1,2,1,1,1,null,null,null,null,null,null,null,20]
[4,"ابراهيم رشاد ابراهيم غنيم",1,1,null,null,1,null,null,null,null,null,null,null,1,1,null,1,null,1,null,null,null,null,null,null,null,1,1,1,null,null,null,10]
[5,"ابراهيم رفقي سليمان مهني",null,null,null,null,null,null,null,null,null,null,null,null,null,null,null,null,null,null,null,1,null,null,null,null,null,null,null,null,null,null,null,1]
[6,"ابراهيم شعبان الشحات العربي ",null,null,null,null,null,1,null,null,null,null,null,1,1,1,2,1,null,null,null,null,null,null,null,null,null,null,null,null,null,null,null,7]
[7,"ابراهيم عبدالفتاح ابراهيم",1,1,null,null,null,null,null,null,null,null,null,null,null,null,null,null,null,null,null,null,null,null,null,null,null,null,null,null,null,null,null,2]
[8,"ابراهيم فوزي احمد زنكل",null,null,null,null,null,null,null,null,null,null,null,null,null,null,null,null,1,null,null,null,null,null,null,null,null,null,null,null,null,null,null,1]
[9,"ابراهيم كامل علي عويان",null,null,null,null,null,1,1,1,1,null,null,1,1,1,1,1,null,null,null,1,1,1,1,null,1,1,1,1,1,1,null,19]
[10,"ابراهيم محمد ابراهيم محمد عبداللطيف",null,null,null,null,null,null,null,1,null,null,null,null,null,null,null,null,null,null,null,null,null,null,null,null,null,null,null,null,null,null,null,1]
[11,"ابراهيم محمد محمد السيد",1,1,null,null,null,null,null,null,null,null,null,null,null,null,null,null,null,null,null,null,null,null,null,null,null,null,null,null,null,null,null,2]
[12,"ابوالعلا محمد ابوالعلا",null,null,null,null,null,null,1,1,1,null,null,1,1,null,1,1,1,null,1,1,1,1,1,1,null,1,1,1,1,1,1,20]
[13,"احمد ابراهيم ابوالمكارم محمد",null,null,null,null,1,null,null,null,null,null,null,null,null,null,null,null,null,null,null,null,null,null,null,null,null,null,null,null,null,null,null,1]
[14,"احمد ابراهيم جمعه علي",null,null,null,null,null,null,null,null,null,null,null,null,null,null,null,null,null,null,null,null,null,null,null,null,null,null,1,null,null,null,1,2]
[15,"احمد ابراهيم سلامه",null,null,null,null,null,null,null,null,null,null,null,null,null,null,null,null,1,null,null,null,null,null,null,null,null,null,null,null,null,null,null,1]
[16,"احمد ابراهيم محمد زكي",null,null,null,null,null,null,null,null,null,null,null,null,null,null,null,null,null,null,null,null,null,null,null,1,null,null,null,null,null,null,null,1]
[17,"احمد ابراهيم محمد محمد",null,null,null,null,null,null,null,null,null,null,null,null,null,null,1,2,1,1,2,1,1,1,1,1,null,1,2,2,2,1,2,22]
[18,"احمد اشرف محمد نصرعبدالعزيز",2,2,null,null,null,null,null,null,null,null,null,null,null,null,null,null,1,null,null,null,null,null,null,null,null,null,null,null,null,null,null,5]
[19,"احمد العربي جمعه السيد السيد",null,null,null,null,null,1,1,1,1,1,1,1,1,1,1,1,1,1,1,1,1,1,1,1,null,1,1,1,1,1,null,24]
[20,"احمد بكار شاهين صقر",null,null,null,null,null,null,null,null,null,null,null,null,null,null,null,null,null,null,null,1,1,null,1,1,null,1,null,null,1,null,null,6]
[21,"احمد جمال عبدالناصر سيد عيسي",null,null,null,null,null,null,null,null,null,null,null,null,null,null,null,null,null,null,null,null,null,null,null,null,null,null,1,null,null,null,null,1]
[22,"احمد جمال عيسي حمزه",null,null,null,null,null,null,null,null,null,null,null,null,null,null,null,null,null,null,null,null,null,null,null,null,null,null,null,null,null,1,1,2]
[23,"احمد جمال مبروك عطيه",null,null,null,null,null,null,null,null,null,null,null,null,null,null,null,null,null,null,null,null,null,null,null,null,null,null,null,null,null,null,1,1]
[24,"احمد حسن حسن عبدالرحيم",2,1,2,null,1,2,1,1,1,2,1,1,2,null,2,1,null,null,null,null,null,null,1,1,1,1,2,1,null,null,null,27]
[25,"احمد حسن حميده عبدالعليم",null,1,1,null,null,1,1,1,null,1,null,null,1,null,1,1,1,null,1,1,1,null,1,1,null,null,null,null,null,null,null,15]
[26,"احمد حسن عامر المغربي",null,null,null,null,null,null,null,null,null,null,null,null,null,null,null,null,null,null,null,null,null,null,null,null,null,null,null,1,1,null,null,2]
[27,"احمد حسن محمد حسان",null,null,null,null,null,null,null,null,null,null,null,1,null,null,null,null,null,null,null,null,null,null,1,null,null,null,null,1,null,null,null,3]
[28,"احمد حمدي احمد حسن حتوش",2,2,null,null,null,null,null,null,null,null,null,null,null,null,null,null,null,null,null,null,null,null,null,null,null,null,null,null,null,null,null,4]
[29,"احمد حمدي عبدالعزيز علي البياع",null,null,null,null,null,null,null,null,null,null,null,null,null,null,null,null,1,null,null,null,null,null,null,null,null,null,null,null,null,null,null,1]
[30,"احمد حمدي مصطفي عبدالسلام",null,null,null,null,null,null,null,null,null,null,null,null,null,null,null,null,null,null,null,null,null,null,null,null,null,null,null,null,1,null,null,1]
[31,"احمد رجب مرشدي محمد",null,null,null,null,null,null,null,null,null,1,null,null,null,null,null,null,null,null,null,1,null,null,null,null,null,null,null,null,null,null,null,2]
[32,"احمد رشاد عيسي محمد الدومي",null,1,1,null,1,1,1,1,1,1,null,1,1,null,1,1,null,null,1,1,1,null,1,1,null,1,1,null,1,null,null,20]
[33,"احمد زغلول احمد القماش",1,null,1,null,null,null,null,null,null,null,null,null,null,null,null,1,null,null,null,null,null,null,null,null,null,null,null,null,null,null,null,3]
[34,"احمد سامي ابراهيم حميده",null,null,1,1,1,1,1,1,null,null,1,1,1,1,1,1,null,null,1,1,null,1,1,null,null,1,null,1,1,1,1,21]
[35,"احمد سعد عبدالحميد ابوزيد",1,2,2,null,1,2,1,2,1,2,null,2,2,2,2,1,1,null,2,1,2,2,1,2,null,2,1,2,2,1,1,43]
[36,"احمد سعيد رجب السقا",null,1,1,1,1,1,null,1,null,null,null,1,1,1,1,1,null,null,2,1,null,null,null,null,null,null,null,null,null,null,null,14]
[37,"احمد سعيد صادق بحيري",2,2,null,null,1,1,2,1,2,1,null,1,null,2,2,1,1,1,2,null,null,null,1,1,null,null,null,1,null,null,null,25]
[38,"احمد سلامه فؤاد محمد",null,null,null,1,1,1,null,null,null,null,null,null,null,null,null,null,null,null,null,null,null,null,null,null,null,null,null,null,null,null,null,3]
[39,"احمد سمير احمد محمود محمد",null,null,null,null,null,null,1,1,1,1,null,1,null,null,1,1,1,null,1,1,1,1,1,1,null,null,1,null,1,1,1,18]
[40,"احمد سمير امين حسان",1,null,null,null,null,null,null,null,null,null,null,null,null,null,null,null,null,null,1,null,null,null,null,null,null,null,null,null,null,null,null,2]
[41,"احمد سمير محمود محمد",null,null,null,null,null,1,null,1,null,null,null,null,1,null,null,null,null,null,null,null,null,null,null,null,null,null,null,null,null,null,null,3]
[42,"احمد شحاته احمد شحاته محمد",null,null,null,null,null,null,null,null,null,null,null,null,null,null,null,null,null,null,null,1,1,1,1,null,1,1,1,1,1,1,null,10]
[43,"احمد شعبان صبحي محمد",null,null,null,null,null,null,null,null,null,null,null,null,null,null,null,null,null,null,null,1,null,null,1,null,null,null,1,null,null,1,1,5]
[44,"احمد شعبان علي",null,1,null,null,null,null,null,null,null,null,null,null,null,null,null,null,null,null,null,null,null,null,null,null,null,null,null,null,null,null,null,1]
[45,"احمد شوقي عيد حسين ",null,null,null,null,null,1,null,null,null,null,null,1,1,1,2,1,null,null,null,null,null,null,null,null,null,null,null,null,null,null,null,7]
[46,"احمد صابر محمد عبدالواحد",null,null,null,null,null,null,null,null,null,null,null,null,null,null,null,null,null,null,null,null,null,null,null,null,null,null,1,null,null,null,null,1]
[47,"احمد صبري عبدالحفيظ عامر",null,null,null,null,null,null,null,null,null,null,null,null,null,null,null,null,1,null,null,null,null,null,null,null,null,null,null,null,null,null,null,1]
[48,"احمد صلاح ابواليزيد زيان",null,null,null,null,null,null,null,null,null,null,null,null,null,null,null,null,null,null,null,null,null,1,null,null,null,null,null,null,null,null,null,1]
[49,"احمد صلاح احمد  مصطفي",null,1,null,null,null,null,null,null,null,null,null,null,null,null,null,null,null,null,null,null,null,null,null,null,null,null,null,null,null,null,null,1]
[50,"احمد صلاح اسماعيل عفيفي",null,null,null,1,null,null,null,null,null,1,null,2,null,null,null,null,null,null,1,null,null,null,null,null,null,null,null,null,null,null,null,5]
[51,"احمد عبدالحميد ابوزيد",null,null,null,null,null,null,null,null,null,null,null,null,null,null,null,1,null,null,null,null,null,null,null,null,null,null,null,null,null,null,null,1]
[52,"احمد عبدالستار عبدالفتاح",null,1,1,null,null,null,null,1,null,null,null,null,null,null,1,null,1,1,null,null,null,null,null,null,null,null,null,null,1,null,null,7]
[53,"احمد عبدالعزيز عبدالمقصودالصامولي",2,1,1,null,null,null,1,2,1,1,1,1,1,null,null,1,1,1,1,1,2,1,null,1,1,1,1,1,1,1,1,28]
[54,"احمد عبدالعزيز محمد حمد",1,null,null,null,null,null,null,null,null,null,null,null,null,null,null,null,null,null,null,null,null,null,null,null,null,null,null,null,null,null,null,1]
[55,"احمد عبدالعزيز محمد عبدالعزيز",null,null,2,null,1,null,null,1,null,null,null,null,null,null,null,null,null,null,null,null,null,null,null,null,null,null,null,null,null,null,null,4]
[56,"احمد عبدالمجيد عبدالشهيد",null,null,null,null,null,null,1,null,null,null,null,null,null,null,null,null,null,null,null,null,null,null,null,null,null,null,null,null,null,null,null,1]
[57,"احمد عبدالمحسن سيد",null,null,null,null,null,null,1,null,null,null,null,null,null,null,null,null,null,null,null,null,null,null,null,null,null,null,null,null,null,null,null,1]
[58,"احمد عزمي احمد السيد مساعد",null,null,null,null,null,null,1,1,1,1,null,1,1,1,1,1,1,null,1,1,1,1,1,1,null,1,1,1,1,1,1,22]
[59,"احمد علي محمد اسلام",null,null,1,null,null,null,null,null,null,null,null,null,null,null,null,null,null,null,null,null,null,null,null,null,null,null,null,null,null,null,null,1]
[60,"احمد علي محمد امام",2,null,null,null,1,null,null,null,null,null,null,null,null,null,null,null,null,null,null,null,null,null,null,null,null,null,null,null,null,null,null,3]
[61,"احمد علي منصور علي",null,null,null,null,null,null,null,null,null,null,null,null,null,null,null,null,null,null,1,null,null,null,null,null,null,null,null,null,null,null,null,1]
[62,"احمد عماد محمد عبدالحميد نجم",null,null,1,null,null,null,null,null,null,null,null,null,null,null,null,null,null,null,null,null,null,null,null,null,null,null,null,null,null,null,null,1]
[63,"احمد عيد عبداللطيف ياسين",null,null,null,null,null,1,null,null,null,null,null,null,null,null,null,null,null,null,null,null,null,null,null,null,null,null,null,null,null,null,null,1]
[64,"احمد عيد محمدين عبدالكريم",null,null,null,null,null,null,null,null,null,null,null,null,null,null,null,null,null,null,null,1,null,null,null,null,null,null,null,null,null,null,null,1]
[65,"احمد فتحي ابراهيم سلامه الشرقاوي",null,1,1,1,null,1,null,1,1,1,1,null,1,1,null,1,null,1,null,1,1,null,1,1,null,null,null,1,1,1,1,{"$f":"SUM(C66:AG66)","v":20}]
[66,"احمد فتحي الشرقاوي",1,null,null,null,null,null,null,null,null,null,null,null,null,null,null,null,null,null,null,null,null,null,null,null,null,null,null,null,null,null,null,1]
[67,"احمد فراج زكي مصطفي",null,null,null,null,null,null,null,null,null,null,null,null,null,null,null,null,null,null,1,null,null,null,null,null,null,null,null,null,null,null,null,1]
[68,"احمد فرج محمد حسن",null,null,null,null,1,1,null,null,null,null,null,null,1,null,null,null,null,null,2,1,null,null,null,null,null,1,1,null,null,1,1,10]
[69,"احمد فضل سعد اسماعيل",null,null,null,null,1,null,null,null,null,null,null,null,null,null,null,null,null,null,null,null,null,null,null,null,null,null,null,null,null,null,null,1]
[70,"احمد فوزي عبدالمحسن محمود",null,1,1,null,null,null,1,null,1,1,null,null,null,null,1,1,1,null,1,null,null,null,null,null,null,null,1,1,null,null,1,12]
[71,"احمد فؤاد علي احمد",2,2,2,1,null,1,null,null,null,null,null,null,null,null,null,null,null,null,null,1,1,2,null,1,null,1,null,null,null,null,null,14]
[72,"احمد فيض حسين ابوالسعيد",2,null,null,null,null,null,null,null,null,null,null,null,null,null,null,null,null,null,null,null,null,null,null,null,null,null,null,null,null,null,null,2]
[73,"احمد محمد ابراهيم فواد",null,1,null,null,null,null,null,null,null,null,null,null,null,null,null,null,null,null,null,null,null,null,null,null,null,null,null,null,null,null,null,1]
[74,"احمد محمد السيد الخولي",null,1,null,null,null,null,null,null,null,null,null,null,null,null,null,null,null,null,null,null,null,null,null,null,null,null,null,null,null,null,null,1]
[75,"احمد محمد السيد السعداوي",null,null,null,null,null,null,null,null,null,null,null,null,null,null,null,null,null,null,null,null,null,null,null,null,null,null,null,null,null,null,null,0]
[76,"احمد محمد السيد محمود عطيان",1,1,null,null,1,null,null,null,null,null,null,null,null,null,null,1,1,1,null,null,null,null,null,null,null,null,null,null,null,null,null,6]
[77,"احمد محمد حمد عبدالسيد",null,null,null,null,null,null,null,null,null,null,null,null,null,null,null,null,null,null,null,null,null,1,1,1,null,2,1,1,1,1,1,10]
[78,"احمد محمد سعيد ابو احمد",1,1,1,null,null,null,null,null,null,null,null,null,null,null,null,null,null,null,null,null,null,null,null,null,null,null,null,null,null,null,null,3]
[79,"احمد محمد صابر علام",null,null,null,null,null,null,null,null,null,null,null,null,null,null,null,null,null,null,null,1,null,null,null,null,null,null,null,null,null,null,null,1]
[80,"احمد محمد صباح",null,1,null,null,null,null,null,null,null,null,null,null,null,null,null,null,null,null,null,null,null,null,null,null,null,null,null,null,null,null,null,1]
[81,"احمد محمد طه الكحلي",null,null,null,null,null,null,null,null,null,null,null,null,null,null,null,null,null,null,null,1,null,null,1,null,null,null,null,null,null,null,null,2]
[82,"احمد محمد عبدالحميد عبدالقادر",null,null,null,null,null,null,null,1,null,null,null,null,null,null,null,null,null,null,null,null,null,null,null,null,null,null,null,null,null,null,null,1]
[83,"احمد محمد عبدالعزيز عيد",null,null,null,null,null,1,1,1,1,1,null,1,1,1,1,1,1,null,2,null,null,null,null,null,null,null,null,null,null,null,null,13]
[84,"احمد محمد عبدالمقصود محمد",null,null,null,null,1,null,1,1,null,1,null,null,null,null,null,null,null,null,null,null,null,null,null,null,null,null,null,null,null,null,null,4]
[85,"احمد محمد عبدالناصر",null,1,null,null,null,null,null,null,null,null,null,null,null,null,null,null,null,null,null,null,null,null,null,null,null,null,null,null,null,null,null,1]
[86,"احمد محمد عبدالواحد محمد",null,null,null,null,null,null,null,null,null,null,null,null,null,null,null,null,null,null,1,null,null,null,null,null,null,null,null,null,null,null,null,1]
[87,"احمد محمد محمد خليفه",2,null,1,1,1,1,null,null,null,null,null,2,1,1,1,2,1,1,1,1,2,2,1,null,null,2,null,null,null,null,null,24]
[88,"احمد محمد معوض حسب النبي",null,null,1,1,null,null,null,null,null,null,null,null,null,null,null,null,null,null,null,null,null,null,null,null,null,null,null,null,null,null,null,2]
[89,"احمد محمود احمد مريقه",null,null,null,null,null,null,null,null,null,null,null,null,null,null,null,null,null,null,null,null,1,null,null,null,null,null,null,null,null,null,null,1]
[90,"احمد محمود السيد السعداوي",null,null,null,null,null,null,null,null,null,null,null,null,null,null,null,null,null,null,null,null,null,null,null,null,null,null,null,1,null,1,1,3]
[91,"احمد محمود السيد محمود عطيان",null,null,1,null,null,null,null,null,null,null,null,null,null,null,null,null,null,null,null,null,null,null,null,null,null,null,null,null,1,null,null,2]
[92,"احمد محمود عبدالله جمعه زيدان ",null,1,1,null,1,1,1,1,1,1,null,null,null,1,1,1,null,null,1,1,1,1,1,1,null,1,1,1,null,1,null,21]
[93,"احمد محمود مصطفي علي",1,1,1,1,1,1,1,null,null,null,1,1,2,1,2,2,1,1,null,null,null,null,null,null,null,1,1,2,null,null,null,22]
[94,"احمد مصطفي احمد محمد",1,1,1,null,1,1,1,1,1,1,null,1,1,2,1,2,2,null,null,null,null,2,1,1,null,1,2,1,null,null,1,27]
[95,"احمد مصطفي عبدالرحمن",1,1,null,null,null,null,null,null,null,null,null,null,null,null,null,null,null,null,null,null,null,null,null,null,null,null,null,null,null,null,null,2]
[96,"احمد ممدوح امين سيد احمد",null,null,null,null,null,1,1,1,1,null,1,1,1,1,1,1,null,null,1,1,1,1,1,null,1,1,1,1,1,1,null,21]
[97,"احمد منصور زيان قاسم",null,null,null,null,null,1,null,null,null,null,null,null,null,null,null,null,null,null,null,null,null,null,null,null,null,null,null,null,null,null,null,1]
[98,"احمد منير محتمد سعد",null,null,null,1,null,1,1,null,1,null,null,1,1,1,null,1,null,null,1,1,1,null,1,null,1,null,1,null,1,1,null,16]
[99,"احمد يوسف حافظ علي",null,null,null,1,1,1,1,1,1,null,1,1,1,1,1,1,null,null,1,1,1,1,1,null,1,null,1,1,1,1,null,22]
[100,"ادهم درويش ابراهيم",1,1,null,null,null,null,null,null,null,null,null,null,null,null,null,null,null,null,null,null,null,null,null,null,null,null,null,null,null,null,null,2]
[101,"ادهم رمضان عوض محمد",2,2,2,1,null,1,null,null,null,null,null,null,null,null,null,null,null,null,null,1,1,2,null,1,null,null,null,null,null,null,null,13]
[102,"اسامه احسان رشدي فوزي",null,null,null,1,null,null,null,null,null,null,null,null,null,null,null,null,null,null,null,null,null,null,null,null,null,null,null,null,null,null,null,1]
[103,"اسامه جمعه عبدالعظيم فايد",1,null,null,null,null,null,null,null,null,null,null,null,null,null,null,null,null,null,null,null,null,null,null,null,null,null,null,null,null,null,null,1]
[104,"اسامه محمد بكر محمد",null,null,null,null,null,null,null,null,null,1,null,1,null,null,null,null,null,null,null,null,null,null,null,null,null,null,null,null,null,null,null,2]
[105,"اسلام خضر عبدالفضيل سلامه",null,1,1,null,null,1,1,1,1,null,null,null,null,null,1,null,null,null,null,1,1,1,1,null,null,null,1,1,1,1,null,15]
[106,"اسلام سامي فتحي ابوالعنين",null,1,1,null,null,1,null,null,null,null,null,null,null,null,null,null,null,null,null,null,null,null,null,null,null,null,null,null,null,null,null,3]
[107,"اسلام عبدالراضي عربي",null,null,null,null,null,null,null,null,null,null,null,1,null,null,null,null,null,null,null,null,null,1,1,null,null,null,null,null,null,null,null,3]
[108,"اسلام فرغلي محمود عبدالمجلي",1,1,1,1,null,null,null,2,2,1,1,1,1,1,2,1,1,1,2,null,2,2,1,1,1,1,null,null,null,null,null,28]
[109,"اسلام محمد عبدالرحيم عبدالمنعم",null,null,null,null,1,null,null,null,1,null,null,null,null,null,null,null,null,null,null,null,null,null,null,null,null,null,null,null,null,null,null,2]
[110,"اسلام محمود حسن خليل",null,null,null,null,1,1,null,null,null,null,null,null,1,null,null,null,null,null,2,1,null,null,null,null,null,1,1,null,null,1,1,10]
[111,"اشرف حسن حمدان حسين",null,null,null,null,null,null,1,1,1,null,1,1,1,2,1,2,1,1,1,1,1,1,1,1,null,1,2,2,2,2,1,29]
[112,"اشرف رمضان احمد مرزوق",null,null,null,null,null,null,null,null,null,null,null,null,null,1,1,null,null,1,null,1,1,null,1,null,null,null,null,null,null,null,null,6]
[113,"الحسن محمد الشحات السيد",2,2,2,null,null,1,null,null,null,null,null,2,null,null,null,null,null,1,2,null,1,2,null,1,null,2,1,2,1,1,2,25]
[114,"الحسين فوزي  ناصف السيد",2,null,null,null,null,null,null,null,null,null,null,null,null,null,null,null,null,null,null,null,null,null,null,null,null,null,null,null,null,null,null,2]
[115,"السيد اشرف السيد بريك",null,null,null,null,1,null,null,null,1,null,null,null,null,null,null,null,null,null,null,null,null,null,null,null,null,null,null,null,null,null,null,2]
[116,"السيد مسعود السيد محمد",2,1,null,null,2,1,1,2,1,2,1,1,1,2,2,2,2,null,null,null,null,null,null,null,null,2,2,2,2,1,1,33]
[117,"امير مجدي شندي حمزه",null,null,1,null,null,null,null,null,null,null,null,null,null,null,null,null,null,null,null,null,null,null,null,null,null,null,null,null,null,null,null,1]
[118,"امير محروس انجلوس ",null,null,null,null,null,null,null,null,null,null,null,null,null,null,null,null,null,null,null,1,null,null,null,null,null,null,null,null,null,null,null,1]
[119,"انس  حسن صالح عطيه",null,2,null,null,null,null,null,null,null,null,null,null,null,null,null,null,null,null,null,null,null,null,null,null,null,null,null,null,null,null,null,2]
[120,"انطونيوس انيس جرجس بحيري",null,null,null,null,null,null,null,null,null,null,null,null,null,null,null,null,null,null,null,1,null,null,null,null,null,null,null,null,null,null,null,1]
[121,"انور ناجي شديد سلمان",null,null,null,null,null,1,null,null,null,null,null,null,null,null,null,null,null,null,null,null,null,null,null,null,null,null,null,null,null,null,null,1]
[122,"ايمن محمد فتحي السعيد",2,1,null,null,null,null,null,null,null,null,null,null,null,null,null,null,null,null,null,null,null,null,null,null,null,null,null,null,null,null,null,3]
[123,"ايهاب عادل عبدالحميد صديق",2,null,null,null,null,null,null,null,null,null,null,null,null,null,null,null,null,null,null,null,null,null,null,null,null,null,null,null,null,null,null,2]
[124,"باسم  محمد محمود محمد سالم",null,null,1,null,1,1,1,null,1,1,null,null,1,1,null,1,null,null,null,1,null,null,null,null,null,null,null,null,null,null,null,10]
[125,"باسم احمد رجب العفيفي",null,null,null,null,null,null,null,null,null,null,null,null,null,null,1,null,null,null,null,null,null,null,null,null,null,null,1,1,null,null,null,3]
[126,"باسم نصر ابراهيم اسماعيل",null,null,null,null,null,1,1,null,null,null,null,null,null,null,null,null,null,null,null,null,null,null,1,null,1,1,1,1,null,null,null,7]
[127,"بشوي سمير قصدي عدلي",null,1,null,null,null,null,null,null,null,null,null,null,null,null,null,null,null,null,null,null,null,null,null,null,null,null,null,null,null,null,null,1]
[128,"بلال جمعه عمر امين",null,1,1,null,null,1,1,1,1,1,null,null,null,1,1,1,null,null,null,null,1,1,1,1,null,null,null,null,1,1,1,17]
[129,"بلال رزق عبدالعزيز احمد",null,null,null,null,null,null,null,null,null,null,null,null,null,null,null,null,1,1,1,null,1,1,1,1,1,1,null,null,1,2,1,{"$f":"SUM(C130:AG130)","v":13}]
[130,"بلال عطيه علي احمد",null,null,null,null,null,null,null,null,null,null,null,null,null,null,null,null,null,null,null,1,null,null,null,null,null,null,null,null,null,null,null,1]
[131,"بولا وجيه سعد عوض الله",2,1,1,null,null,null,null,null,null,null,null,null,null,null,null,null,null,null,null,null,null,null,null,null,null,null,null,null,null,null,null,4]
[132,"تامر ميشيل اسكندر مشرفي",null,null,2,null,1,null,null,null,null,null,null,1,null,null,null,null,null,null,2,1,null,null,null,null,null,1,2,null,2,2,1,15]
[133,"جمال عطيه جمال صالح",1,1,1,null,null,null,null,null,null,null,null,null,null,null,null,null,null,null,null,null,null,null,null,null,null,null,null,null,null,null,null,3]
[134,"جمعه فتح شبل محمد شبل",null,null,1,1,null,1,null,1,null,null,null,null,null,null,null,null,null,null,null,null,null,null,null,null,null,null,null,null,null,null,null,4]
[135,"جهاد عبدالحميد امام حشاد",null,1,1,null,2,1,null,null,null,null,null,null,null,null,null,null,null,null,null,null,null,null,null,null,null,null,null,null,null,null,null,5]
[136,"حافظ خميس حافظ وهيب",null,null,null,null,null,1,null,null,null,null,null,null,null,null,null,null,null,null,null,null,null,null,null,null,null,null,null,null,null,null,null,1]
[137,"حامد عبدالحميد حامد غطاس",null,null,null,null,null,null,null,null,null,null,null,null,null,null,null,null,null,null,1,null,null,null,null,null,null,null,null,null,null,null,null,1]
[138,"حسام عبد الدايم طه عبدالدايم",null,2,null,null,null,null,null,null,null,null,null,null,null,null,null,null,null,null,null,null,null,null,null,null,null,null,null,null,null,null,null,2]
[139,"حسام نصر بدير محمود خميس",1,1,null,null,1,null,null,null,null,null,null,null,null,null,null,1,1,1,null,null,null,null,null,null,null,null,null,null,null,null,null,6]
[140,"حسب النبي سعيد فتحي",null,1,1,null,null,null,null,1,1,1,null,1,1,1,1,1,1,null,1,null,1,1,1,1,null,1,1,1,1,1,1,22]
[141,"حسني عبدالوارث محمد سالمان",null,null,null,null,null,1,null,null,null,null,null,null,null,null,null,null,null,null,null,null,null,null,null,null,null,null,null,null,null,null,null,1]
[142,"حسين محمد علي القاضي",null,null,null,null,null,null,null,null,null,null,null,null,null,null,null,null,null,null,null,null,null,1,null,null,null,null,null,null,null,null,null,1]
[143,"حسين محمد معلا محمود",1,1,null,null,null,null,null,null,null,null,null,null,null,null,null,null,null,null,null,null,null,null,null,null,null,null,null,null,null,null,null,2]
[144,"حسين ياسر حسن علي حسن",null,null,1,null,null,null,null,null,null,null,null,null,null,null,null,null,null,null,null,null,null,null,null,null,null,null,null,null,null,null,null,1]
[145,"حماده عيسي مهني محمد",null,null,null,1,1,null,null,null,null,null,null,null,null,null,null,null,null,null,null,null,null,null,null,null,null,null,null,null,null,null,null,2]
[146,"حمدي فتحي جمعه طرابيه",null,null,null,null,null,null,null,null,1,null,null,null,null,null,null,null,null,null,null,null,null,null,null,null,null,null,null,null,null,null,null,1]
[147,"حمدي فرج عبدالله فرج",null,1,1,null,null,null,null,null,null,null,null,null,null,null,null,null,null,null,null,null,null,null,null,null,null,null,null,null,null,null,null,2]
[148,"حمزه عبدالرحيم الاجهوري",1,null,null,null,null,null,null,null,null,null,null,null,null,null,null,null,null,null,null,null,null,null,null,null,null,null,null,null,null,null,null,1]
[149,"حمزه عبدالرحيم عبدالرحمن",1,null,null,null,null,null,null,null,null,null,null,null,null,null,null,null,null,null,null,null,null,null,null,null,null,null,null,null,null,null,null,1]
[150,"حمزه محمد سالم غزالي",2,1,null,null,1,1,null,null,null,null,null,null,null,null,null,null,null,null,null,null,1,null,null,null,null,null,null,null,null,null,null,6]
[151,"خالد ايمن عبدالسميع جوهر",2,1,1,null,null,null,null,null,null,null,null,1,null,null,null,null,null,null,null,1,1,null,1,1,null,null,null,null,null,null,null,9]
[152,"خالد مجدي امين السيد",null,1,null,null,1,1,2,2,2,1,null,null,1,null,null,null,null,null,null,null,2,null,null,null,null,null,null,null,null,null,null,13]
[153,"خالد محمد احمد السيد",1,null,null,null,null,null,null,null,null,null,null,null,null,null,null,null,null,null,null,null,null,null,null,null,null,null,null,null,null,null,null,1]
[154,"خالد محمد علي محمد منصور",null,null,null,null,null,null,null,null,null,null,null,null,null,null,null,null,null,null,null,null,null,null,null,null,null,null,null,1,1,null,null,2]
[155,"رشاد محمود شريف فرج",2,2,null,null,null,null,2,1,2,null,null,null,null,2,1,1,1,null,null,null,null,1,null,1,null,null,null,null,null,null,null,16]
[156,"رضا عبدالغني عبدالغني",null,null,1,null,null,null,null,null,null,null,null,null,null,null,null,null,null,null,null,null,null,null,null,null,null,null,null,null,null,null,null,1]
[157,"رمضان سالم عبدالرحمن جاب الله",null,1,null,1,1,1,1,1,1,null,1,null,1,1,1,1,null,null,1,1,1,1,1,null,1,1,1,1,null,null,null,21]
[158,"زكي محمد زكي مصطفي",null,null,null,null,null,null,null,null,null,null,null,null,null,null,null,null,null,null,1,null,null,null,null,null,null,null,null,null,null,null,1,2]
[159,"سامح خالد عبدالمجيد طاحون",null,null,null,null,null,null,null,null,null,null,null,null,null,null,null,null,null,null,null,null,null,null,null,null,null,null,null,null,1,2,1,4]
[160,"سامي صبري جبر علي",null,null,null,null,null,null,null,null,null,null,null,null,null,null,null,null,null,null,null,null,1,null,null,null,null,null,null,null,null,null,null,1]
[161,"سعد شعبان الشحات العربي",2,2,null,null,null,null,2,1,2,1,null,null,1,2,2,2,null,null,null,null,1,1,1,1,null,null,null,null,null,null,null,21]
[162,"سعيد علي سعيد صابر الفرجاني",null,1,1,null,1,1,null,null,null,null,null,null,null,null,null,null,null,null,null,null,null,null,1,null,1,null,1,1,null,1,null,9]
[163,"سعيد علي عبدالهادي",null,1,1,null,null,1,1,1,1,1,null,null,null,null,1,1,1,null,null,null,1,null,1,null,null,null,1,1,null,1,1,16]
[164,"سعيد محمد قرني محمد",null,null,null,null,null,null,null,null,null,null,null,null,null,null,null,null,null,null,null,1,null,null,1,null,null,null,null,null,null,1,1,4]
[165,"سليم اسماعيل بيومي سليم",null,null,1,null,null,null,null,null,null,null,1,null,null,null,null,null,null,1,1,null,null,null,null,null,null,null,null,null,null,null,null,4]
[166,"سليم عماد رمضان عيد",null,null,null,null,null,null,null,null,null,null,null,null,null,null,null,null,null,null,1,null,null,null,null,null,null,null,null,null,null,null,null,1]
[167,"شحات حلمي زكي مزروع",null,1,1,null,1,1,1,1,1,1,null,2,1,1,1,1,1,null,1,1,1,1,null,null,null,null,null,null,null,null,null,19]
[168,"شريف  شعبان سليمان دياب",null,null,null,null,null,null,null,1,1,1,null,null,1,1,null,1,1,null,null,1,1,null,1,1,null,null,1,1,null,1,1,15]
[169,"شريف احمد محمد عبدالله",null,1,null,null,null,null,null,1,null,null,null,null,null,null,null,null,null,null,null,null,null,null,null,null,null,null,null,null,null,null,null,2]
[170,"شريف عمر امين محمد",null,1,1,null,null,1,1,null,1,1,null,null,null,null,null,null,null,null,null,null,null,null,null,null,null,null,null,null,null,null,null,6]
[171,"شريف محمد نجيب احمد عيسي",null,null,null,null,null,1,2,1,2,1,null,1,1,null,1,1,1,null,1,1,null,null,null,1,null,null,null,1,null,null,1,17]
[172,"صابر صبحي لبيب ابوشعيشع",2,1,2,null,1,2,1,1,1,2,1,1,2,2,2,2,null,null,null,null,null,null,1,2,1,2,null,1,1,2,1,34]
[173,"طارق احمد صلاح الدين قطب",2,2,null,null,2,1,null,null,null,null,null,2,1,null,null,null,null,null,null,null,null,null,null,null,null,1,null,null,null,null,null,11]
[174,"طارق عاطف انور سعيد سالم",null,null,null,1,1,1,1,1,1,null,null,1,1,1,1,1,null,null,1,1,1,1,1,null,null,null,null,null,null,null,null,16]
[175,"طارق عبدالفتاح السعيد عبدالباقي",1,1,null,1,null,null,1,1,1,null,1,1,1,1,null,null,null,null,null,null,1,null,1,null,1,null,1,1,1,1,null,17]
[176,"طارق محمود محمود عبدالمعطي عطيه",1,null,1,null,null,null,1,1,1,null,1,1,1,2,1,null,null,1,2,2,null,null,1,1,null,1,1,null,2,null,1,23]
[177,"طلعت شحات رياض",null,null,1,null,null,null,null,null,null,null,null,null,null,null,null,null,null,null,null,null,null,null,null,null,null,null,null,null,null,null,null,1]
[178,"عبدالحليم محمد عصام زكريا",null,null,null,null,null,null,null,null,null,null,null,null,null,null,null,null,null,null,null,1,null,null,null,null,null,null,null,null,null,1,null,2]
[179,"عبدالحميد سمير عبدالحميد",2,1,null,null,null,null,null,null,null,null,null,null,null,null,null,null,null,null,null,null,null,null,null,null,null,null,null,null,null,null,null,3]
[180,"عبدالحميد عبدالعزيز عبدالحميد",null,null,null,null,null,null,null,null,null,1,null,null,null,null,null,null,null,null,null,null,null,null,null,null,null,null,null,null,null,null,null,1]
[181,"عبدالحميد عبدالعزيز محمد النبوي",null,null,null,null,null,null,null,null,null,null,null,null,null,null,null,null,1,null,null,null,null,null,null,null,null,null,null,null,null,null,null,1]
[182,"عبدالحميد غريب عاشور",null,1,null,null,null,null,null,null,null,null,null,null,null,null,null,null,null,null,null,null,null,null,null,null,null,null,null,null,null,null,null,1]
[183,"عبدالحميد غريب عبدالحميد عاشور",null,null,1,null,null,1,1,1,1,null,null,1,1,1,1,1,1,null,1,null,1,1,1,1,null,1,1,1,1,1,1,22]
[184,"عبدالراضي نبيل عبدالراضي محمد",null,null,null,null,null,null,null,null,null,null,null,null,null,null,null,null,null,null,null,1,1,1,null,1,null,1,null,null,null,null,null,5]
[185,"عبدالرحمن جابر محمد يعقوب",1,null,null,null,null,null,null,null,null,null,null,null,null,null,null,null,null,null,null,null,null,null,null,null,null,null,null,null,null,null,null,1]
[186,"عبدالرحمن سالم عبدالرحمن جاب الله",null,1,null,1,null,1,1,1,1,null,1,null,1,1,1,1,null,null,1,null,1,1,2,null,1,2,2,1,1,2,null,25]
[187,"عبدالرحمن سعد احمد احمد",2,2,1,null,1,1,null,null,null,null,null,1,1,null,null,null,null,null,null,1,2,1,null,null,null,null,null,null,null,null,null,13]
[188,"عبدالرحمن سعيد جابر المغناوي",null,null,null,null,null,1,null,null,null,null,null,null,null,null,null,null,null,null,null,null,null,null,null,null,null,null,null,null,null,null,null,1]
[189,"عبدالرحمن سعيد عبدالعزيز",2,1,null,null,null,null,null,null,null,null,null,null,null,null,null,null,null,null,null,null,null,null,null,null,null,null,null,null,null,null,null,3]
[190,"عبدالرحمن شريف محمد السيد",null,null,null,null,1,null,null,null,null,null,null,null,null,null,null,null,null,null,null,null,null,null,null,null,null,null,null,null,null,null,null,1]
[191,"عبدالرحمن علي نجار علي",null,null,null,null,null,null,null,null,null,null,null,null,null,null,null,null,null,null,1,null,null,null,null,null,null,null,null,null,null,null,null,1]
[192,"عبدالرحمن محمد حسن عبدالرحيم",null,null,null,null,1,1,null,null,null,null,null,null,null,null,null,null,null,null,null,null,null,null,null,null,null,null,null,null,null,null,null,2]
[193,"عبدالرحمن محمد محمد خليفه",null,null,null,1,1,1,null,null,null,null,null,null,null,null,null,null,null,null,null,null,null,null,null,null,null,null,null,null,null,null,null,{"$f":"SUM(C194:AG194)","v":3}]
[194,"عبدالرحمن محمود عبدالغفار",null,1,1,null,null,1,null,null,1,1,null,null,null,1,1,null,1,null,null,1,1,1,1,null,null,null,1,null,null,null,null,13]
[195,"عبدالرحمن مغازي",null,null,1,null,null,null,null,null,null,null,null,null,null,null,null,null,null,null,null,null,null,null,null,null,null,null,null,null,null,null,null,1]
[196,"عبدالعزيز جمال عبدالعزيز ابراهيم",null,null,1,null,null,1,1,1,null,null,null,null,1,1,1,1,1,null,null,null,null,null,null,null,null,null,null,null,null,null,null,9]
[197,"عبدالعزيز عاطف عبدالعزيز",null,null,null,null,null,null,null,null,null,null,null,null,null,null,null,null,null,null,null,null,null,null,null,null,null,1,1,1,null,null,null,3]
[198,"عبدالغفار سمير عبدالحي السمري",null,null,null,null,null,1,null,1,null,null,null,null,null,null,null,null,null,null,null,null,null,null,null,null,null,null,null,null,null,null,null,2]
[199,"عبدالغفار محمد منيرعبدالغفار",null,1,1,null,1,null,null,null,1,1,null,1,1,1,null,null,null,null,1,1,1,1,1,null,null,null,1,null,null,null,null,14]
[200,"عبداللطيف طه عبداللطيف",null,null,null,null,null,null,null,null,null,null,null,null,null,null,null,null,null,null,null,null,null,null,null,null,null,null,null,1,1,1,1,4]
[201,"عبدالله ابوالسعود عبدالمجيد",1,2,1,null,null,null,1,2,2,1,null,null,null,null,null,null,null,null,null,null,null,1,null,1,null,2,2,1,2,1,1,21]
[202,"عبدالله حسين احمد جاد الرحمن",null,null,null,null,null,null,null,null,null,null,null,null,null,null,null,null,null,null,null,null,null,null,null,null,null,null,null,null,1,1,1,3]
[203,"عبدالله عاطف عبدالله خلاف",null,null,null,null,null,null,null,null,null,null,null,1,null,1,null,null,null,null,null,null,null,null,null,null,null,null,null,null,null,null,null,2]
[204,"عبدالله علي عبدالله علي",null,null,null,null,null,null,null,null,null,null,null,null,null,null,null,null,null,null,null,null,1,1,null,1,null,1,1,1,1,1,1,9]
[205,"عبدالله محمد عبدالله محمد",null,1,null,null,null,null,null,null,null,null,null,null,null,null,null,null,null,null,null,null,null,null,null,null,null,null,null,null,null,null,null,1]
[206,"عبدالله هشام عبدالله محمود",1,null,null,null,null,null,null,null,null,null,null,null,null,null,null,null,null,null,null,null,null,null,null,null,null,null,null,null,null,null,null,1]
[207,"عبدالهادي عبده عبدالهادي رمضان",2,2,2,null,1,null,2,2,1,1,null,1,1,2,1,1,1,null,null,null,null,null,null,null,null,null,null,null,null,null,null,20]
[208,"عبده رضا عبده مساعد",null,null,1,null,1,1,1,1,1,1,null,1,1,1,1,1,1,null,1,1,1,1,1,1,null,1,null,1,1,1,1,24]
[209,"عبده عبدالحميد عبده",null,null,null,null,null,null,null,null,null,null,null,null,null,null,null,null,null,null,null,null,null,null,null,null,null,null,null,null,1,null,null,1]
[210,"عزالدين مراد محمد توفيق",null,1,1,null,null,1,1,1,1,1,null,1,1,1,1,1,1,null,1,1,1,1,null,null,null,1,null,1,1,1,null,21]
[211,"عزت محمد سالم عزال",null,1,null,null,null,null,null,null,null,null,null,null,null,null,null,null,null,null,null,null,null,null,null,null,null,null,null,null,null,null,null,1]
[212,"عصام عبدالواحد عبدالمقصود",null,null,1,null,1,1,null,1,1,null,null,null,null,null,1,1,null,null,null,null,null,null,null,null,null,null,null,null,null,null,null,7]
[213,"عصام نصر بدير محمود خميس",null,null,1,null,null,null,null,null,null,null,null,null,null,null,null,null,null,null,null,null,null,null,null,null,null,null,null,null,null,null,null,1]
[214,"علاء ربيع سيد امين",null,null,null,null,null,null,null,null,null,null,null,null,null,null,null,null,null,null,null,1,null,null,null,null,null,null,null,null,null,null,null,1]
[215,"علي احمد علي قنديل",null,1,null,null,1,1,1,1,1,null,1,1,1,1,1,1,null,null,1,null,1,1,1,null,1,1,1,1,null,1,null,21]
[216,"علي حسن علي عشري",null,null,2,null,1,null,null,null,null,null,null,null,null,null,null,null,null,null,null,null,null,null,null,null,null,null,null,null,null,null,null,3]
[217,"علي رزق علي الجعودي",2,1,1,null,null,null,null,null,null,null,null,null,null,null,null,null,null,null,2,1,1,2,1,1,1,2,2,1,2,2,1,23]
[218,"علي سعد حمدان فرج",null,null,null,null,null,null,null,null,null,null,null,null,null,null,null,null,null,null,null,1,null,null,null,null,null,null,null,null,null,null,null,1]
[219,"علي صلاح علي سليمان حواس",1,1,null,1,1,1,1,1,1,1,1,1,1,1,1,1,1,1,1,1,1,1,1,1,null,1,1,null,1,1,1,28]
[220,"علي محمود محمد محمود الدحاح",null,null,null,null,null,null,null,null,null,null,1,1,1,1,1,2,1,1,1,1,1,1,1,null,null,2,1,2,1,1,2,23]
[221,"عماد عاطف عزمي شحاته",null,null,null,null,1,null,null,null,null,null,null,null,null,null,null,null,null,null,null,null,null,null,null,null,null,null,null,null,null,null,null,1]
[222,"عمر خلف محمد احمد",1,null,null,null,null,null,null,null,null,null,null,null,null,null,null,null,null,null,null,null,null,null,null,null,null,null,null,null,null,null,null,1]
[223,"عمر فتحي عبدالمنعم ادريس",1,2,1,null,null,null,1,null,null,null,null,null,null,null,null,null,null,null,null,null,null,null,null,null,null,null,null,null,null,null,null,5]
[224,"عمر محمد فاروق حسن",null,null,null,null,null,null,null,null,null,null,null,null,null,1,null,null,null,null,null,null,null,null,null,null,null,null,null,null,null,null,null,1]
[225,"عمرو ثابت عبدالفتاح علي حماد",null,1,1,null,null,1,1,1,1,1,null,null,1,1,1,1,1,null,1,1,1,1,1,1,null,null,1,1,1,1,null,22]
[226,"عمرو سعد احمد سعد",null,null,null,null,null,null,null,null,null,null,null,null,null,null,null,null,1,null,null,null,null,null,null,null,null,null,null,null,null,null,null,1]
[227,"عمرو سعيد عبدالعظيم غانم",null,1,null,null,null,null,null,null,null,null,null,null,null,null,null,null,null,null,null,null,null,null,null,null,null,null,null,null,null,null,null,1]
[228,"عمرو فتحي عبدالمنعم",null,null,1,null,null,null,null,null,null,null,null,null,null,null,null,null,null,null,null,null,null,null,null,null,null,null,null,null,null,null,null,1]
[229,"فادي رزق فرج اندراوس",null,null,null,null,null,null,null,null,null,null,null,null,null,null,null,null,1,null,null,null,null,null,null,null,null,null,null,null,null,null,null,1]
[230,"فارس اسامه فارس سعد",null,null,null,1,null,null,null,null,1,null,null,null,null,null,null,null,null,null,null,null,null,null,null,null,null,null,null,null,null,null,null,2]
[231,"فايز عبدالله احمد ابراهيم",null,null,null,null,null,null,null,null,null,null,null,null,null,null,null,null,null,null,null,null,null,null,1,2,1,2,1,null,null,null,null,7]
[232,"فتحي محمد عبدالسلام عبدالمقصود",null,null,null,null,null,null,null,null,null,null,null,null,null,null,null,null,null,null,1,null,null,null,null,null,null,null,null,null,null,null,null,1]
[233,"فراج محمد حمزه معروف",null,null,null,null,null,null,null,null,null,null,null,null,null,null,null,null,null,null,null,1,null,null,null,null,null,null,null,null,null,1,null,2]
[234,"فكري محمد رجائي عبداللطيف",null,null,null,null,null,null,null,null,null,null,null,2,1,null,null,null,null,null,null,1,null,null,1,null,null,null,null,null,null,null,null,5]
[235,"فهمي عزت ابراهيم عبدالجليل",1,1,null,null,1,null,null,null,null,null,null,null,1,null,null,null,null,null,null,null,null,null,null,null,null,null,null,1,null,null,null,5]
[236,"فواد محمد فواد موسي ",null,null,null,null,null,1,null,null,null,null,null,null,null,null,null,null,null,null,null,null,null,null,null,null,null,null,null,null,null,null,null,1]
[237,"كريم احمد ياسين محمد",null,null,null,null,null,null,1,null,null,null,null,null,null,null,null,null,null,null,null,null,null,null,null,null,null,null,null,null,null,null,null,1]
[238,"كريم سعيد ابراهيم محمد",null,null,null,null,null,null,null,null,null,null,null,null,null,null,null,null,null,null,null,1,null,null,1,null,null,null,null,null,null,null,1,3]
[239,"كريم عبدالقوي عبدالفتاح",null,null,null,null,null,null,1,1,1,1,null,null,1,1,1,1,1,null,null,1,1,1,1,1,null,null,1,1,1,null,1,18]
[240,"كريم ناصر محمد الدبور",null,null,null,null,null,null,null,null,null,null,null,null,null,null,null,null,null,null,null,null,null,1,null,null,null,null,null,null,null,null,null,1]
[241,"كيرلس فادي ناجي حبشي",null,null,null,null,null,null,null,null,null,null,null,null,null,null,null,null,null,null,null,1,null,1,null,null,null,null,null,null,null,null,null,2]
[242,"ماهر احمد علي حماد",null,null,null,null,null,1,1,1,1,1,null,1,1,1,1,null,null,null,null,null,null,null,null,null,null,null,null,null,1,1,null,11]
[243,"ماهر حسني عبدالعظيم محمد حمزاوي",1,null,2,null,null,null,null,null,null,null,null,1,null,null,null,null,null,null,1,1,null,null,null,null,null,1,1,null,1,1,1,11]
[244,"مجهول ",null,null,null,null,null,null,null,null,null,null,null,null,null,null,null,null,null,null,null,null,null,null,null,null,null,null,null,null,null,null,null,0]
[245,"محمد ابراهيم السيد ابراهيم",null,1,1,null,null,1,1,1,1,null,null,null,1,1,1,1,1,null,1,1,1,1,1,1,null,null,null,1,1,null,null,19]
[246,"محمد ابراهيم عاشور عبدالوهاب",null,null,null,null,1,1,1,1,1,null,1,1,1,1,null,1,null,null,null,null,null,null,null,null,null,1,null,1,1,1,null,14]
[247,"محمد ابراهيم محمد ابراهيم",null,1,1,null,null,null,1,null,1,1,null,null,null,null,null,null,null,null,null,null,1,null,1,null,null,null,null,null,null,null,null,7]
[248,"محمد احمد عبدالبديع قوطه",null,null,null,null,null,null,null,null,null,null,null,null,null,null,null,null,null,null,1,1,1,1,1,null,null,null,null,1,1,null,null,7]
[249,"محمد احمد عبدالسميع البدري",null,null,null,null,null,null,null,null,null,null,null,null,null,null,1,1,null,1,1,1,null,1,null,null,1,1,1,1,null,null,null,10]
[250,"محمد احمد عبدالمقصود شتله ",1,1,1,1,2,1,1,1,1,null,null,1,1,1,1,null,1,1,1,1,1,1,1,1,null,1,1,1,1,1,1,28]
[251,"محمد احمد علي قنديل",null,null,null,null,null,null,null,null,null,null,null,null,null,null,null,null,null,null,null,null,null,null,null,null,null,null,null,null,1,1,null,2]
[252,"محمد احمد محرم مصطفي",null,null,null,null,null,1,1,1,1,1,null,1,1,1,1,1,1,null,1,1,1,1,1,1,null,1,1,1,1,1,1,23]
[253,"محمد احمد محمد احمد شلبي",null,1,1,null,1,1,1,1,1,1,null,1,1,1,1,1,1,null,1,1,1,1,1,1,null,1,1,1,1,1,1,26]
[254,"محمد اسامه مبارك الشيخ",null,null,null,null,null,null,null,null,null,null,null,null,null,null,null,null,null,null,null,null,null,1,1,null,1,1,1,null,1,1,null,7]
[255,"محمد اشرف محمد محمود",1,null,null,null,null,null,null,null,null,1,null,null,null,null,null,null,null,null,null,null,null,null,1,null,null,null,1,null,null,null,null,4]
[256,"محمد السعيد عبدالجواد درويش",null,1,null,null,null,null,null,null,null,null,null,null,null,null,null,null,null,null,null,null,null,null,null,null,null,null,null,null,null,null,null,1]
[257,"محمد السيد عباس السيد",null,1,null,null,null,null,null,null,null,null,null,null,null,null,null,null,null,null,null,null,null,null,null,null,null,null,null,null,null,null,null,{"$f":"SUM(C258:AG258)","v":1}]
[258,"محمد العربي جمعه السيد",null,null,null,null,null,null,null,null,null,null,null,null,null,null,null,null,null,null,null,1,1,1,1,null,null,null,null,1,1,1,2,9]
[259,"محمد جابر محمد جابر الشيمي",null,null,null,null,1,null,null,null,null,null,null,null,null,null,null,null,null,null,null,null,null,null,null,null,null,null,null,null,null,null,null,1]
[260,"محمد جبريل محمود عبدالرحيم",null,null,2,null,null,null,null,null,null,null,null,null,null,null,null,null,null,null,null,null,null,null,null,null,null,null,null,null,null,null,null,2]
[261,"محمد حامد حامد الشيخ",2,1,2,null,1,null,null,null,null,null,null,null,null,null,null,null,null,null,null,null,null,null,null,null,null,null,null,null,null,null,null,6]
[262,"محمد حسني فتح الله فتح الله",1,1,1,null,1,null,null,null,null,null,null,null,null,null,null,null,null,null,null,null,null,null,null,null,null,null,null,null,null,null,null,4]
[263,"محمد حمدي حسن محمد",null,null,null,null,null,null,null,null,null,null,null,null,null,null,null,null,null,null,null,null,null,1,1,1,null,null,null,null,null,null,null,3]
[264,"محمد خالد عمر عبدالحميد",null,null,null,null,null,null,null,null,null,null,null,null,null,null,null,1,null,1,null,null,null,null,null,null,null,1,null,null,null,null,null,3]
[265,"محمد خالد محمود احمد شهاب",1,1,1,null,2,1,1,null,null,null,null,null,null,null,null,null,null,null,null,null,null,null,null,null,null,null,null,null,null,null,null,7]
[266,"محمد داود قطب",null,null,null,null,null,null,null,1,null,null,null,null,null,null,null,null,null,null,null,null,null,null,null,null,null,null,null,null,null,null,null,1]
[267,"محمد رافت احمد السيد",null,null,null,null,null,null,null,null,null,null,null,null,null,1,null,null,null,null,null,null,null,null,null,null,null,null,null,null,null,null,null,1]
[268,"محمد رضا جاد علام",null,null,null,null,null,null,null,null,null,null,null,null,null,null,null,null,null,null,1,null,null,null,null,null,null,null,null,null,null,null,null,1]
[269,"محمد رضا سعيد محمد هيبه",null,null,null,null,null,null,null,null,null,null,null,null,null,null,null,null,null,null,null,null,null,null,null,null,null,1,1,1,1,1,null,5]
[270,"محمد رضا ناصف عبدالله مغربي",null,null,null,1,1,1,1,1,1,null,1,null,1,1,1,1,null,null,null,1,1,1,1,null,1,1,1,1,1,1,null,21]
[271,"محمد رفعت علي علي ",null,null,null,null,null,null,null,null,null,1,null,null,null,null,null,null,null,null,null,null,null,null,null,null,null,null,null,null,null,null,null,1]
[272,"محمد رمضان محمد عبدالغني",null,null,null,null,1,1,1,1,1,1,null,1,1,1,1,1,null,null,null,1,null,null,null,null,null,null,null,null,null,1,null,13]
[273,"محمد سعد بدر السيد حجازي",2,2,null,null,1,1,2,1,2,1,null,null,null,null,null,null,1,null,null,null,1,null,null,null,null,null,null,null,null,null,null,14]
[274,"محمد سعيد احمد الشرع",null,null,null,null,null,null,null,null,null,null,null,null,null,null,null,null,null,null,1,null,null,null,null,null,null,null,null,null,null,1,null,2]
[275,"محمد سعيد محمد حسين سالم",null,2,null,null,null,null,1,null,1,1,null,1,1,null,1,null,null,null,null,null,null,1,1,1,null,1,null,null,1,1,2,16]
[276,"محمد سعيد محمد فنجوح",null,null,null,1,1,1,null,null,1,null,null,null,null,null,1,1,null,1,null,1,null,1,null,1,1,null,null,null,1,1,null,13]
[277,"محمد شحات حلمي مزروع",null,null,null,null,null,null,null,null,null,1,null,2,1,1,null,1,1,null,1,1,1,1,1,1,null,1,1,1,1,1,null,18]
[278,"محمد صبحي شعبان احمد",null,1,null,null,null,null,null,null,null,null,null,null,null,null,null,null,null,null,null,null,null,1,null,null,null,null,null,null,null,null,null,2]
[279,"محمد صلاح محمد مليجي",null,1,null,null,null,null,null,null,null,null,null,null,null,null,null,null,null,null,null,null,null,null,null,null,null,null,null,null,null,null,null,1]
[280,"محمد عادل توفيق محمد",null,null,null,null,null,null,null,null,null,null,null,null,null,null,null,null,null,null,null,null,null,null,null,null,null,null,1,null,null,null,null,1]
[281,"محمد عادل فارس هلال",2,2,null,1,1,1,1,2,2,1,1,1,2,2,2,1,1,1,1,1,1,1,1,1,null,1,1,1,1,1,1,36]
[282,"محمد عادل محمد عبدالحي",2,1,null,null,null,null,null,null,null,null,null,null,null,null,null,null,null,null,null,null,null,null,null,null,null,null,null,null,null,null,null,3]
[283,"محمد عبدالحميد محمد عبدالحميد",null,null,1,null,null,null,null,1,null,null,null,null,null,null,null,null,null,null,null,null,null,null,null,null,null,null,null,null,null,null,null,2]
[284,"محمد عبداللطيف محمد عثمان",null,null,null,null,null,null,null,null,null,null,null,null,1,null,2,1,2,1,2,1,1,1,1,1,1,1,null,null,null,null,1,17]
[285,"محمد عبدالمجيد علي عبدالعال",null,null,1,null,1,1,1,1,1,1,null,null,1,null,1,1,null,null,null,1,1,1,1,null,null,null,null,1,1,1,1,18]
[286,"محمد عبدالمنعم مصطفي عيد",1,1,null,null,1,null,null,null,null,null,null,null,1,null,null,null,null,null,null,null,null,null,null,null,null,null,null,1,null,null,null,5]
[287,"محمد عبدالناصر علي علي",null,null,null,null,null,null,null,null,null,null,null,null,null,null,null,null,null,null,null,null,null,null,null,null,null,null,null,null,1,1,null,2]
[288,"محمد عبدالناصرمحمد حسن ",1,null,null,null,1,null,null,null,null,null,null,null,null,null,null,null,null,null,null,null,null,null,null,null,null,null,null,null,null,null,null,2]
[289,"محمد عبده عبدالحميد صديق",1,2,2,1,null,null,1,2,1,null,null,null,null,null,null,null,null,null,null,null,null,null,null,null,null,null,null,null,null,null,null,10]
[290,"محمد عطيه عبدالقوي السيد",null,1,1,1,1,1,2,1,1,2,1,1,2,2,null,null,null,null,null,null,null,null,null,null,null,null,1,2,1,2,1,24]
[291,"محمد علي رجب العبساوي",null,null,null,null,null,null,null,null,null,null,null,null,null,null,null,null,null,null,null,null,null,null,null,null,null,null,null,null,null,1,null,1]
[292,"محمد علي رمضان علي",null,null,null,null,null,null,null,null,null,null,null,null,null,null,null,null,null,null,null,null,null,null,null,null,null,null,1,null,null,1,1,3]
[293,"محمد علي محمد جمعه عمران",null,1,1,null,null,null,1,null,1,1,null,null,1,1,1,1,1,null,null,1,1,1,1,1,null,null,1,1,1,1,null,19]
[294,"محمد عماد محمد حمد",1,1,null,null,null,null,null,null,null,null,null,null,null,null,null,null,null,null,null,null,null,null,null,null,null,null,null,null,null,null,null,2]
[295,"محمد عمران حسن محمد",null,null,null,null,null,null,null,null,null,null,null,null,null,null,null,null,null,null,null,null,null,null,null,null,null,null,null,null,1,1,null,2]
[296,"محمد فتحي السيد العطار",null,null,null,null,null,null,null,null,null,null,null,2,2,1,1,null,null,null,null,null,null,null,null,null,null,null,null,null,null,null,null,6]
[297,"محمد فوزي حوده",null,1,null,null,null,null,null,null,null,null,null,null,null,null,null,null,null,null,null,null,null,null,null,null,null,null,null,null,null,null,null,1]
[298,"محمد مجدي احمد الشرقاوي",null,null,null,null,null,null,null,null,null,null,null,null,null,null,null,1,null,null,null,null,null,null,null,null,null,null,null,null,null,null,null,1]
[299,"محمد مجدي محمد احمد عبدالعاطي",null,null,null,null,null,null,1,1,null,null,null,null,null,null,null,null,null,null,null,null,null,null,null,null,null,null,null,null,null,null,null,2]
[300,"محمد محمد سليم علي",null,null,null,null,null,null,null,null,null,null,null,1,null,null,null,null,null,null,null,null,null,null,null,null,null,null,null,null,null,null,null,1]
[301,"محمد محمود شعبان ابراهيم",2,2,1,null,1,1,null,null,null,null,null,null,null,null,null,null,null,null,1,1,2,1,null,null,null,null,null,null,null,null,null,12]
[302,"محمد مدني طاهر خضراوي",2,2,null,null,1,1,1,1,2,1,null,1,1,2,2,2,2,null,2,1,1,1,1,null,null,2,1,1,2,1,1,35]
[303,"محمد مصطفي ربيع عطيه",null,null,null,null,null,null,1,null,null,null,null,null,null,null,null,null,null,null,null,null,null,null,null,null,null,null,null,null,null,null,null,1]
[304,"محمد ممدوح امين سيد احمد",null,null,null,null,null,null,null,null,null,null,null,null,null,null,null,null,null,null,null,null,null,null,1,null,1,1,1,1,1,1,null,7]
[305,"محمد منصور زيدان قاسم",1,1,1,null,null,null,1,1,1,1,null,2,1,1,1,1,1,null,1,1,1,1,1,1,null,null,1,1,1,null,null,23]
[306,"محمد منصور سعيد",null,1,null,null,null,null,null,null,null,null,null,null,null,null,null,null,null,null,null,null,null,null,null,null,null,null,null,null,null,null,null,1]
[307,"محمد منصور عبدالمجيد زيدان",1,null,null,1,1,null,1,1,1,null,1,1,1,1,1,1,null,1,1,1,1,null,1,null,1,1,1,1,1,1,null,23]
[308,"محمد منصور عبدالمرضي السرس",null,null,null,null,null,null,null,null,null,null,null,1,null,1,null,null,null,null,null,null,null,null,null,null,null,null,null,null,null,null,null,2]
[309,"محمد مهدي سالم سليمان",null,null,null,null,null,null,null,1,1,null,1,1,1,2,1,2,1,null,2,1,2,1,1,1,null,1,1,1,2,1,2,27]
[310,"محمد ناصف عبدالله",null,null,null,null,null,null,null,null,null,null,null,1,null,null,null,null,null,null,null,null,null,null,null,null,null,null,null,null,null,null,null,1]
[311,"محمد نشات محمد احمد مرسي",null,null,null,null,1,1,1,null,null,null,null,1,1,2,2,1,null,null,null,null,1,1,1,1,null,2,1,1,1,null,null,19]
[312,"محمود ابراهيم عاشور",null,null,null,null,1,null,1,null,null,null,null,null,null,null,null,null,null,null,null,null,null,null,null,null,null,null,null,null,null,null,null,2]
[313,"محمود ابراهيم عبدالعزيز",null,null,1,1,1,null,null,null,null,null,null,null,null,null,null,null,null,null,null,null,null,null,null,null,null,null,null,null,null,null,null,3]
[314,"محمود احمد محمد مبروك",null,1,null,1,1,1,1,1,1,null,1,1,1,1,1,1,null,null,1,1,1,1,1,null,1,1,1,1,1,1,null,24]
[315,"محمود احمد محمود جوده",null,null,null,null,null,null,null,null,null,null,null,null,null,null,null,null,null,null,null,null,null,null,null,null,null,null,null,null,null,1,1,2]
[316,"محمود اشرف محمد محمود",null,1,1,null,1,1,1,1,1,null,null,1,1,1,1,1,1,null,1,1,1,1,null,1,null,1,null,1,1,1,1,23]
[317,"محمود بغدادي توفيق",2,2,1,1,1,null,null,2,2,null,1,1,1,2,2,1,2,1,1,1,null,null,1,null,1,2,1,2,2,null,2,35]
[318,"محمود حسن السيد احمد ابراهيم",1,null,1,null,null,null,null,null,null,null,null,null,null,null,null,null,null,null,null,null,null,null,null,null,null,null,null,null,null,null,null,2]
[319,"محمود حنفي محمود هيكل",2,1,null,null,2,null,2,1,null,1,null,null,null,null,null,null,null,1,null,1,2,1,null,1,null,1,1,1,null,1,null,19]
[320,"محمود خالد معوض البهلول",2,1,2,null,null,null,null,null,null,null,null,null,null,null,null,null,null,null,null,null,null,null,null,null,null,null,null,null,null,null,null,5]
[321,"محمود خميس محمد فرج",null,null,null,null,null,null,null,null,null,null,null,null,null,null,null,null,1,null,null,null,null,null,null,null,null,null,null,null,null,null,null,{"$f":"SUM(C322:AG322)","v":1}]
[322,"محمود داود قطب محمد",null,null,null,null,1,null,1,null,null,null,null,null,null,null,null,null,null,null,null,null,null,null,null,null,null,null,null,null,null,null,null,2]
[323,"محمود سامي قرني محمد",null,null,null,null,null,null,null,null,null,1,null,null,null,null,null,null,null,null,null,null,null,null,null,null,null,null,null,null,null,null,null,1]
[324,"محمود عبدالسميع السعيد عبدالجواد",2,1,1,null,1,null,null,null,null,null,null,null,null,null,null,null,null,1,1,1,2,1,1,1,null,1,1,2,1,1,2,21]
[325,"محمود عبدالعزيز مهني محمد",null,null,null,1,1,null,null,null,null,null,null,null,null,null,null,null,null,null,null,null,null,null,null,null,null,null,null,null,null,null,null,2]
[326,"محمود عبدالغني محمد عبدالغني",null,null,null,null,null,null,null,null,null,null,null,null,null,null,null,null,null,null,null,1,null,null,null,null,null,null,null,null,null,null,null,1]
[327,"محمود عبدالكريم حسان",null,null,null,null,null,null,null,null,null,null,null,1,null,null,null,null,null,null,null,null,null,null,1,null,null,null,null,null,null,null,null,2]
[328,"محمود علي محمد معبد",null,null,null,null,null,null,null,null,null,null,null,null,null,null,null,null,null,null,null,null,null,null,1,null,null,null,null,null,null,null,null,1]
[329,"محمود مجدي محمود شعلان",null,2,null,null,null,null,null,null,null,null,null,null,null,null,null,null,null,null,null,null,1,1,1,1,1,1,null,null,1,2,1,12]
[330,"محمود محمد ابرهيم حسن جعفر",null,null,null,null,null,1,1,1,1,1,1,null,1,1,1,1,1,1,null,1,1,1,1,null,1,null,1,1,1,1,null,21]
[331,"محمود محمد عبدالفتاح سيد احمد",2,2,null,null,1,1,2,2,2,1,null,null,1,null,null,null,1,null,1,null,1,null,null,null,null,null,null,null,null,null,null,17]
[332,"محمود محمد قطب",null,1,null,null,null,null,null,null,null,null,null,null,null,null,null,null,null,null,null,null,null,null,null,null,null,null,null,null,null,null,null,1]
[333,"محمود محمد محمد حامد الزرقاني",2,2,null,null,2,1,null,null,null,null,null,2,1,null,null,null,null,null,1,null,2,2,1,1,null,2,2,2,1,1,2,27]
[334,"محمود محمد مصطفي دويدار",2,2,2,null,1,null,1,2,1,1,1,2,1,2,2,1,2,1,1,1,2,1,1,1,1,1,null,null,1,2,1,37]
[335,"محمود يوسف محمود محمد",null,null,null,null,null,null,null,1,1,null,1,1,1,2,1,2,null,null,2,1,1,1,1,null,null,2,2,2,1,1,1,25]
[336,"مصطفي احمد عبدالحميد عبدالمنصف",null,null,null,null,null,null,null,null,null,1,null,null,1,1,null,1,1,null,null,null,null,null,1,1,null,null,1,1,1,1,1,12]
[337,"مصطفي احمد عبدالعزيز عبدالمنصف",null,null,null,null,1,1,null,null,1,null,null,null,null,null,1,null,null,null,null,null,null,null,null,null,null,null,null,null,null,null,null,4]
[338,"مصطفي عاطف فضل",null,null,null,null,null,null,null,null,null,null,null,null,1,null,null,null,null,null,2,null,null,null,null,null,null,1,1,null,null,null,2,7]
[339,"مصطفي عبدالحميد علي القصاص",1,null,null,null,null,null,null,null,null,null,null,null,null,null,null,null,null,null,null,null,null,null,null,null,null,null,null,null,null,null,null,1]
[340,"مصطفي عبدالعزيز علي عبدالعزيز",1,1,1,null,null,null,1,null,null,null,null,null,null,null,null,null,null,null,null,null,null,null,null,null,null,null,null,null,null,null,null,4]
[341,"مصطفي عبدالمنعم محمد ابراهيم",null,null,1,null,null,1,null,null,1,1,null,null,1,1,1,null,1,null,null,1,1,1,1,1,null,null,null,null,null,null,null,13]
[342,"مصطفي فتحي امين سيد احمد",null,null,null,null,null,1,1,1,1,null,null,1,1,1,null,1,null,null,1,1,1,1,1,null,null,null,null,null,null,null,null,13]
[343,"مصطفي محمد عبدالمنعم البربري",null,null,null,null,null,null,null,null,null,null,null,null,null,null,null,null,null,null,null,1,null,null,null,null,null,null,null,null,null,null,null,1]
[344,"مصطفي محمد عثمان علي",null,1,null,null,null,null,null,null,null,null,null,null,null,null,null,null,null,null,null,null,null,null,null,null,null,null,null,null,null,null,null,1]
[345,"مصطفي محمد موسي محمد",null,null,null,null,null,1,1,1,1,1,null,1,1,1,null,1,null,null,null,null,1,1,null,1,null,1,1,null,1,null,null,15]
[346,"مصطفي محمود جمعه السيد عطيه",null,null,null,null,null,1,1,1,1,1,null,1,1,1,1,1,1,null,1,1,1,1,1,1,null,1,1,1,1,1,1,23]
[347,"مصطفي معوض علي عماره",null,null,null,null,null,null,null,null,null,null,null,null,null,null,null,null,null,null,null,null,null,1,null,null,null,null,null,null,null,null,null,1]
[348,"مصطفي موسي محمد موسي",null,null,null,null,null,null,null,null,null,null,null,null,null,null,null,null,null,null,null,null,null,null,1,null,null,null,null,null,null,null,null,1]
[349,"معتز سمير عبدربه محمد",null,1,null,null,1,1,1,1,1,null,1,1,1,1,1,1,null,null,null,1,1,1,null,null,1,1,null,null,null,1,null,18]
[350,"منير سعيد الخطاب الفزيري",1,1,null,null,null,null,null,null,null,null,null,null,null,null,null,null,null,null,null,null,null,null,null,null,null,null,null,null,null,null,null,2]
[351,"مهند محمد احمد صالح",null,null,null,null,null,null,null,null,null,null,null,null,null,null,null,null,null,null,null,null,null,null,null,null,null,1,null,null,null,null,null,1]
[352,"ميلر ميلاد فوزي يعقوب",1,2,2,null,1,null,null,null,null,null,null,1,1,null,null,null,null,null,null,1,null,2,null,1,null,2,2,null,2,null,2,20]
[353,"مينا نادي عزيز غالي",null,null,2,null,1,null,null,null,null,null,null,null,null,null,null,null,null,null,null,null,null,null,null,null,null,null,null,null,null,null,null,3]
[354,"نادر محمد ادم عبدالرحمن",null,null,null,1,1,null,null,null,null,null,null,null,null,null,null,null,null,null,null,null,null,null,null,null,null,null,null,null,null,null,null,2]
[355,"نادر محمد شبابي علي",null,null,null,null,null,null,null,null,null,null,null,null,null,null,null,null,null,null,null,null,null,null,null,null,null,1,1,1,null,null,null,3]
[356,"نادي صلاح محمد مصباح",1,null,null,null,null,null,null,null,null,null,null,2,null,null,null,null,null,1,1,null,null,null,null,null,null,null,null,null,null,null,null,5]
[357,"نصر شعبان الشحات",null,null,null,null,null,null,null,null,null,null,null,1,null,null,null,null,null,null,null,null,null,null,null,null,null,null,null,null,null,null,null,1]
[358,"نصر محمد احمد صالح",null,null,null,null,null,null,null,null,null,null,null,null,null,null,1,1,null,1,1,1,null,1,1,null,1,null,1,null,null,null,null,9]
[359,"هيثم احمد جابر الدماطي",null,null,null,null,null,null,null,null,null,null,null,null,null,null,null,null,null,null,1,1,null,null,1,null,null,null,null,null,null,null,null,3]
[360,"وائل رجب فتح الله حماده",null,null,null,null,null,null,null,null,null,null,null,null,null,null,null,null,null,null,null,null,null,null,null,null,null,1,null,1,null,null,null,2]
[361,"وائل سالم محمد الفقي",null,null,null,null,null,null,null,null,null,1,null,null,null,null,null,null,null,null,null,null,null,1,null,null,null,null,null,1,1,1,1,6]
[362,"وجيه محسب احمد قرشم",null,null,null,null,null,null,null,null,null,null,null,1,null,null,null,null,null,null,null,null,null,null,1,1,null,1,1,1,1,1,1,9]
[363,"وحيد عبدالعزيز عبدالعزيز",null,1,null,null,2,1,null,null,null,null,null,null,null,null,null,null,null,null,null,null,null,null,null,null,null,null,null,null,null,null,null,4]
[364,"وليد خالد عبدالقادر",null,1,null,null,null,null,null,null,null,null,null,null,null,null,null,null,null,null,null,null,null,null,null,null,null,null,null,null,null,null,null,1]
[365,"وليد سعيد عبدالحميد",null,null,null,null,null,null,null,null,null,null,null,null,null,null,null,null,null,1,null,null,null,null,null,null,null,null,null,null,null,null,null,1]
[366,"ياسين صفوت حامد زيدان",null,null,null,null,2,1,1,null,null,null,null,null,null,null,null,null,null,null,null,null,null,null,null,null,null,null,null,null,null,null,null,4]
[367,"يوسف رشاد ابراهيم غنيم",1,null,null,null,1,null,null,null,null,null,null,null,null,1,null,1,null,1,null,null,null,null,null,null,null,1,1,1,null,null,null,8]
[368,"يوسف رشاد غنيم",null,1,null,null,null,null,null,null,null,null,null,null,null,null,null,null,null,null,null,null,null,null,null,null,null,null,null,null,null,null,null,1]
[369,"يوسف صبحي سعيد صابر",null,null,null,null,1,1,null,null,null,null,null,null,null,null,null,null,null,null,null,null,null,null,null,null,null,null,null,null,null,null,null,2]
[370,"يوسف صبحي عبدالمرضي",null,null,null,null,1,1,2,1,2,1,null,1,null,2,null,null,null,null,null,null,null,null,null,null,null,null,null,null,null,null,null,11]
[371,"يوسف فاروق محمود عبدالحافظ",null,null,null,null,null,1,null,null,null,null,null,null,null,null,null,null,null,null,null,null,null,null,null,null,null,null,null,null,null,null,null,1]
[372,"يوسف محمد محمد زايد",2,null,null,null,null,null,null,null,null,null,null,null,null,null,null,null,null,null,null,null,null,null,null,null,null,null,null,null,null,null,null,2]
[null,"مــــــــــــجــــــــــــــــمـــــــــــــــوع",{"$f":"SUM(C2:C373)","v":133},155,112,36,103,104,104,104,104,73,32,99,103,104,102,104,73,36,103,104,104,103,102,72,32,102,103,101,103,104,82,2896]

{"sheet":"قبض المصرية","index":1,"n_rows":376,"n_cols":8,"rows_kept":376,"cut":false,"hidden":false,"merged":[]}
["م","الاسم","الأيام","الراتب","السلف","الإجمالي","انتظام","التوقيع"]
[{"$f":"'المصرية يوميات'!A2","v":1},{"$f":"Table1[[#This Row],[الاسم]]","v":"ابانوب اشرف حبيب حنا"},{"$f":"Table1[[#This Row],[اجمالي الايام]]","v":6},{"$f":"Table2[[#This Row],[الأيام]]*65","v":390},5000,{"$f":"Table2[[#This Row],[الراتب]]-E2","v":-4610}]
[{"$f":"'المصرية يوميات'!A3","v":2},"mmm",{"$f":"Table1[[#This Row],[اجمالي الايام]]","v":2},{"$f":"Table2[[#This Row],[الأيام]]*65","v":130},200,{"$f":"Table2[[#This Row],[الراتب]]-E3","v":-70}]
[{"$f":"'المصرية يوميات'!A4","v":3},{"$f":"Table1[[#This Row],[الاسم]]","v":"ابراهيم السيد ابراهيم العدل عبدالجيد"},{"$f":"Table1[[#This Row],[اجمالي الايام]]","v":20},{"$f":"Table2[[#This Row],[الأيام]]*65","v":1300},1350,{"$f":"Table2[[#This Row],[الراتب]]-E4","v":-50}]
[{"$f":"'المصرية يوميات'!A5","v":4},{"$f":"Table1[[#This Row],[الاسم]]","v":"ابراهيم رشاد ابراهيم غنيم"},{"$f":"Table1[[#This Row],[اجمالي الايام]]","v":10},{"$f":"Table2[[#This Row],[الأيام]]*65","v":650},140,{"$f":"Table2[[#This Row],[الراتب]]-E5","v":510}]
[{"$f":"'المصرية يوميات'!A6","v":5},{"$f":"Table1[[#This Row],[الاسم]]","v":"ابراهيم رفقي سليمان مهني"},{"$f":"Table1[[#This Row],[اجمالي الايام]]","v":1},{"$f":"Table2[[#This Row],[الأيام]]*65","v":65},70,{"$f":"Table2[[#This Row],[الراتب]]-E6","v":-5}]
[{"$f":"'المصرية يوميات'!A7","v":6},{"$f":"Table1[[#This Row],[الاسم]]","v":"ابراهيم شعبان الشحات العربي "},{"$f":"Table1[[#This Row],[اجمالي الايام]]","v":7},{"$f":"Table2[[#This Row],[الأيام]]*65","v":455},100,{"$f":"Table2[[#This Row],[الراتب]]-E7","v":355}]
[{"$f":"'المصرية يوميات'!A8","v":7},{"$f":"Table1[[#This Row],[الاسم]]","v":"ابراهيم عبدالفتاح ابراهيم"},{"$f":"Table1[[#This Row],[اجمالي الايام]]","v":2},{"$f":"Table2[[#This Row],[الأيام]]*65","v":130},null,{"$f":"Table2[[#This Row],[الراتب]]-E8","v":130}]
[{"$f":"'المصرية يوميات'!A9","v":8},{"$f":"Table1[[#This Row],[الاسم]]","v":"ابراهيم فوزي احمد زنكل"},{"$f":"Table1[[#This Row],[اجمالي الايام]]","v":1},{"$f":"Table2[[#This Row],[الأيام]]*65","v":65},null,{"$f":"Table2[[#This Row],[الراتب]]-E9","v":65}]
[{"$f":"'المصرية يوميات'!A10","v":9},{"$f":"Table1[[#This Row],[الاسم]]","v":"ابراهيم كامل علي عويان"},{"$f":"Table1[[#This Row],[اجمالي الايام]]","v":19},{"$f":"Table2[[#This Row],[الأيام]]*65","v":1235},null,{"$f":"Table2[[#This Row],[الراتب]]-E10","v":1235},null,"سعيد عبدالهادي"]
[{"$f":"'المصرية يوميات'!A11","v":10},{"$f":"Table1[[#This Row],[الاسم]]","v":"ابراهيم محمد ابراهيم محمد عبداللطيف"},{"$f":"Table1[[#This Row],[اجمالي الايام]]","v":1},{"$f":"Table2[[#This Row],[الأيام]]*65","v":65},null,{"$f":"Table2[[#This Row],[الراتب]]-E11","v":65},null,"سعيد عبدالهادي"]
[{"$f":"'المصرية يوميات'!A12","v":11},{"$f":"Table1[[#This Row],[الاسم]]","v":"ابراهيم محمد محمد السيد"},{"$f":"Table1[[#This Row],[اجمالي الايام]]","v":2},{"$f":"Table2[[#This Row],[الأيام]]*65","v":130},140,{"$f":"Table2[[#This Row],[الراتب]]-E12","v":-10}]
[{"$f":"'المصرية يوميات'!A13","v":12},{"$f":"Table1[[#This Row],[الاسم]]","v":"ابوالعلا محمد ابوالعلا"},{"$f":"Table1[[#This Row],[اجمالي الايام]]","v":20},{"$f":"Table2[[#This Row],[الأيام]]*65","v":1300},null,{"$f":"Table2[[#This Row],[الراتب]]-E13","v":1300},null,"سعيد عبدالهادي"]
[{"$f":"'المصرية يوميات'!A14","v":13},{"$f":"Table1[[#This Row],[الاسم]]","v":"احمد ابراهيم ابوالمكارم محمد"},{"$f":"Table1[[#This Row],[اجمالي الايام]]","v":1},{"$f":"Table2[[#This Row],[الأيام]]*65","v":65},null,{"$f":"Table2[[#This Row],[الراتب]]-E14","v":65}]
[{"$f":"'المصرية يوميات'!A15","v":14},{"$f":"Table1[[#This Row],[الاسم]]","v":"احمد ابراهيم جمعه علي"},{"$f":"Table1[[#This Row],[اجمالي الايام]]","v":2},{"$f":"Table2[[#This Row],[الأيام]]*65","v":130},null,{"$f":"Table2[[#This Row],[الراتب]]-E15","v":130}]
[{"$f":"'المصرية يوميات'!A16","v":15},{"$f":"Table1[[#This Row],[الاسم]]","v":"احمد ابراهيم سلامه"},{"$f":"Table1[[#This Row],[اجمالي الايام]]","v":1},{"$f":"Table2[[#This Row],[الأيام]]*65","v":65},null,{"$f":"Table2[[#This Row],[الراتب]]-E16","v":65}]
[{"$f":"'المصرية يوميات'!A17","v":16},{"$f":"Table1[[#This Row],[الاسم]]","v":"احمد ابراهيم محمد زكي"},{"$f":"Table1[[#This Row],[اجمالي الايام]]","v":1},{"$f":"Table2[[#This Row],[الأيام]]*65","v":65},null,{"$f":"Table2[[#This Row],[الراتب]]-E17","v":65},null,"سعيد عبدالهادي"]
[{"$f":"'المصرية يوميات'!A18","v":17},{"$f":"Table1[[#This Row],[الاسم]]","v":"احمد ابراهيم محمد محمد"},{"$f":"Table1[[#This Row],[اجمالي الايام]]","v":22},{"$f":"Table2[[#This Row],[الأيام]]*65","v":1430},210,{"$f":"Table2[[#This Row],[الراتب]]-E18","v":1220}]
[{"$f":"'المصرية يوميات'!A19","v":18},{"$f":"Table1[[#This Row],[الاسم]]","v":"احمد اشرف محمد نصرعبدالعزيز"},{"$f":"Table1[[#This Row],[اجمالي الايام]]","v":5},{"$f":"Table2[[#This Row],[الأيام]]*65","v":325},null,{"$f":"Table2[[#This Row],[الراتب]]-E19","v":325}]
[{"$f":"'المصرية يوميات'!A20","v":19},{"$f":"Table1[[#This Row],[الاسم]]","v":"احمد العربي جمعه السيد السيد"},{"$f":"Table1[[#This Row],[اجمالي الايام]]","v":24},{"$f":"Table2[[#This Row],[الأيام]]*65","v":1560},null,{"$f":"Table2[[#This Row],[الراتب]]-E20","v":1560},null,"سعيد عبدالهادي"]
[{"$f":"'المصرية يوميات'!A21","v":20},{"$f":"Table1[[#This Row],[الاسم]]","v":"احمد بكار شاهين صقر"},{"$f":"Table1[[#This Row],[اجمالي الايام]]","v":6},{"$f":"Table2[[#This Row],[الأيام]]*65","v":390},null,{"$f":"Table2[[#This Row],[الراتب]]-E21","v":390},null,"سعيد عبدالهادي"]
[{"$f":"'المصرية يوميات'!A22","v":21},{"$f":"Table1[[#This Row],[الاسم]]","v":"احمد جمال عبدالناصر سيد عيسي"},{"$f":"Table1[[#This Row],[اجمالي الايام]]","v":1},{"$f":"Table2[[#This Row],[الأيام]]*65","v":65},50,{"$f":"Table2[[#This Row],[الراتب]]-E22","v":15}]
[{"$f":"'المصرية يوميات'!A23","v":22},{"$f":"Table1[[#This Row],[الاسم]]","v":"احمد جمال عيسي حمزه"},{"$f":"Table1[[#This Row],[اجمالي الايام]]","v":2},{"$f":"Table2[[#This Row],[الأيام]]*65","v":130},null,{"$f":"Table2[[#This Row],[الراتب]]-E23","v":130},null,"سعيد عبدالهادي"]
[{"$f":"'المصرية يوميات'!A24","v":23},{"$f":"Table1[[#This Row],[الاسم]]","v":"احمد جمال مبروك عطيه"},{"$f":"Table1[[#This Row],[اجمالي الايام]]","v":1},{"$f":"Table2[[#This Row],[الأيام]]*65","v":65},null,{"$f":"Table2[[#This Row],[الراتب]]-E24","v":65}]
[{"$f":"'المصرية يوميات'!A25","v":24},{"$f":"Table1[[#This Row],[الاسم]]","v":"احمد حسن حسن عبدالرحيم"},{"$f":"Table1[[#This Row],[اجمالي الايام]]","v":27},{"$f":"Table2[[#This Row],[الأيام]]*65","v":1755},1555,{"$f":"Table2[[#This Row],[الراتب]]-E25","v":200}]
[{"$f":"'المصرية يوميات'!A26","v":25},{"$f":"Table1[[#This Row],[الاسم]]","v":"احمد حسن حميده عبدالعليم"},{"$f":"Table1[[#This Row],[اجمالي الايام]]","v":15},{"$f":"Table2[[#This Row],[الأيام]]*65","v":975},null,{"$f":"Table2[[#This Row],[الراتب]]-E26","v":975},null,"سعيد عبدالهادي"]
[{"$f":"'المصرية يوميات'!A27","v":26},{"$f":"Table1[[#This Row],[الاسم]]","v":"احمد حسن عامر المغربي"},{"$f":"Table1[[#This Row],[اجمالي الايام]]","v":2},{"$f":"Table2[[#This Row],[الأيام]]*65","v":130},null,{"$f":"Table2[[#This Row],[الراتب]]-E27","v":130}]
[{"$f":"'المصرية يوميات'!A28","v":27},{"$f":"Table1[[#This Row],[الاسم]]","v":"احمد حسن محمد حسان"},{"$f":"Table1[[#This Row],[اجمالي الايام]]","v":3},{"$f":"Table2[[#This Row],[الأيام]]*65","v":195},140,{"$f":"Table2[[#This Row],[الراتب]]-E28","v":55}]
[{"$f":"'المصرية يوميات'!A29","v":28},{"$f":"Table1[[#This Row],[الاسم]]","v":"احمد حمدي احمد حسن حتوش"},{"$f":"Table1[[#This Row],[اجمالي الايام]]","v":4},{"$f":"Table2[[#This Row],[الأيام]]*65","v":260},280,{"$f":"Table2[[#This Row],[الراتب]]-E29","v":-20}]
[{"$f":"'المصرية يوميات'!A30","v":29},{"$f":"Table1[[#This Row],[الاسم]]","v":"احمد حمدي عبدالعزيز علي البياع"},{"$f":"Table1[[#This Row],[اجمالي الايام]]","v":1},{"$f":"Table2[[#This Row],[الأيام]]*65","v":65},null,{"$f":"Table2[[#This Row],[الراتب]]-E30","v":65}]
[{"$f":"'المصرية يوميات'!A31","v":30},{"$f":"Table1[[#This Row],[الاسم]]","v":"احمد حمدي مصطفي عبدالسلام"},{"$f":"Table1[[#This Row],[اجمالي الايام]]","v":1},{"$f":"Table2[[#This Row],[الأيام]]*65","v":65},null,{"$f":"Table2[[#This Row],[الراتب]]-E31","v":65}]
[{"$f":"'المصرية يوميات'!A32","v":31},{"$f":"Table1[[#This Row],[الاسم]]","v":"احمد رجب مرشدي محمد"},{"$f":"Table1[[#This Row],[اجمالي الايام]]","v":2},{"$f":"Table2[[#This Row],[الأيام]]*65","v":130},null,{"$f":"Table2[[#This Row],[الراتب]]-E32","v":130}]
[{"$f":"'المصرية يوميات'!A33","v":32},{"$f":"Table1[[#This Row],[الاسم]]","v":"احمد رشاد عيسي محمد الدومي"},{"$f":"Table1[[#This Row],[اجمالي الايام]]","v":20},{"$f":"Table2[[#This Row],[الأيام]]*65","v":1300},null,{"$f":"Table2[[#This Row],[الراتب]]-E33","v":1300},null,"سعيد عبدالهادي"]
[{"$f":"'المصرية يوميات'!A34","v":33},{"$f":"Table1[[#This Row],[الاسم]]","v":"احمد زغلول احمد القماش"},{"$f":"Table1[[#This Row],[اجمالي الايام]]","v":3},{"$f":"Table2[[#This Row],[الأيام]]*65","v":195},195,{"$f":"Table2[[#This Row],[الراتب]]-E34","v":0}]
[{"$f":"'المصرية يوميات'!A35","v":34},{"$f":"Table1[[#This Row],[الاسم]]","v":"احمد سامي ابراهيم حميده"},{"$f":"Table1[[#This Row],[اجمالي الايام]]","v":21},{"$f":"Table2[[#This Row],[الأيام]]*65","v":1365},null,{"$f":"Table2[[#This Row],[الراتب]]-E35","v":1365},null,"سعيد عبدالهادي"]
[{"$f":"'المصرية يوميات'!A36","v":35},{"$f":"Table1[[#This Row],[الاسم]]","v":"احمد سعد عبدالحميد ابوزيد"},{"$f":"Table1[[#This Row],[اجمالي الايام]]","v":43},{"$f":"Table2[[#This Row],[الأيام]]*65","v":2795},null,{"$f":"Table2[[#This Row],[الراتب]]-E36","v":2795}]
[{"$f":"'المصرية يوميات'!A37","v":36},{"$f":"Table1[[#This Row],[الاسم]]","v":"احمد سعيد رجب السقا"},{"$f":"Table1[[#This Row],[اجمالي الايام]]","v":14},{"$f":"Table2[[#This Row],[الأيام]]*65","v":910},null,{"$f":"Table2[[#This Row],[الراتب]]-E37","v":910},null,"سعيد عبدالهادي"]
[{"$f":"'المصرية يوميات'!A38","v":37},{"$f":"Table1[[#This Row],[الاسم]]","v":"احمد سعيد صادق بحيري"},{"$f":"Table1[[#This Row],[اجمالي الايام]]","v":25},{"$f":"Table2[[#This Row],[الأيام]]*65","v":1625},1280,{"$f":"Table2[[#This Row],[الراتب]]-E38","v":345}]
[{"$f":"'المصرية يوميات'!A39","v":38},{"$f":"Table1[[#This Row],[الاسم]]","v":"احمد سلامه فؤاد محمد"},{"$f":"Table1[[#This Row],[اجمالي الايام]]","v":3},{"$f":"Table2[[#This Row],[الأيام]]*65","v":195},130,{"$f":"Table2[[#This Row],[الراتب]]-E39","v":65}]
[{"$f":"'المصرية يوميات'!A40","v":39},{"$f":"Table1[[#This Row],[الاسم]]","v":"احمد سمير احمد محمود محمد"},{"$f":"Table1[[#This Row],[اجمالي الايام]]","v":18},{"$f":"Table2[[#This Row],[الأيام]]*65","v":1170},null,{"$f":"Table2[[#This Row],[الراتب]]-E40","v":1170},null,"سعيد عبدالهادي"]
[{"$f":"'المصرية يوميات'!A41","v":40},{"$f":"Table1[[#This Row],[الاسم]]","v":"احمد سمير امين حسان"},{"$f":"Table1[[#This Row],[اجمالي الايام]]","v":2},{"$f":"Table2[[#This Row],[الأيام]]*65","v":130},50,{"$f":"Table2[[#This Row],[الراتب]]-E41","v":80}]
[{"$f":"'المصرية يوميات'!A42","v":41},{"$f":"Table1[[#This Row],[الاسم]]","v":"احمد سمير محمود محمد"},{"$f":"Table1[[#This Row],[اجمالي الايام]]","v":3},{"$f":"Table2[[#This Row],[الأيام]]*65","v":195},null,{"$f":"Table2[[#This Row],[الراتب]]-E42","v":195}]
[{"$f":"'المصرية يوميات'!A43","v":42},{"$f":"Table1[[#This Row],[الاسم]]","v":"احمد شحاته احمد شحاته محمد"},{"$f":"Table1[[#This Row],[اجمالي الايام]]","v":10},{"$f":"Table2[[#This Row],[الأيام]]*65","v":650},null,{"$f":"Table2[[#This Row],[الراتب]]-E43","v":650},null,"سعيد عبدالهادي"]
[{"$f":"'المصرية يوميات'!A44","v":43},{"$f":"Table1[[#This Row],[الاسم]]","v":"احمد شعبان صبحي محمد"},{"$f":"Table1[[#This Row],[اجمالي الايام]]","v":5},{"$f":"Table2[[#This Row],[الأيام]]*65","v":325},200,{"$f":"Table2[[#This Row],[الراتب]]-E44","v":125}]
[{"$f":"'المصرية يوميات'!A45","v":44},{"$f":"Table1[[#This Row],[الاسم]]","v":"احمد شعبان علي"},{"$f":"Table1[[#This Row],[اجمالي الايام]]","v":1},{"$f":"Table2[[#This Row],[الأيام]]*65","v":65},70,{"$f":"Table2[[#This Row],[الراتب]]-E45","v":-5}]
[{"$f":"'المصرية يوميات'!A46","v":45},{"$f":"Table1[[#This Row],[الاسم]]","v":"احمد شوقي عيد حسين "},{"$f":"Table1[[#This Row],[اجمالي الايام]]","v":7},{"$f":"Table2[[#This Row],[الأيام]]*65","v":455},null,{"$f":"Table2[[#This Row],[الراتب]]-E46","v":455}]
[{"$f":"'المصرية يوميات'!A47","v":46},{"$f":"Table1[[#This Row],[الاسم]]","v":"احمد صابر محمد عبدالواحد"},{"$f":"Table1[[#This Row],[اجمالي الايام]]","v":1},{"$f":"Table2[[#This Row],[الأيام]]*65","v":65},50,{"$f":"Table2[[#This Row],[الراتب]]-E47","v":15}]
[{"$f":"'المصرية يوميات'!A48","v":47},{"$f":"Table1[[#This Row],[الاسم]]","v":"احمد صبري عبدالحفيظ عامر"},{"$f":"Table1[[#This Row],[اجمالي الايام]]","v":1},{"$f":"Table2[[#This Row],[الأيام]]*65","v":65},null,{"$f":"Table2[[#This Row],[الراتب]]-E48","v":65}]
[{"$f":"'المصرية يوميات'!A49","v":48},{"$f":"Table1[[#This Row],[الاسم]]","v":"احمد صلاح ابواليزيد زيان"},{"$f":"Table1[[#This Row],[اجمالي الايام]]","v":1},{"$f":"Table2[[#This Row],[الأيام]]*65","v":65},null,{"$f":"Table2[[#This Row],[الراتب]]-E49","v":65}]
[{"$f":"'المصرية يوميات'!A50","v":49},{"$f":"Table1[[#This Row],[الاسم]]","v":"احمد صلاح احمد  مصطفي"},{"$f":"Table1[[#This Row],[اجمالي الايام]]","v":1},{"$f":"Table2[[#This Row],[الأيام]]*65","v":65},70,{"$f":"Table2[[#This Row],[الراتب]]-E50","v":-5}]
[{"$f":"'المصرية يوميات'!A51","v":50},{"$f":"Table1[[#This Row],[الاسم]]","v":"احمد صلاح اسماعيل عفيفي"},{"$f":"Table1[[#This Row],[اجمالي الايام]]","v":5},{"$f":"Table2[[#This Row],[الأيام]]*65","v":325},350,{"$f":"Table2[[#This Row],[الراتب]]-E51","v":-25}]
[{"$f":"'المصرية يوميات'!A52","v":51},{"$f":"Table1[[#This Row],[الاسم]]","v":"احمد عبدالحميد ابوزيد"},{"$f":"Table1[[#This Row],[اجمالي الايام]]","v":1},{"$f":"Table2[[#This Row],[الأيام]]*65","v":65},null,{"$f":"Table2[[#This Row],[الراتب]]-E52","v":65}]
[{"$f":"'المصرية يوميات'!A53","v":52},{"$f":"Table1[[#This Row],[الاسم]]","v":"احمد عبدالستار عبدالفتاح"},{"$f":"Table1[[#This Row],[اجمالي الايام]]","v":7},{"$f":"Table2[[#This Row],[الأيام]]*65","v":455},null,{"$f":"Table2[[#This Row],[الراتب]]-E53","v":455}]
[{"$f":"'المصرية يوميات'!A54","v":53},{"$f":"Table1[[#This Row],[الاسم]]","v":"احمد عبدالعزيز عبدالمقصودالصامولي"},{"$f":"Table1[[#This Row],[اجمالي الايام]]","v":28},{"$f":"Table2[[#This Row],[الأيام]]*65","v":1820},500,{"$f":"Table2[[#This Row],[الراتب]]-E54","v":1320}]
[{"$f":"'المصرية يوميات'!A55","v":54},{"$f":"Table1[[#This Row],[الاسم]]","v":"احمد عبدالعزيز محمد حمد"},{"$f":"Table1[[#This Row],[اجمالي الايام]]","v":1},{"$f":"Table2[[#This Row],[الأيام]]*65","v":65},null,{"$f":"Table2[[#This Row],[الراتب]]-E55","v":65}]
[{"$f":"'المصرية يوميات'!A56","v":55},{"$f":"Table1[[#This Row],[الاسم]]","v":"احمد عبدالعزيز محمد عبدالعزيز"},{"$f":"Table1[[#This Row],[اجمالي الايام]]","v":4},{"$f":"Table2[[#This Row],[الأيام]]*65","v":260},210,{"$f":"Table2[[#This Row],[الراتب]]-E56","v":50}]
[{"$f":"'المصرية يوميات'!A57","v":56},{"$f":"Table1[[#This Row],[الاسم]]","v":"احمد عبدالمجيد عبدالشهيد"},{"$f":"Table1[[#This Row],[اجمالي الايام]]","v":1},{"$f":"Table2[[#This Row],[الأيام]]*65","v":65},null,{"$f":"Table2[[#This Row],[الراتب]]-E57","v":65}]
[{"$f":"'المصرية يوميات'!A58","v":57},{"$f":"Table1[[#This Row],[الاسم]]","v":"احمد عبدالمحسن سيد"},{"$f":"Table1[[#This Row],[اجمالي الايام]]","v":1},{"$f":"Table2[[#This Row],[الأيام]]*65","v":65},null,{"$f":"Table2[[#This Row],[الراتب]]-E58","v":65}]
[{"$f":"'المصرية يوميات'!A59","v":58},{"$f":"Table1[[#This Row],[الاسم]]","v":"احمد عزمي احمد السيد مساعد"},{"$f":"Table1[[#This Row],[اجمالي الايام]]","v":22},{"$f":"Table2[[#This Row],[الأيام]]*65","v":1430},null,{"$f":"Table2[[#This Row],[الراتب]]-E59","v":1430},null,"سعيد عبدالهادي"]
[{"$f":"'المصرية يوميات'!A60","v":59},{"$f":"Table1[[#This Row],[الاسم]]","v":"احمد علي محمد اسلام"},{"$f":"Table1[[#This Row],[اجمالي الايام]]","v":1},{"$f":"Table2[[#This Row],[الأيام]]*65","v":65},null,{"$f":"Table2[[#This Row],[الراتب]]-E60","v":65}]
[{"$f":"'المصرية يوميات'!A61","v":60},{"$f":"Table1[[#This Row],[الاسم]]","v":"احمد علي محمد امام"},{"$f":"Table1[[#This Row],[اجمالي الايام]]","v":3},{"$f":"Table2[[#This Row],[الأيام]]*65","v":195},140,{"$f":"Table2[[#This Row],[الراتب]]-E61","v":55}]
[{"$f":"'المصرية يوميات'!A62","v":61},{"$f":"Table1[[#This Row],[الاسم]]","v":"احمد علي منصور علي"},{"$f":"Table1[[#This Row],[اجمالي الايام]]","v":1},{"$f":"Table2[[#This Row],[الأيام]]*65","v":65},70,{"$f":"Table2[[#This Row],[الراتب]]-E62","v":-5}]
[{"$f":"'المصرية يوميات'!A63","v":62},{"$f":"Table1[[#This Row],[الاسم]]","v":"احمد عماد محمد عبدالحميد نجم"},{"$f":"Table1[[#This Row],[اجمالي الايام]]","v":1},{"$f":"Table2[[#This Row],[الأيام]]*65","v":65},null,{"$f":"Table2[[#This Row],[الراتب]]-E63","v":65},null,"سعيد عبدالهادي"]
[{"$f":"'المصرية يوميات'!A64","v":63},{"$f":"Table1[[#This Row],[الاسم]]","v":"احمد عيد عبداللطيف ياسين"},{"$f":"Table1[[#This Row],[اجمالي الايام]]","v":1},{"$f":"Table2[[#This Row],[الأيام]]*65","v":65},null,{"$f":"Table2[[#This Row],[الراتب]]-E64","v":65}]
[{"$f":"'المصرية يوميات'!A65","v":64},{"$f":"Table1[[#This Row],[الاسم]]","v":"احمد عيد محمدين عبدالكريم"},{"$f":"Table1[[#This Row],[اجمالي الايام]]","v":1},{"$f":"Table2[[#This Row],[الأيام]]*65","v":65},null,{"$f":"Table2[[#This Row],[الراتب]]-E65","v":65}]
[{"$f":"'المصرية يوميات'!A66","v":65},{"$f":"Table1[[#This Row],[الاسم]]","v":"احمد فتحي ابراهيم سلامه الشرقاوي"},{"$f":"Table1[[#This Row],[اجمالي الايام]]","v":20},{"$f":"Table2[[#This Row],[الأيام]]*65","v":1300},null,{"$f":"Table2[[#This Row],[الراتب]]-E66","v":1300},null,"سعيد عبدالهادي"]
[{"$f":"'المصرية يوميات'!A67","v":66},{"$f":"Table1[[#This Row],[الاسم]]","v":"احمد فتحي الشرقاوي"},{"$f":"Table1[[#This Row],[اجمالي الايام]]","v":1},{"$f":"Table2[[#This Row],[الأيام]]*65","v":65},null,{"$f":"Table2[[#This Row],[الراتب]]-E67","v":65}]
[{"$f":"'المصرية يوميات'!A68","v":67},{"$f":"Table1[[#This Row],[الاسم]]","v":"احمد فراج زكي مصطفي"},{"$f":"Table1[[#This Row],[اجمالي الايام]]","v":1},{"$f":"Table2[[#This Row],[الأيام]]*65","v":65},null,{"$f":"Table2[[#This Row],[الراتب]]-E68","v":65}]
[{"$f":"'المصرية يوميات'!A69","v":68},{"$f":"Table1[[#This Row],[الاسم]]","v":"احمد فرج محمد حسن"},{"$f":"Table1[[#This Row],[اجمالي الايام]]","v":10},{"$f":"Table2[[#This Row],[الأيام]]*65","v":650},null,{"$f":"Table2[[#This Row],[الراتب]]-E69","v":650}]
[{"$f":"'المصرية يوميات'!A70","v":69},{"$f":"Table1[[#This Row],[الاسم]]","v":"احمد فضل سعد اسماعيل"},{"$f":"Table1[[#This Row],[اجمالي الايام]]","v":1},{"$f":"Table2[[#This Row],[الأيام]]*65","v":65},70,{"$f":"Table2[[#This Row],[الراتب]]-E70","v":-5}]
[{"$f":"'المصرية يوميات'!A71","v":70},{"$f":"Table1[[#This Row],[الاسم]]","v":"احمد فوزي عبدالمحسن محمود"},{"$f":"Table1[[#This Row],[اجمالي الايام]]","v":12},{"$f":"Table2[[#This Row],[الأيام]]*65","v":780},540,{"$f":"Table2[[#This Row],[الراتب]]-E71","v":240}]
[{"$f":"'المصرية يوميات'!A72","v":71},{"$f":"Table1[[#This Row],[الاسم]]","v":"احمد فؤاد علي احمد"},{"$f":"Table1[[#This Row],[اجمالي الايام]]","v":14},{"$f":"Table2[[#This Row],[الأيام]]*65","v":910},910,{"$f":"Table2[[#This Row],[الراتب]]-E72","v":0}]
[{"$f":"'المصرية يوميات'!A73","v":72},{"$f":"Table1[[#This Row],[الاسم]]","v":"احمد فيض حسين ابوالسعيد"},{"$f":"Table1[[#This Row],[اجمالي الايام]]","v":2},{"$f":"Table2[[#This Row],[الأيام]]*65","v":130},null,{"$f":"Table2[[#This Row],[الراتب]]-E73","v":130}]
[{"$f":"'المصرية يوميات'!A74","v":73},{"$f":"Table1[[#This Row],[الاسم]]","v":"احمد محمد ابراهيم فواد"},{"$f":"Table1[[#This Row],[اجمالي الايام]]","v":1},{"$f":"Table2[[#This Row],[الأيام]]*65","v":65},50,{"$f":"Table2[[#This Row],[الراتب]]-E74","v":15}]
[{"$f":"'المصرية يوميات'!A75","v":74},{"$f":"Table1[[#This Row],[الاسم]]","v":"احمد محمد السيد الخولي"},{"$f":"Table1[[#This Row],[اجمالي الايام]]","v":1},{"$f":"Table2[[#This Row],[الأيام]]*65","v":65},70,{"$f":"Table2[[#This Row],[الراتب]]-E75","v":-5}]
[{"$f":"'المصرية يوميات'!A76","v":75},{"$f":"Table1[[#This Row],[الاسم]]","v":"احمد محمد السيد السعداوي"},{"$f":"Table1[[#This Row],[اجمالي الايام]]","v":0},{"$f":"Table2[[#This Row],[الأيام]]*65","v":0},null,{"$f":"Table2[[#This Row],[الراتب]]-E76","v":0}]
[{"$f":"'المصرية يوميات'!A77","v":76},{"$f":"Table1[[#This Row],[الاسم]]","v":"احمد محمد السيد محمود عطيان"},{"$f":"Table1[[#This Row],[اجمالي الايام]]","v":6},{"$f":"Table2[[#This Row],[الأيام]]*65","v":390},50,{"$f":"Table2[[#This Row],[الراتب]]-E77","v":340},null,"مكرر"]
[{"$f":"'المصرية يوميات'!A78","v":77},{"$f":"Table1[[#This Row],[الاسم]]","v":"احمد محمد حمد عبدالسيد"},{"$f":"Table1[[#This Row],[اجمالي الايام]]","v":10},{"$f":"Table2[[#This Row],[الأيام]]*65","v":650},null,{"$f":"Table2[[#This Row],[الراتب]]-E78","v":650},null,"سعيد عبدالهادي"]
[{"$f":"'المصرية يوميات'!A79","v":78},{"$f":"Table1[[#This Row],[الاسم]]","v":"احمد محمد سعيد ابو احمد"},{"$f":"Table1[[#This Row],[اجمالي الايام]]","v":3},{"$f":"Table2[[#This Row],[الأيام]]*65","v":195},210,{"$f":"Table2[[#This Row],[الراتب]]-E79","v":-15}]
[{"$f":"'المصرية يوميات'!A80","v":79},{"$f":"Table1[[#This Row],[الاسم]]","v":"احمد محمد صابر علام"},{"$f":"Table1[[#This Row],[اجمالي الايام]]","v":1},{"$f":"Table2[[#This Row],[الأيام]]*65","v":65},null,{"$f":"Table2[[#This Row],[الراتب]]-E80","v":65}]
[{"$f":"'المصرية يوميات'!A81","v":80},{"$f":"Table1[[#This Row],[الاسم]]","v":"احمد محمد صباح"},{"$f":"Table1[[#This Row],[اجمالي الايام]]","v":1},{"$f":"Table2[[#This Row],[الأيام]]*65","v":65},50,{"$f":"Table2[[#This Row],[الراتب]]-E81","v":15}]
[{"$f":"'المصرية يوميات'!A82","v":81},{"$f":"Table1[[#This Row],[الاسم]]","v":"احمد محمد طه الكحلي"},{"$f":"Table1[[#This Row],[اجمالي الايام]]","v":2},{"$f":"Table2[[#This Row],[الأيام]]*65","v":130},null,{"$f":"Table2[[#This Row],[الراتب]]-E82","v":130}]
[{"$f":"'المصرية يوميات'!A83","v":82},{"$f":"Table1[[#This Row],[الاسم]]","v":"احمد محمد عبدالحميد عبدالقادر"},{"$f":"Table1[[#This Row],[اجمالي الايام]]","v":1},{"$f":"Table2[[#This Row],[الأيام]]*65","v":65},null,{"$f":"Table2[[#This Row],[الراتب]]-E83","v":65}]
[{"$f":"'المصرية يوميات'!A84","v":83},{"$f":"Table1[[#This Row],[الاسم]]","v":"احمد محمد عبدالعزيز عيد"},{"$f":"Table1[[#This Row],[اجمالي الايام]]","v":13},{"$f":"Table2[[#This Row],[الأيام]]*65","v":845},null,{"$f":"Table2[[#This Row],[الراتب]]-E84","v":845},null,"سعيد عبدالهادي"]
[{"$f":"'المصرية يوميات'!A85","v":84},{"$f":"Table1[[#This Row],[الاسم]]","v":"احمد محمد عبدالمقصود محمد"},{"$f":"Table1[[#This Row],[اجمالي الايام]]","v":4},{"$f":"Table2[[#This Row],[الأيام]]*65","v":260},null,{"$f":"Table2[[#This Row],[الراتب]]-E85","v":260}]
[{"$f":"'المصرية يوميات'!A86","v":85},{"$f":"Table1[[#This Row],[الاسم]]","v":"احمد محمد عبدالناصر"},{"$f":"Table1[[#This Row],[اجمالي الايام]]","v":1},{"$f":"Table2[[#This Row],[الأيام]]*65","v":65},70,{"$f":"Table2[[#This Row],[الراتب]]-E86","v":-5}]
[{"$f":"'المصرية يوميات'!A87","v":86},{"$f":"Table1[[#This Row],[الاسم]]","v":"احمد محمد عبدالواحد محمد"},{"$f":"Table1[[#This Row],[اجمالي الايام]]","v":1},{"$f":"Table2[[#This Row],[الأيام]]*65","v":65},70,{"$f":"Table2[[#This Row],[الراتب]]-E87","v":-5}]
[{"$f":"'المصرية يوميات'!A88","v":87},{"$f":"Table1[[#This Row],[الاسم]]","v":"احمد محمد محمد خليفه"},{"$f":"Table1[[#This Row],[اجمالي الايام]]","v":24},{"$f":"Table2[[#This Row],[الأيام]]*65","v":1560},1150,{"$f":"Table2[[#This Row],[الراتب]]-E88","v":410}]
[{"$f":"'المصرية يوميات'!A89","v":88},{"$f":"Table1[[#This Row],[الاسم]]","v":"احمد محمد معوض حسب النبي"},{"$f":"Table1[[#This Row],[اجمالي الايام]]","v":2},{"$f":"Table2[[#This Row],[الأيام]]*65","v":130},140,{"$f":"Table2[[#This Row],[الراتب]]-E89","v":-10}]
[{"$f":"'المصرية يوميات'!A90","v":89},{"$f":"Table1[[#This Row],[الاسم]]","v":"احمد محمود احمد مريقه"},{"$f":"Table1[[#This Row],[اجمالي الايام]]","v":1},{"$f":"Table2[[#This Row],[الأيام]]*65","v":65},65,{"$f":"Table2[[#This Row],[الراتب]]-E90","v":0}]
[{"$f":"'المصرية يوميات'!A91","v":90},{"$f":"Table1[[#This Row],[الاسم]]","v":"احمد محمود السيد السعداوي"},{"$f":"Table1[[#This Row],[اجمالي الايام]]","v":3},{"$f":"Table2[[#This Row],[الأيام]]*65","v":195},null,{"$f":"Table2[[#This Row],[الراتب]]-E91","v":195},null,"سعيد عبدالهادي"]
[{"$f":"'المصرية يوميات'!A92","v":91},{"$f":"Table1[[#This Row],[الاسم]]","v":"احمد محمود السيد محمود عطيان"},{"$f":"Table1[[#This Row],[اجمالي الايام]]","v":2},{"$f":"Table2[[#This Row],[الأيام]]*65","v":130},null,{"$f":"Table2[[#This Row],[الراتب]]-E92","v":130},null,"مكرر"]
[{"$f":"'المصرية يوميات'!A93","v":92},{"$f":"Table1[[#This Row],[الاسم]]","v":"احمد محمود عبدالله جمعه زيدان "},{"$f":"Table1[[#This Row],[اجمالي الايام]]","v":21},{"$f":"Table2[[#This Row],[الأيام]]*65","v":1365},null,{"$f":"Table2[[#This Row],[الراتب]]-E93","v":1365},null,"سعيد عبدالهادي"]
[{"$f":"'المصرية يوميات'!A94","v":93},{"$f":"Table1[[#This Row],[الاسم]]","v":"احمد محمود مصطفي علي"},{"$f":"Table1[[#This Row],[اجمالي الايام]]","v":22},{"$f":"Table2[[#This Row],[الأيام]]*65","v":1430},1540,{"$f":"Table2[[#This Row],[الراتب]]-E94","v":-110}]
[{"$f":"'المصرية يوميات'!A95","v":94},{"$f":"Table1[[#This Row],[الاسم]]","v":"احمد مصطفي احمد محمد"},{"$f":"Table1[[#This Row],[اجمالي الايام]]","v":27},{"$f":"Table2[[#This Row],[الأيام]]*65","v":1755},{"$f":"1720+170","v":1890},{"$f":"Table2[[#This Row],[الراتب]]-E95","v":-135}]
[{"$f":"'المصرية يوميات'!A96","v":95},{"$f":"Table1[[#This Row],[الاسم]]","v":"احمد مصطفي عبدالرحمن"},{"$f":"Table1[[#This Row],[اجمالي الايام]]","v":2},{"$f":"Table2[[#This Row],[الأيام]]*65","v":130},140,{"$f":"Table2[[#This Row],[الراتب]]-E96","v":-10}]
[{"$f":"'المصرية يوميات'!A97","v":96},{"$f":"Table1[[#This Row],[الاسم]]","v":"احمد ممدوح امين سيد احمد"},{"$f":"Table1[[#This Row],[اجمالي الايام]]","v":21},{"$f":"Table2[[#This Row],[الأيام]]*65","v":1365},null,{"$f":"Table2[[#This Row],[الراتب]]-E97","v":1365},null,"سعيد عبدالهادي"]
[{"$f":"'المصرية يوميات'!A98","v":97},{"$f":"Table1[[#This Row],[الاسم]]","v":"احمد منصور زيان قاسم"},{"$f":"Table1[[#This Row],[اجمالي الايام]]","v":1},{"$f":"Table2[[#This Row],[الأيام]]*65","v":65},null,{"$f":"Table2[[#This Row],[الراتب]]-E98","v":65}]
[{"$f":"'المصرية يوميات'!A99","v":98},{"$f":"Table1[[#This Row],[الاسم]]","v":"احمد منير محتمد سعد"},{"$f":"Table1[[#This Row],[اجمالي الايام]]","v":16},{"$f":"Table2[[#This Row],[الأيام]]*65","v":1040},null,{"$f":"Table2[[#This Row],[الراتب]]-E99","v":1040},null,"سعيد عبدالهادي"]
[{"$f":"'المصرية يوميات'!A100","v":99},{"$f":"Table1[[#This Row],[الاسم]]","v":"احمد يوسف حافظ علي"},{"$f":"Table1[[#This Row],[اجمالي الايام]]","v":22},{"$f":"Table2[[#This Row],[الأيام]]*65","v":1430},null,{"$f":"Table2[[#This Row],[الراتب]]-E100","v":1430},null,"سعيد عبدالهادي"]
[{"$f":"'المصرية يوميات'!A101","v":100},{"$f":"Table1[[#This Row],[الاسم]]","v":"ادهم درويش ابراهيم"},{"$f":"Table1[[#This Row],[اجمالي الايام]]","v":2},{"$f":"Table2[[#This Row],[الأيام]]*65","v":130},130,{"$f":"Table2[[#This Row],[الراتب]]-E101","v":0}]
[{"$f":"'المصرية يوميات'!A102","v":101},{"$f":"Table1[[#This Row],[الاسم]]","v":"ادهم رمضان عوض محمد"},{"$f":"Table1[[#This Row],[اجمالي الايام]]","v":13},{"$f":"Table2[[#This Row],[الأيام]]*65","v":845},845,{"$f":"Table2[[#This Row],[الراتب]]-E102","v":0}]
[{"$f":"'المصرية يوميات'!A103","v":102},{"$f":"Table1[[#This Row],[الاسم]]","v":"اسامه احسان رشدي فوزي"},{"$f":"Table1[[#This Row],[اجمالي الايام]]","v":1},{"$f":"Table2[[#This Row],[الأيام]]*65","v":65},null,{"$f":"Table2[[#This Row],[الراتب]]-E103","v":65}]
[{"$f":"'المصرية يوميات'!A104","v":103},{"$f":"Table1[[#This Row],[الاسم]]","v":"اسامه جمعه عبدالعظيم فايد"},{"$f":"Table1[[#This Row],[اجمالي الايام]]","v":1},{"$f":"Table2[[#This Row],[الأيام]]*65","v":65},70,{"$f":"Table2[[#This Row],[الراتب]]-E104","v":-5}]
[{"$f":"'المصرية يوميات'!A105","v":104},{"$f":"Table1[[#This Row],[الاسم]]","v":"اسامه محمد بكر محمد"},{"$f":"Table1[[#This Row],[اجمالي الايام]]","v":2},{"$f":"Table2[[#This Row],[الأيام]]*65","v":130},130,{"$f":"Table2[[#This Row],[الراتب]]-E105","v":0}]
[{"$f":"'المصرية يوميات'!A106","v":105},{"$f":"Table1[[#This Row],[الاسم]]","v":"اسلام خضر عبدالفضيل سلامه"},{"$f":"Table1[[#This Row],[اجمالي الايام]]","v":15},{"$f":"Table2[[#This Row],[الأيام]]*65","v":975},null,{"$f":"Table2[[#This Row],[الراتب]]-E106","v":975},null,"سعيد عبدالهادي"]
[{"$f":"'المصرية يوميات'!A107","v":106},{"$f":"Table1[[#This Row],[الاسم]]","v":"اسلام سامي فتحي ابوالعنين"},{"$f":"Table1[[#This Row],[اجمالي الايام]]","v":3},{"$f":"Table2[[#This Row],[الأيام]]*65","v":195},null,{"$f":"Table2[[#This Row],[الراتب]]-E107","v":195},null,"سعيد عبدالهادي"]
[{"$f":"'المصرية يوميات'!A108","v":107},{"$f":"Table1[[#This Row],[الاسم]]","v":"اسلام عبدالراضي عربي"},{"$f":"Table1[[#This Row],[اجمالي الايام]]","v":3},{"$f":"Table2[[#This Row],[الأيام]]*65","v":195},210,{"$f":"Table2[[#This Row],[الراتب]]-E108","v":-15}]
[{"$f":"'المصرية يوميات'!A109","v":108},{"$f":"Table1[[#This Row],[الاسم]]","v":"اسلام فرغلي محمود عبدالمجلي"},{"$f":"Table1[[#This Row],[اجمالي الايام]]","v":28},{"$f":"Table2[[#This Row],[الأيام]]*65","v":1820},{"$f":"665+150","v":815},{"$f":"Table2[[#This Row],[الراتب]]-E109","v":1005}]
[{"$f":"'المصرية يوميات'!A110","v":109},{"$f":"Table1[[#This Row],[الاسم]]","v":"اسلام محمد عبدالرحيم عبدالمنعم"},{"$f":"Table1[[#This Row],[اجمالي الايام]]","v":2},{"$f":"Table2[[#This Row],[الأيام]]*65","v":130},130,{"$f":"Table2[[#This Row],[الراتب]]-E110","v":0}]
[{"$f":"'المصرية يوميات'!A111","v":110},{"$f":"Table1[[#This Row],[الاسم]]","v":"اسلام محمود حسن خليل"},{"$f":"Table1[[#This Row],[اجمالي الايام]]","v":10},{"$f":"Table2[[#This Row],[الأيام]]*65","v":650},null,{"$f":"Table2[[#This Row],[الراتب]]-E111","v":650}]
[{"$f":"'المصرية يوميات'!A112","v":111},{"$f":"Table1[[#This Row],[الاسم]]","v":"اشرف حسن حمدان حسين"},{"$f":"Table1[[#This Row],[اجمالي الايام]]","v":29},{"$f":"Table2[[#This Row],[الأيام]]*65","v":1885},200,{"$f":"Table2[[#This Row],[الراتب]]-E112","v":1685}]
[{"$f":"'المصرية يوميات'!A113","v":112},{"$f":"Table1[[#This Row],[الاسم]]","v":"اشرف رمضان احمد مرزوق"},{"$f":"Table1[[#This Row],[اجمالي الايام]]","v":6},{"$f":"Table2[[#This Row],[الأيام]]*65","v":390},null,{"$f":"Table2[[#This Row],[الراتب]]-E113","v":390}]
[{"$f":"'المصرية يوميات'!A114","v":113},{"$f":"Table1[[#This Row],[الاسم]]","v":"الحسن محمد الشحات السيد"},{"$f":"Table1[[#This Row],[اجمالي الايام]]","v":25},{"$f":"Table2[[#This Row],[الأيام]]*65","v":1625},1625,{"$f":"Table2[[#This Row],[الراتب]]-E114","v":0}]
[{"$f":"'المصرية يوميات'!A115","v":114},{"$f":"Table1[[#This Row],[الاسم]]","v":"الحسين فوزي  ناصف السيد"},{"$f":"Table1[[#This Row],[اجمالي الايام]]","v":2},{"$f":"Table2[[#This Row],[الأيام]]*65","v":130},null,{"$f":"Table2[[#This Row],[الراتب]]-E115","v":130}]
[{"$f":"'المصرية يوميات'!A116","v":115},{"$f":"Table1[[#This Row],[الاسم]]","v":"السيد اشرف السيد بريك"},{"$f":"Table1[[#This Row],[اجمالي الايام]]","v":2},{"$f":"Table2[[#This Row],[الأيام]]*65","v":130},null,{"$f":"Table2[[#This Row],[الراتب]]-E116","v":130},null,"سعيد عبدالهادي"]
[{"$f":"'المصرية يوميات'!A117","v":116},{"$f":"Table1[[#This Row],[الاسم]]","v":"السيد مسعود السيد محمد"},{"$f":"Table1[[#This Row],[اجمالي الايام]]","v":33},{"$f":"Table2[[#This Row],[الأيام]]*65","v":2145},null,{"$f":"Table2[[#This Row],[الراتب]]-E117","v":2145}]
[{"$f":"'المصرية يوميات'!A118","v":117},{"$f":"Table1[[#This Row],[الاسم]]","v":"امير مجدي شندي حمزه"},{"$f":"Table1[[#This Row],[اجمالي الايام]]","v":1},{"$f":"Table2[[#This Row],[الأيام]]*65","v":65},70,{"$f":"Table2[[#This Row],[الراتب]]-E118","v":-5}]
[{"$f":"'المصرية يوميات'!A119","v":118},{"$f":"Table1[[#This Row],[الاسم]]","v":"امير محروس انجلوس "},{"$f":"Table1[[#This Row],[اجمالي الايام]]","v":1},{"$f":"Table2[[#This Row],[الأيام]]*65","v":65},70,{"$f":"Table2[[#This Row],[الراتب]]-E119","v":-5}]
[{"$f":"'المصرية يوميات'!A120","v":119},{"$f":"Table1[[#This Row],[الاسم]]","v":"انس  حسن صالح عطيه"},{"$f":"Table1[[#This Row],[اجمالي الايام]]","v":2},{"$f":"Table2[[#This Row],[الأيام]]*65","v":130},130,{"$f":"Table2[[#This Row],[الراتب]]-E120","v":0}]
[{"$f":"'المصرية يوميات'!A121","v":120},{"$f":"Table1[[#This Row],[الاسم]]","v":"انطونيوس انيس جرجس بحيري"},{"$f":"Table1[[#This Row],[اجمالي الايام]]","v":1},{"$f":"Table2[[#This Row],[الأيام]]*65","v":65},70,{"$f":"Table2[[#This Row],[الراتب]]-E121","v":-5}]
[{"$f":"'المصرية يوميات'!A122","v":121},{"$f":"Table1[[#This Row],[الاسم]]","v":"انور ناجي شديد سلمان"},{"$f":"Table1[[#This Row],[اجمالي الايام]]","v":1},{"$f":"Table2[[#This Row],[الأيام]]*65","v":65},null,{"$f":"Table2[[#This Row],[الراتب]]-E122","v":65}]
[{"$f":"'المصرية يوميات'!A123","v":122},{"$f":"Table1[[#This Row],[الاسم]]","v":"ايمن محمد فتحي السعيد"},{"$f":"Table1[[#This Row],[اجمالي الايام]]","v":3},{"$f":"Table2[[#This Row],[الأيام]]*65","v":195},150,{"$f":"Table2[[#This Row],[الراتب]]-E123","v":45}]
[{"$f":"'المصرية يوميات'!A124","v":123},{"$f":"Table1[[#This Row],[الاسم]]","v":"ايهاب عادل عبدالحميد صديق"},{"$f":"Table1[[#This Row],[اجمالي الايام]]","v":2},{"$f":"Table2[[#This Row],[الأيام]]*65","v":130},130,{"$f":"Table2[[#This Row],[الراتب]]-E124","v":0}]
[{"$f":"'المصرية يوميات'!A125","v":124},{"$f":"Table1[[#This Row],[الاسم]]","v":"باسم  محمد محمود محمد سالم"},{"$f":"Table1[[#This Row],[اجمالي الايام]]","v":10},{"$f":"Table2[[#This Row],[الأيام]]*65","v":650},null,{"$f":"Table2[[#This Row],[الراتب]]-E125","v":650},null,"سعيد عبدالهادي"]
[{"$f":"'المصرية يوميات'!A126","v":125},{"$f":"Table1[[#This Row],[الاسم]]","v":"باسم احمد رجب العفيفي"},{"$f":"Table1[[#This Row],[اجمالي الايام]]","v":3},{"$f":"Table2[[#This Row],[الأيام]]*65","v":195},210,{"$f":"Table2[[#This Row],[الراتب]]-E126","v":-15}]
[{"$f":"'المصرية يوميات'!A127","v":126},{"$f":"Table1[[#This Row],[الاسم]]","v":"باسم نصر ابراهيم اسماعيل"},{"$f":"Table1[[#This Row],[اجمالي الايام]]","v":7},{"$f":"Table2[[#This Row],[الأيام]]*65","v":455},null,{"$f":"Table2[[#This Row],[الراتب]]-E127","v":455},null,"سعيد عبدالهادي"]
[{"$f":"'المصرية يوميات'!A128","v":127},{"$f":"Table1[[#This Row],[الاسم]]","v":"بشوي سمير قصدي عدلي"},{"$f":"Table1[[#This Row],[اجمالي الايام]]","v":1},{"$f":"Table2[[#This Row],[الأيام]]*65","v":65},70,{"$f":"Table2[[#This Row],[الراتب]]-E128","v":-5}]
[{"$f":"'المصرية يوميات'!A129","v":128},{"$f":"Table1[[#This Row],[الاسم]]","v":"بلال جمعه عمر امين"},{"$f":"Table1[[#This Row],[اجمالي الايام]]","v":17},{"$f":"Table2[[#This Row],[الأيام]]*65","v":1105},null,{"$f":"Table2[[#This Row],[الراتب]]-E129","v":1105},null,"سعيد عبدالهادي"]
[{"$f":"'المصرية يوميات'!A130","v":129},{"$f":"Table1[[#This Row],[الاسم]]","v":"بلال رزق عبدالعزيز احمد"},{"$f":"Table1[[#This Row],[اجمالي الايام]]","v":13},{"$f":"Table2[[#This Row],[الأيام]]*65","v":845},50,{"$f":"Table2[[#This Row],[الراتب]]-E130","v":795}]
[{"$f":"'المصرية يوميات'!A131","v":130},{"$f":"Table1[[#This Row],[الاسم]]","v":"بلال عطيه علي احمد"},{"$f":"Table1[[#This Row],[اجمالي الايام]]","v":1},{"$f":"Table2[[#This Row],[الأيام]]*65","v":65},50,{"$f":"Table2[[#This Row],[الراتب]]-E131","v":15}]
[{"$f":"'المصرية يوميات'!A132","v":131},{"$f":"Table1[[#This Row],[الاسم]]","v":"بولا وجيه سعد عوض الله"},{"$f":"Table1[[#This Row],[اجمالي الايام]]","v":4},{"$f":"Table2[[#This Row],[الأيام]]*65","v":260},280,{"$f":"Table2[[#This Row],[الراتب]]-E132","v":-20}]
[{"$f":"'المصرية يوميات'!A133","v":132},{"$f":"Table1[[#This Row],[الاسم]]","v":"تامر ميشيل اسكندر مشرفي"},{"$f":"Table1[[#This Row],[اجمالي الايام]]","v":15},{"$f":"Table2[[#This Row],[الأيام]]*65","v":975},950,{"$f":"Table2[[#This Row],[الراتب]]-E133","v":25}]
[{"$f":"'المصرية يوميات'!A134","v":133},{"$f":"Table1[[#This Row],[الاسم]]","v":"جمال عطيه جمال صالح"},{"$f":"Table1[[#This Row],[اجمالي الايام]]","v":3},{"$f":"Table2[[#This Row],[الأيام]]*65","v":195},210,{"$f":"Table2[[#This Row],[الراتب]]-E134","v":-15}]
[{"$f":"'المصرية يوميات'!A135","v":134},{"$f":"Table1[[#This Row],[الاسم]]","v":"جمعه فتح شبل محمد شبل"},{"$f":"Table1[[#This Row],[اجمالي الايام]]","v":4},{"$f":"Table2[[#This Row],[الأيام]]*65","v":260},null,{"$f":"Table2[[#This Row],[الراتب]]-E135","v":260},null,"سعيد عبدالهادي"]
[{"$f":"'المصرية يوميات'!A136","v":135},{"$f":"Table1[[#This Row],[الاسم]]","v":"جهاد عبدالحميد امام حشاد"},{"$f":"Table1[[#This Row],[اجمالي الايام]]","v":5},{"$f":"Table2[[#This Row],[الأيام]]*65","v":325},325,{"$f":"Table2[[#This Row],[الراتب]]-E136","v":0}]
[{"$f":"'المصرية يوميات'!A137","v":136},{"$f":"Table1[[#This Row],[الاسم]]","v":"حافظ خميس حافظ وهيب"},{"$f":"Table1[[#This Row],[اجمالي الايام]]","v":1},{"$f":"Table2[[#This Row],[الأيام]]*65","v":65},null,{"$f":"Table2[[#This Row],[الراتب]]-E137","v":65}]
[{"$f":"'المصرية يوميات'!A138","v":137},{"$f":"Table1[[#This Row],[الاسم]]","v":"حامد عبدالحميد حامد غطاس"},{"$f":"Table1[[#This Row],[اجمالي الايام]]","v":1},{"$f":"Table2[[#This Row],[الأيام]]*65","v":65},70,{"$f":"Table2[[#This Row],[الراتب]]-E138","v":-5}]
[{"$f":"'المصرية يوميات'!A139","v":138},{"$f":"Table1[[#This Row],[الاسم]]","v":"حسام عبد الدايم طه عبدالدايم"},{"$f":"Table1[[#This Row],[اجمالي الايام]]","v":2},{"$f":"Table2[[#This Row],[الأيام]]*65","v":130},null,{"$f":"Table2[[#This Row],[الراتب]]-E139","v":130}]
[{"$f":"'المصرية يوميات'!A140","v":139},{"$f":"Table1[[#This Row],[الاسم]]","v":"حسام نصر بدير محمود خميس"},{"$f":"Table1[[#This Row],[اجمالي الايام]]","v":6},{"$f":"Table2[[#This Row],[الأيام]]*65","v":390},null,{"$f":"Table2[[#This Row],[الراتب]]-E140","v":390}]
[{"$f":"'المصرية يوميات'!A141","v":140},{"$f":"Table1[[#This Row],[الاسم]]","v":"حسب النبي سعيد فتحي"},{"$f":"Table1[[#This Row],[اجمالي الايام]]","v":22},{"$f":"Table2[[#This Row],[الأيام]]*65","v":1430},null,{"$f":"Table2[[#This Row],[الراتب]]-E141","v":1430},null,"سعيد عبدالهادي"]
[{"$f":"'المصرية يوميات'!A142","v":141},{"$f":"Table1[[#This Row],[الاسم]]","v":"حسني عبدالوارث محمد سالمان"},{"$f":"Table1[[#This Row],[اجمالي الايام]]","v":1},{"$f":"Table2[[#This Row],[الأيام]]*65","v":65},70,{"$f":"Table2[[#This Row],[الراتب]]-E142","v":-5}]
[{"$f":"'المصرية يوميات'!A143","v":142},{"$f":"Table1[[#This Row],[الاسم]]","v":"حسين محمد علي القاضي"},{"$f":"Table1[[#This Row],[اجمالي الايام]]","v":1},{"$f":"Table2[[#This Row],[الأيام]]*65","v":65},null,{"$f":"Table2[[#This Row],[الراتب]]-E143","v":65}]
[{"$f":"'المصرية يوميات'!A144","v":143},{"$f":"Table1[[#This Row],[الاسم]]","v":"حسين محمد معلا محمود"},{"$f":"Table1[[#This Row],[اجمالي الايام]]","v":2},{"$f":"Table2[[#This Row],[الأيام]]*65","v":130},130,{"$f":"Table2[[#This Row],[الراتب]]-E144","v":0}]
[{"$f":"'المصرية يوميات'!A145","v":144},{"$f":"Table1[[#This Row],[الاسم]]","v":"حسين ياسر حسن علي حسن"},{"$f":"Table1[[#This Row],[اجمالي الايام]]","v":1},{"$f":"Table2[[#This Row],[الأيام]]*65","v":65},null,{"$f":"Table2[[#This Row],[الراتب]]-E145","v":65},null,"سعيد عبدالهادي"]
[{"$f":"'المصرية يوميات'!A146","v":145},{"$f":"Table1[[#This Row],[الاسم]]","v":"حماده عيسي مهني محمد"},{"$f":"Table1[[#This Row],[اجمالي الايام]]","v":2},{"$f":"Table2[[#This Row],[الأيام]]*65","v":130},130,{"$f":"Table2[[#This Row],[الراتب]]-E146","v":0}]
[{"$f":"'المصرية يوميات'!A147","v":146},{"$f":"Table1[[#This Row],[الاسم]]","v":"حمدي فتحي جمعه طرابيه"},{"$f":"Table1[[#This Row],[اجمالي الايام]]","v":1},{"$f":"Table2[[#This Row],[الأيام]]*65","v":65},null,{"$f":"Table2[[#This Row],[الراتب]]-E147","v":65}]
[{"$f":"'المصرية يوميات'!A148","v":147},{"$f":"Table1[[#This Row],[الاسم]]","v":"حمدي فرج عبدالله فرج"},{"$f":"Table1[[#This Row],[اجمالي الايام]]","v":2},{"$f":"Table2[[#This Row],[الأيام]]*65","v":130},null,{"$f":"Table2[[#This Row],[الراتب]]-E148","v":130},null,"سعيد عبدالهادي"]
[{"$f":"'المصرية يوميات'!A149","v":148},{"$f":"Table1[[#This Row],[الاسم]]","v":"حمزه عبدالرحيم الاجهوري"},{"$f":"Table1[[#This Row],[اجمالي الايام]]","v":1},{"$f":"Table2[[#This Row],[الأيام]]*65","v":65},null,{"$f":"Table2[[#This Row],[الراتب]]-E149","v":65}]
[{"$f":"'المصرية يوميات'!A150","v":149},{"$f":"Table1[[#This Row],[الاسم]]","v":"حمزه عبدالرحيم عبدالرحمن"},{"$f":"Table1[[#This Row],[اجمالي الايام]]","v":1},{"$f":"Table2[[#This Row],[الأيام]]*65","v":65},50,{"$f":"Table2[[#This Row],[الراتب]]-E150","v":15}]
[{"$f":"'المصرية يوميات'!A151","v":150},{"$f":"Table1[[#This Row],[الاسم]]","v":"حمزه محمد سالم غزالي"},{"$f":"Table1[[#This Row],[اجمالي الايام]]","v":6},{"$f":"Table2[[#This Row],[الأيام]]*65","v":390},390,{"$f":"Table2[[#This Row],[الراتب]]-E151","v":0}]
[{"$f":"'المصرية يوميات'!A152","v":151},{"$f":"Table1[[#This Row],[الاسم]]","v":"خالد ايمن عبدالسميع جوهر"},{"$f":"Table1[[#This Row],[اجمالي الايام]]","v":9},{"$f":"Table2[[#This Row],[الأيام]]*65","v":585},400,{"$f":"Table2[[#This Row],[الراتب]]-E152","v":185}]
[{"$f":"'المصرية يوميات'!A153","v":152},{"$f":"Table1[[#This Row],[الاسم]]","v":"خالد مجدي امين السيد"},{"$f":"Table1[[#This Row],[اجمالي الايام]]","v":13},{"$f":"Table2[[#This Row],[الأيام]]*65","v":845},845,{"$f":"Table2[[#This Row],[الراتب]]-E153","v":0}]
[{"$f":"'المصرية يوميات'!A154","v":153},{"$f":"Table1[[#This Row],[الاسم]]","v":"خالد محمد احمد السيد"},{"$f":"Table1[[#This Row],[اجمالي الايام]]","v":1},{"$f":"Table2[[#This Row],[الأيام]]*65","v":65},null,{"$f":"Table2[[#This Row],[الراتب]]-E154","v":65}]
[{"$f":"'المصرية يوميات'!A155","v":154},{"$f":"Table1[[#This Row],[الاسم]]","v":"خالد محمد علي محمد منصور"},{"$f":"Table1[[#This Row],[اجمالي الايام]]","v":2},{"$f":"Table2[[#This Row],[الأيام]]*65","v":130},null,{"$f":"Table2[[#This Row],[الراتب]]-E155","v":130}]
[{"$f":"'المصرية يوميات'!A156","v":155},{"$f":"Table1[[#This Row],[الاسم]]","v":"رشاد محمود شريف فرج"},{"$f":"Table1[[#This Row],[اجمالي الايام]]","v":16},{"$f":"Table2[[#This Row],[الأيام]]*65","v":1040},1440,-400]
[{"$f":"'المصرية يوميات'!A157","v":156},{"$f":"Table1[[#This Row],[الاسم]]","v":"رضا عبدالغني عبدالغني"},{"$f":"Table1[[#This Row],[اجمالي الايام]]","v":1},{"$f":"Table2[[#This Row],[الأيام]]*65","v":65},null,{"$f":"Table2[[#This Row],[الراتب]]-E157","v":65},null,"سعيد عبدالهادي"]
[{"$f":"'المصرية يوميات'!A158","v":157},{"$f":"Table1[[#This Row],[الاسم]]","v":"رمضان سالم عبدالرحمن جاب الله"},{"$f":"Table1[[#This Row],[اجمالي الايام]]","v":21},{"$f":"Table2[[#This Row],[الأيام]]*65","v":1365},null,{"$f":"Table2[[#This Row],[الراتب]]-E158","v":1365},null,"سعيد عبدالهادي"]
[{"$f":"'المصرية يوميات'!A159","v":158},{"$f":"Table1[[#This Row],[الاسم]]","v":"زكي محمد زكي مصطفي"},{"$f":"Table1[[#This Row],[اجمالي الايام]]","v":2},{"$f":"Table2[[#This Row],[الأيام]]*65","v":130},null,{"$f":"Table2[[#This Row],[الراتب]]-E159","v":130}]
[{"$f":"'المصرية يوميات'!A160","v":159},{"$f":"Table1[[#This Row],[الاسم]]","v":"سامح خالد عبدالمجيد طاحون"},{"$f":"Table1[[#This Row],[اجمالي الايام]]","v":4},{"$f":"Table2[[#This Row],[الأيام]]*65","v":260},200,{"$f":"Table2[[#This Row],[الراتب]]-E160","v":60}]
[{"$f":"'المصرية يوميات'!A161","v":160},{"$f":"Table1[[#This Row],[الاسم]]","v":"سامي صبري جبر علي"},{"$f":"Table1[[#This Row],[اجمالي الايام]]","v":1},{"$f":"Table2[[#This Row],[الأيام]]*65","v":65},null,{"$f":"Table2[[#This Row],[الراتب]]-E161","v":65}]
[{"$f":"'المصرية يوميات'!A162","v":161},{"$f":"Table1[[#This Row],[الاسم]]","v":"سعد شعبان الشحات العربي"},{"$f":"Table1[[#This Row],[اجمالي الايام]]","v":21},{"$f":"Table2[[#This Row],[الأيام]]*65","v":1365},20,{"$f":"Table2[[#This Row],[الراتب]]-E162","v":1345}]
[{"$f":"'المصرية يوميات'!A163","v":162},{"$f":"Table1[[#This Row],[الاسم]]","v":"سعيد علي سعيد صابر الفرجاني"},{"$f":"Table1[[#This Row],[اجمالي الايام]]","v":9},{"$f":"Table2[[#This Row],[الأيام]]*65","v":585},null,{"$f":"Table2[[#This Row],[الراتب]]-E163","v":585},null,"سعيد عبدالهادي"]
[{"$f":"'المصرية يوميات'!A164","v":163},{"$f":"Table1[[#This Row],[الاسم]]","v":"سعيد علي عبدالهادي"},{"$f":"Table1[[#This Row],[اجمالي الايام]]","v":16},{"$f":"Table2[[#This Row],[الأيام]]*65","v":1040},null,{"$f":"Table2[[#This Row],[الراتب]]-E164","v":1040},null,"سعيد عبدالهادي"]
[{"$f":"'المصرية يوميات'!A165","v":164},{"$f":"Table1[[#This Row],[الاسم]]","v":"سعيد محمد قرني محمد"},{"$f":"Table1[[#This Row],[اجمالي الايام]]","v":4},{"$f":"Table2[[#This Row],[الأيام]]*65","v":260},200,{"$f":"Table2[[#This Row],[الراتب]]-E165","v":60}]
[{"$f":"'المصرية يوميات'!A166","v":165},{"$f":"Table1[[#This Row],[الاسم]]","v":"سليم اسماعيل بيومي سليم"},{"$f":"Table1[[#This Row],[اجمالي الايام]]","v":4},{"$f":"Table2[[#This Row],[الأيام]]*65","v":260},280,{"$f":"Table2[[#This Row],[الراتب]]-E166","v":-20}]
[{"$f":"'المصرية يوميات'!A167","v":166},{"$f":"Table1[[#This Row],[الاسم]]","v":"سليم عماد رمضان عيد"},{"$f":"Table1[[#This Row],[اجمالي الايام]]","v":1},{"$f":"Table2[[#This Row],[الأيام]]*65","v":65},70,{"$f":"Table2[[#This Row],[الراتب]]-E167","v":-5}]
[{"$f":"'المصرية يوميات'!A168","v":167},{"$f":"Table1[[#This Row],[الاسم]]","v":"شحات حلمي زكي مزروع"},{"$f":"Table1[[#This Row],[اجمالي الايام]]","v":19},{"$f":"Table2[[#This Row],[الأيام]]*65","v":1235},210,{"$f":"Table2[[#This Row],[الراتب]]-E168","v":1025},null,"سعيد عبدالهادي"]
[{"$f":"'المصرية يوميات'!A169","v":168},{"$f":"Table1[[#This Row],[الاسم]]","v":"شريف  شعبان سليمان دياب"},{"$f":"Table1[[#This Row],[اجمالي الايام]]","v":15},{"$f":"Table2[[#This Row],[الأيام]]*65","v":975},null,{"$f":"Table2[[#This Row],[الراتب]]-E169","v":975}]
[{"$f":"'المصرية يوميات'!A170","v":169},{"$f":"Table1[[#This Row],[الاسم]]","v":"شريف احمد محمد عبدالله"},{"$f":"Table1[[#This Row],[اجمالي الايام]]","v":2},{"$f":"Table2[[#This Row],[الأيام]]*65","v":130},140,{"$f":"Table2[[#This Row],[الراتب]]-E170","v":-10}]
[{"$f":"'المصرية يوميات'!A171","v":170},{"$f":"Table1[[#This Row],[الاسم]]","v":"شريف عمر امين محمد"},{"$f":"Table1[[#This Row],[اجمالي الايام]]","v":6},{"$f":"Table2[[#This Row],[الأيام]]*65","v":390},null,{"$f":"Table2[[#This Row],[الراتب]]-E171","v":390},null,"سعيد عبدالهادي"]
[{"$f":"'المصرية يوميات'!A172","v":171},{"$f":"Table1[[#This Row],[الاسم]]","v":"شريف محمد نجيب احمد عيسي"},{"$f":"Table1[[#This Row],[اجمالي الايام]]","v":17},{"$f":"Table2[[#This Row],[الأيام]]*65","v":1105},900,{"$f":"Table2[[#This Row],[الراتب]]-E172","v":205}]
[{"$f":"'المصرية يوميات'!A173","v":172},{"$f":"Table1[[#This Row],[الاسم]]","v":"صابر صبحي لبيب ابوشعيشع"},{"$f":"Table1[[#This Row],[اجمالي الايام]]","v":34},{"$f":"Table2[[#This Row],[الأيام]]*65","v":2210},2195,{"$f":"Table2[[#This Row],[الراتب]]-E173","v":15}]
[{"$f":"'المصرية يوميات'!A174","v":173},{"$f":"Table1[[#This Row],[الاسم]]","v":"طارق احمد صلاح الدين قطب"},{"$f":"Table1[[#This Row],[اجمالي الايام]]","v":11},{"$f":"Table2[[#This Row],[الأيام]]*65","v":715},710,{"$f":"Table2[[#This Row],[الراتب]]-E174","v":5}]
[{"$f":"'المصرية يوميات'!A175","v":174},{"$f":"Table1[[#This Row],[الاسم]]","v":"طارق عاطف انور سعيد سالم"},{"$f":"Table1[[#This Row],[اجمالي الايام]]","v":16},{"$f":"Table2[[#This Row],[الأيام]]*65","v":1040},null,{"$f":"Table2[[#This Row],[الراتب]]-E175","v":1040},null,"سعيد عبدالهادي"]
[{"$f":"'المصرية يوميات'!A176","v":175},{"$f":"Table1[[#This Row],[الاسم]]","v":"طارق عبدالفتاح السعيد عبدالباقي"},{"$f":"Table1[[#This Row],[اجمالي الايام]]","v":17},{"$f":"Table2[[#This Row],[الأيام]]*65","v":1105},200,{"$f":"Table2[[#This Row],[الراتب]]-E176","v":905}]
[{"$f":"'المصرية يوميات'!A177","v":176},{"$f":"Table1[[#This Row],[الاسم]]","v":"طارق محمود محمود عبدالمعطي عطيه"},{"$f":"Table1[[#This Row],[اجمالي الايام]]","v":23},{"$f":"Table2[[#This Row],[الأيام]]*65","v":1495},1495,{"$f":"Table2[[#This Row],[الراتب]]-E177","v":0}]
[{"$f":"'المصرية يوميات'!A178","v":177},{"$f":"Table1[[#This Row],[الاسم]]","v":"طلعت شحات رياض"},{"$f":"Table1[[#This Row],[اجمالي الايام]]","v":1},{"$f":"Table2[[#This Row],[الأيام]]*65","v":65},70,{"$f":"Table2[[#This Row],[الراتب]]-E178","v":-5}]
[{"$f":"'المصرية يوميات'!A179","v":178},{"$f":"Table1[[#This Row],[الاسم]]","v":"عبدالحليم محمد عصام زكريا"},{"$f":"Table1[[#This Row],[اجمالي الايام]]","v":2},{"$f":"Table2[[#This Row],[الأيام]]*65","v":130},100,{"$f":"Table2[[#This Row],[الراتب]]-E179","v":30}]
[{"$f":"'المصرية يوميات'!A180","v":179},{"$f":"Table1[[#This Row],[الاسم]]","v":"عبدالحميد سمير عبدالحميد"},{"$f":"Table1[[#This Row],[اجمالي الايام]]","v":3},{"$f":"Table2[[#This Row],[الأيام]]*65","v":195},150,{"$f":"Table2[[#This Row],[الراتب]]-E180","v":45}]
[{"$f":"'المصرية يوميات'!A181","v":180},{"$f":"Table1[[#This Row],[الاسم]]","v":"عبدالحميد عبدالعزيز عبدالحميد"},{"$f":"Table1[[#This Row],[اجمالي الايام]]","v":1},{"$f":"Table2[[#This Row],[الأيام]]*65","v":65},null,{"$f":"Table2[[#This Row],[الراتب]]-E181","v":65}]
[{"$f":"'المصرية يوميات'!A182","v":181},{"$f":"Table1[[#This Row],[الاسم]]","v":"عبدالحميد عبدالعزيز محمد النبوي"},{"$f":"Table1[[#This Row],[اجمالي الايام]]","v":1},{"$f":"Table2[[#This Row],[الأيام]]*65","v":65},null,{"$f":"Table2[[#This Row],[الراتب]]-E182","v":65}]
[{"$f":"'المصرية يوميات'!A183","v":182},{"$f":"Table1[[#This Row],[الاسم]]","v":"عبدالحميد غريب عاشور"},{"$f":"Table1[[#This Row],[اجمالي الايام]]","v":1},{"$f":"Table2[[#This Row],[الأيام]]*65","v":65},null,{"$f":"Table2[[#This Row],[الراتب]]-E183","v":65},null,"سعيد عبدالهادي"]
[{"$f":"'المصرية يوميات'!A184","v":183},{"$f":"Table1[[#This Row],[الاسم]]","v":"عبدالحميد غريب عبدالحميد عاشور"},{"$f":"Table1[[#This Row],[اجمالي الايام]]","v":22},{"$f":"Table2[[#This Row],[الأيام]]*65","v":1430},null,{"$f":"Table2[[#This Row],[الراتب]]-E184","v":1430},null,"سعيد عبدالهادي"]
[{"$f":"'المصرية يوميات'!A185","v":184},{"$f":"Table1[[#This Row],[الاسم]]","v":"عبدالراضي نبيل عبدالراضي محمد"},{"$f":"Table1[[#This Row],[اجمالي الايام]]","v":5},{"$f":"Table2[[#This Row],[الأيام]]*65","v":325},325,{"$f":"Table2[[#This Row],[الراتب]]-E185","v":0}]
[{"$f":"'المصرية يوميات'!A186","v":185},{"$f":"Table1[[#This Row],[الاسم]]","v":"عبدالرحمن جابر محمد يعقوب"},{"$f":"Table1[[#This Row],[اجمالي الايام]]","v":1},{"$f":"Table2[[#This Row],[الأيام]]*65","v":65},70,{"$f":"Table2[[#This Row],[الراتب]]-E186","v":-5}]
[{"$f":"'المصرية يوميات'!A187","v":186},{"$f":"Table1[[#This Row],[الاسم]]","v":"عبدالرحمن سالم عبدالرحمن جاب الله"},{"$f":"Table1[[#This Row],[اجمالي الايام]]","v":25},{"$f":"Table2[[#This Row],[الأيام]]*65","v":1625},null,{"$f":"Table2[[#This Row],[الراتب]]-E187","v":1625},null,"سعيد عبدالهادي"]
[{"$f":"'المصرية يوميات'!A188","v":187},{"$f":"Table1[[#This Row],[الاسم]]","v":"عبدالرحمن سعد احمد احمد"},{"$f":"Table1[[#This Row],[اجمالي الايام]]","v":13},{"$f":"Table2[[#This Row],[الأيام]]*65","v":845},{"$f":"695+45","v":740},{"$f":"Table2[[#This Row],[الراتب]]-E188","v":105}]
[{"$f":"'المصرية يوميات'!A189","v":188},{"$f":"Table1[[#This Row],[الاسم]]","v":"عبدالرحمن سعيد جابر المغناوي"},{"$f":"Table1[[#This Row],[اجمالي الايام]]","v":1},{"$f":"Table2[[#This Row],[الأيام]]*65","v":65},null,{"$f":"Table2[[#This Row],[الراتب]]-E189","v":65}]
[{"$f":"'المصرية يوميات'!A190","v":189},{"$f":"Table1[[#This Row],[الاسم]]","v":"عبدالرحمن سعيد عبدالعزيز"},{"$f":"Table1[[#This Row],[اجمالي الايام]]","v":3},{"$f":"Table2[[#This Row],[الأيام]]*65","v":195},100,{"$f":"Table2[[#This Row],[الراتب]]-E190","v":95}]
[{"$f":"'المصرية يوميات'!A191","v":190},{"$f":"Table1[[#This Row],[الاسم]]","v":"عبدالرحمن شريف محمد السيد"},{"$f":"Table1[[#This Row],[اجمالي الايام]]","v":1},{"$f":"Table2[[#This Row],[الأيام]]*65","v":65},null,{"$f":"Table2[[#This Row],[الراتب]]-E191","v":65}]
[{"$f":"'المصرية يوميات'!A192","v":191},{"$f":"Table1[[#This Row],[الاسم]]","v":"عبدالرحمن علي نجار علي"},{"$f":"Table1[[#This Row],[اجمالي الايام]]","v":1},{"$f":"Table2[[#This Row],[الأيام]]*65","v":65},70,{"$f":"Table2[[#This Row],[الراتب]]-E192","v":-5}]
[{"$f":"'المصرية يوميات'!A193","v":192},{"$f":"Table1[[#This Row],[الاسم]]","v":"عبدالرحمن محمد حسن عبدالرحيم"},{"$f":"Table1[[#This Row],[اجمالي الايام]]","v":2},{"$f":"Table2[[#This Row],[الأيام]]*65","v":130},null,{"$f":"Table2[[#This Row],[الراتب]]-E193","v":130}]
[{"$f":"'المصرية يوميات'!A194","v":193},{"$f":"Table1[[#This Row],[الاسم]]","v":"عبدالرحمن محمد محمد خليفه"},{"$f":"Table1[[#This Row],[اجمالي الايام]]","v":3},{"$f":"Table2[[#This Row],[الأيام]]*65","v":195},null,{"$f":"Table2[[#This Row],[الراتب]]-E194","v":195}]
[{"$f":"'المصرية يوميات'!A195","v":194},{"$f":"Table1[[#This Row],[الاسم]]","v":"عبدالرحمن محمود عبدالغفار"},{"$f":"Table1[[#This Row],[اجمالي الايام]]","v":13},{"$f":"Table2[[#This Row],[الأيام]]*65","v":845},null,{"$f":"Table2[[#This Row],[الراتب]]-E195","v":845},null,"سعيد عبدالهادي"]
[{"$f":"'المصرية يوميات'!A196","v":195},{"$f":"Table1[[#This Row],[الاسم]]","v":"عبدالرحمن مغازي"},{"$f":"Table1[[#This Row],[اجمالي الايام]]","v":1},{"$f":"Table2[[#This Row],[الأيام]]*65","v":65},50,{"$f":"Table2[[#This Row],[الراتب]]-E196","v":15}]
[{"$f":"'المصرية يوميات'!A197","v":196},{"$f":"Table1[[#This Row],[الاسم]]","v":"عبدالعزيز جمال عبدالعزيز ابراهيم"},{"$f":"Table1[[#This Row],[اجمالي الايام]]","v":9},{"$f":"Table2[[#This Row],[الأيام]]*65","v":585},null,{"$f":"Table2[[#This Row],[الراتب]]-E197","v":585},null,"سعيد عبدالهادي"]
[{"$f":"'المصرية يوميات'!A198","v":197},{"$f":"Table1[[#This Row],[الاسم]]","v":"عبدالعزيز عاطف عبدالعزيز"},{"$f":"Table1[[#This Row],[اجمالي الايام]]","v":3},{"$f":"Table2[[#This Row],[الأيام]]*65","v":195},200,{"$f":"Table2[[#This Row],[الراتب]]-E198","v":-5}]
[{"$f":"'المصرية يوميات'!A199","v":198},{"$f":"Table1[[#This Row],[الاسم]]","v":"عبدالغفار سمير عبدالحي السمري"},{"$f":"Table1[[#This Row],[اجمالي الايام]]","v":2},{"$f":"Table2[[#This Row],[الأيام]]*65","v":130},null,{"$f":"Table2[[#This Row],[الراتب]]-E199","v":130}]
[{"$f":"'المصرية يوميات'!A200","v":199},{"$f":"Table1[[#This Row],[الاسم]]","v":"عبدالغفار محمد منيرعبدالغفار"},{"$f":"Table1[[#This Row],[اجمالي الايام]]","v":14},{"$f":"Table2[[#This Row],[الأيام]]*65","v":910},null,{"$f":"Table2[[#This Row],[الراتب]]-E200","v":910},null,"سعيد عبدالهادي"]
[{"$f":"'المصرية يوميات'!A201","v":200},{"$f":"Table1[[#This Row],[الاسم]]","v":"عبداللطيف طه عبداللطيف"},{"$f":"Table1[[#This Row],[اجمالي الايام]]","v":4},{"$f":"Table2[[#This Row],[الأيام]]*65","v":260},null,{"$f":"Table2[[#This Row],[الراتب]]-E201","v":260},null,"سعيد عبدالهادي"]
[{"$f":"'المصرية يوميات'!A202","v":201},{"$f":"Table1[[#This Row],[الاسم]]","v":"عبدالله ابوالسعود عبدالمجيد"},{"$f":"Table1[[#This Row],[اجمالي الايام]]","v":21},{"$f":"Table2[[#This Row],[الأيام]]*65","v":1365},1095,{"$f":"Table2[[#This Row],[الراتب]]-E202","v":270}]
[{"$f":"'المصرية يوميات'!A203","v":202},{"$f":"Table1[[#This Row],[الاسم]]","v":"عبدالله حسين احمد جاد الرحمن"},{"$f":"Table1[[#This Row],[اجمالي الايام]]","v":3},{"$f":"Table2[[#This Row],[الأيام]]*65","v":195},null,{"$f":"Table2[[#This Row],[الراتب]]-E203","v":195},null,"سعيد عبدالهادي"]
[{"$f":"'المصرية يوميات'!A204","v":203},{"$f":"Table1[[#This Row],[الاسم]]","v":"عبدالله عاطف عبدالله خلاف"},{"$f":"Table1[[#This Row],[اجمالي الايام]]","v":2},{"$f":"Table2[[#This Row],[الأيام]]*65","v":130},null,{"$f":"Table2[[#This Row],[الراتب]]-E204","v":130}]
[{"$f":"'المصرية يوميات'!A205","v":204},{"$f":"Table1[[#This Row],[الاسم]]","v":"عبدالله علي عبدالله علي"},{"$f":"Table1[[#This Row],[اجمالي الايام]]","v":9},{"$f":"Table2[[#This Row],[الأيام]]*65","v":585},null,{"$f":"Table2[[#This Row],[الراتب]]-E205","v":585},null,"سعيد عبدالهادي"]
[{"$f":"'المصرية يوميات'!A206","v":205},{"$f":"Table1[[#This Row],[الاسم]]","v":"عبدالله محمد عبدالله محمد"},{"$f":"Table1[[#This Row],[اجمالي الايام]]","v":1},{"$f":"Table2[[#This Row],[الأيام]]*65","v":65},70,{"$f":"Table2[[#This Row],[الراتب]]-E206","v":-5}]
[{"$f":"'المصرية يوميات'!A207","v":206},{"$f":"Table1[[#This Row],[الاسم]]","v":"عبدالله هشام عبدالله محمود"},{"$f":"Table1[[#This Row],[اجمالي الايام]]","v":1},{"$f":"Table2[[#This Row],[الأيام]]*65","v":65},70,{"$f":"Table2[[#This Row],[الراتب]]-E207","v":-5}]
[{"$f":"'المصرية يوميات'!A208","v":207},{"$f":"Table1[[#This Row],[الاسم]]","v":"عبدالهادي عبده عبدالهادي رمضان"},{"$f":"Table1[[#This Row],[اجمالي الايام]]","v":20},{"$f":"Table2[[#This Row],[الأيام]]*65","v":1300},{"$f":"890+500","v":1390},{"$f":"Table2[[#This Row],[الراتب]]-E208","v":-90}]
[{"$f":"'المصرية يوميات'!A209","v":208},{"$f":"Table1[[#This Row],[الاسم]]","v":"عبده رضا عبده مساعد"},{"$f":"Table1[[#This Row],[اجمالي الايام]]","v":24},{"$f":"Table2[[#This Row],[الأيام]]*65","v":1560},null,{"$f":"Table2[[#This Row],[الراتب]]-E209","v":1560},null,"سعيد عبدالهادي"]
[{"$f":"'المصرية يوميات'!A210","v":209},{"$f":"Table1[[#This Row],[الاسم]]","v":"عبده عبدالحميد عبده"},{"$f":"Table1[[#This Row],[اجمالي الايام]]","v":1},{"$f":"Table2[[#This Row],[الأيام]]*65","v":65},null,{"$f":"Table2[[#This Row],[الراتب]]-E210","v":65}]
[{"$f":"'المصرية يوميات'!A211","v":210},{"$f":"Table1[[#This Row],[الاسم]]","v":"عزالدين مراد محمد توفيق"},{"$f":"Table1[[#This Row],[اجمالي الايام]]","v":21},{"$f":"Table2[[#This Row],[الأيام]]*65","v":1365},null,{"$f":"Table2[[#This Row],[الراتب]]-E211","v":1365},null,"سعيد عبدالهادي"]
[{"$f":"'المصرية يوميات'!A212","v":211},{"$f":"Table1[[#This Row],[الاسم]]","v":"عزت محمد سالم عزال"},{"$f":"Table1[[#This Row],[اجمالي الايام]]","v":1},{"$f":"Table2[[#This Row],[الأيام]]*65","v":65},null,{"$f":"Table2[[#This Row],[الراتب]]-E212","v":65}]
[{"$f":"'المصرية يوميات'!A213","v":212},{"$f":"Table1[[#This Row],[الاسم]]","v":"عصام عبدالواحد عبدالمقصود"},{"$f":"Table1[[#This Row],[اجمالي الايام]]","v":7},{"$f":"Table2[[#This Row],[الأيام]]*65","v":455},null,{"$f":"Table2[[#This Row],[الراتب]]-E213","v":455},null,"سعيد عبدالهادي"]
[{"$f":"'المصرية يوميات'!A214","v":213},{"$f":"Table1[[#This Row],[الاسم]]","v":"عصام نصر بدير محمود خميس"},{"$f":"Table1[[#This Row],[اجمالي الايام]]","v":1},{"$f":"Table2[[#This Row],[الأيام]]*65","v":65},null,{"$f":"Table2[[#This Row],[الراتب]]-E214","v":65}]
[{"$f":"'المصرية يوميات'!A215","v":214},{"$f":"Table1[[#This Row],[الاسم]]","v":"علاء ربيع سيد امين"},{"$f":"Table1[[#This Row],[اجمالي الايام]]","v":1},{"$f":"Table2[[#This Row],[الأيام]]*65","v":65},70,{"$f":"Table2[[#This Row],[الراتب]]-E215","v":-5}]
[{"$f":"'المصرية يوميات'!A216","v":215},{"$f":"Table1[[#This Row],[الاسم]]","v":"علي احمد علي قنديل"},{"$f":"Table1[[#This Row],[اجمالي الايام]]","v":21},{"$f":"Table2[[#This Row],[الأيام]]*65","v":1365},null,{"$f":"Table2[[#This Row],[الراتب]]-E216","v":1365},null,"سعيد عبدالهادي"]
[{"$f":"'المصرية يوميات'!A217","v":216},{"$f":"Table1[[#This Row],[الاسم]]","v":"علي حسن علي عشري"},{"$f":"Table1[[#This Row],[اجمالي الايام]]","v":3},{"$f":"Table2[[#This Row],[الأيام]]*65","v":195},195,{"$f":"Table2[[#This Row],[الراتب]]-E217","v":0}]
[{"$f":"'المصرية يوميات'!A218","v":217},{"$f":"Table1[[#This Row],[الاسم]]","v":"علي رزق علي الجعودي"},{"$f":"Table1[[#This Row],[اجمالي الايام]]","v":23},{"$f":"Table2[[#This Row],[الأيام]]*65","v":1495},360,{"$f":"Table2[[#This Row],[الراتب]]-E218","v":1135}]
[{"$f":"'المصرية يوميات'!A219","v":218},{"$f":"Table1[[#This Row],[الاسم]]","v":"علي سعد حمدان فرج"},{"$f":"Table1[[#This Row],[اجمالي الايام]]","v":1},{"$f":"Table2[[#This Row],[الأيام]]*65","v":65},null,{"$f":"Table2[[#This Row],[الراتب]]-E219","v":65}]
[{"$f":"'المصرية يوميات'!A220","v":219},{"$f":"Table1[[#This Row],[الاسم]]","v":"علي صلاح علي سليمان حواس"},{"$f":"Table1[[#This Row],[اجمالي الايام]]","v":28},{"$f":"Table2[[#This Row],[الأيام]]*65","v":1820},null,{"$f":"Table2[[#This Row],[الراتب]]-E220","v":1820},null,"سعيد عبدالهادي"]
[{"$f":"'المصرية يوميات'!A221","v":220},{"$f":"Table1[[#This Row],[الاسم]]","v":"علي محمود محمد محمود الدحاح"},{"$f":"Table1[[#This Row],[اجمالي الايام]]","v":23},{"$f":"Table2[[#This Row],[الأيام]]*65","v":1495},920,{"$f":"Table2[[#This Row],[الراتب]]-E221","v":575}]
[{"$f":"'المصرية يوميات'!A222","v":221},{"$f":"Table1[[#This Row],[الاسم]]","v":"عماد عاطف عزمي شحاته"},{"$f":"Table1[[#This Row],[اجمالي الايام]]","v":1},{"$f":"Table2[[#This Row],[الأيام]]*65","v":65},70,{"$f":"Table2[[#This Row],[الراتب]]-E222","v":-5}]
[{"$f":"'المصرية يوميات'!A223","v":222},{"$f":"Table1[[#This Row],[الاسم]]","v":"عمر خلف محمد احمد"},{"$f":"Table1[[#This Row],[اجمالي الايام]]","v":1},{"$f":"Table2[[#This Row],[الأيام]]*65","v":65},null,{"$f":"Table2[[#This Row],[الراتب]]-E223","v":65}]
[{"$f":"'المصرية يوميات'!A224","v":223},{"$f":"Table1[[#This Row],[الاسم]]","v":"عمر فتحي عبدالمنعم ادريس"},{"$f":"Table1[[#This Row],[اجمالي الايام]]","v":5},{"$f":"Table2[[#This Row],[الأيام]]*65","v":325},null,{"$f":"Table2[[#This Row],[الراتب]]-E224","v":325}]
[{"$f":"'المصرية يوميات'!A225","v":224},{"$f":"Table1[[#This Row],[الاسم]]","v":"عمر محمد فاروق حسن"},{"$f":"Table1[[#This Row],[اجمالي الايام]]","v":1},{"$f":"Table2[[#This Row],[الأيام]]*65","v":65},70,{"$f":"Table2[[#This Row],[الراتب]]-E225","v":-5}]
[{"$f":"'المصرية يوميات'!A226","v":225},{"$f":"Table1[[#This Row],[الاسم]]","v":"عمرو ثابت عبدالفتاح علي حماد"},{"$f":"Table1[[#This Row],[اجمالي الايام]]","v":22},{"$f":"Table2[[#This Row],[الأيام]]*65","v":1430},null,{"$f":"Table2[[#This Row],[الراتب]]-E226","v":1430},null,"سعيد عبدالهادي"]
[{"$f":"'المصرية يوميات'!A227","v":226},{"$f":"Table1[[#This Row],[الاسم]]","v":"عمرو سعد احمد سعد"},{"$f":"Table1[[#This Row],[اجمالي الايام]]","v":1},{"$f":"Table2[[#This Row],[الأيام]]*65","v":65},null,{"$f":"Table2[[#This Row],[الراتب]]-E227","v":65}]
[{"$f":"'المصرية يوميات'!A228","v":227},{"$f":"Table1[[#This Row],[الاسم]]","v":"عمرو سعيد عبدالعظيم غانم"},{"$f":"Table1[[#This Row],[اجمالي الايام]]","v":1},{"$f":"Table2[[#This Row],[الأيام]]*65","v":65},70,{"$f":"Table2[[#This Row],[الراتب]]-E228","v":-5}]
[{"$f":"'المصرية يوميات'!A229","v":228},{"$f":"Table1[[#This Row],[الاسم]]","v":"عمرو فتحي عبدالمنعم"},{"$f":"Table1[[#This Row],[اجمالي الايام]]","v":1},{"$f":"Table2[[#This Row],[الأيام]]*65","v":65},null,{"$f":"Table2[[#This Row],[الراتب]]-E229","v":65}]
[{"$f":"'المصرية يوميات'!A230","v":229},{"$f":"Table1[[#This Row],[الاسم]]","v":"فادي رزق فرج اندراوس"},{"$f":"Table1[[#This Row],[اجمالي الايام]]","v":1},{"$f":"Table2[[#This Row],[الأيام]]*65","v":65},null,{"$f":"Table2[[#This Row],[الراتب]]-E230","v":65}]
[{"$f":"'المصرية يوميات'!A231","v":230},{"$f":"Table1[[#This Row],[الاسم]]","v":"فارس اسامه فارس سعد"},{"$f":"Table1[[#This Row],[اجمالي الايام]]","v":2},{"$f":"Table2[[#This Row],[الأيام]]*65","v":130},null,{"$f":"Table2[[#This Row],[الراتب]]-E231","v":130}]
[{"$f":"'المصرية يوميات'!A232","v":231},{"$f":"Table1[[#This Row],[الاسم]]","v":"فايز عبدالله احمد ابراهيم"},{"$f":"Table1[[#This Row],[اجمالي الايام]]","v":7},{"$f":"Table2[[#This Row],[الأيام]]*65","v":455},500,{"$f":"Table2[[#This Row],[الراتب]]-E232","v":-45}]
[{"$f":"'المصرية يوميات'!A233","v":232},{"$f":"Table1[[#This Row],[الاسم]]","v":"فتحي محمد عبدالسلام عبدالمقصود"},{"$f":"Table1[[#This Row],[اجمالي الايام]]","v":1},{"$f":"Table2[[#This Row],[الأيام]]*65","v":65},70,{"$f":"Table2[[#This Row],[الراتب]]-E233","v":-5}]
[{"$f":"'المصرية يوميات'!A234","v":233},{"$f":"Table1[[#This Row],[الاسم]]","v":"فراج محمد حمزه معروف"},{"$f":"Table1[[#This Row],[اجمالي الايام]]","v":2},{"$f":"Table2[[#This Row],[الأيام]]*65","v":130},null,{"$f":"Table2[[#This Row],[الراتب]]-E234","v":130}]
[{"$f":"'المصرية يوميات'!A235","v":234},{"$f":"Table1[[#This Row],[الاسم]]","v":"فكري محمد رجائي عبداللطيف"},{"$f":"Table1[[#This Row],[اجمالي الايام]]","v":5},{"$f":"Table2[[#This Row],[الأيام]]*65","v":325},180,{"$f":"Table2[[#This Row],[الراتب]]-E235","v":145}]
[{"$f":"'المصرية يوميات'!A236","v":235},{"$f":"Table1[[#This Row],[الاسم]]","v":"فهمي عزت ابراهيم عبدالجليل"},{"$f":"Table1[[#This Row],[اجمالي الايام]]","v":5},{"$f":"Table2[[#This Row],[الأيام]]*65","v":325},140,{"$f":"Table2[[#This Row],[الراتب]]-E236","v":185}]
[{"$f":"'المصرية يوميات'!A237","v":236},{"$f":"Table1[[#This Row],[الاسم]]","v":"فواد محمد فواد موسي "},{"$f":"Table1[[#This Row],[اجمالي الايام]]","v":1},{"$f":"Table2[[#This Row],[الأيام]]*65","v":65},null,{"$f":"Table2[[#This Row],[الراتب]]-E237","v":65}]
[{"$f":"'المصرية يوميات'!A238","v":237},{"$f":"Table1[[#This Row],[الاسم]]","v":"كريم احمد ياسين محمد"},{"$f":"Table1[[#This Row],[اجمالي الايام]]","v":1},{"$f":"Table2[[#This Row],[الأيام]]*65","v":65},null,{"$f":"Table2[[#This Row],[الراتب]]-E238","v":65}]
[{"$f":"'المصرية يوميات'!A239","v":238},{"$f":"Table1[[#This Row],[الاسم]]","v":"كريم سعيد ابراهيم محمد"},{"$f":"Table1[[#This Row],[اجمالي الايام]]","v":3},{"$f":"Table2[[#This Row],[الأيام]]*65","v":195},100,{"$f":"Table2[[#This Row],[الراتب]]-E239","v":95}]
[{"$f":"'المصرية يوميات'!A240","v":239},{"$f":"Table1[[#This Row],[الاسم]]","v":"كريم عبدالقوي عبدالفتاح"},{"$f":"Table1[[#This Row],[اجمالي الايام]]","v":18},{"$f":"Table2[[#This Row],[الأيام]]*65","v":1170},null,{"$f":"Table2[[#This Row],[الراتب]]-E240","v":1170},null,"سعيد عبدالهادي"]
[{"$f":"'المصرية يوميات'!A241","v":240},{"$f":"Table1[[#This Row],[الاسم]]","v":"كريم ناصر محمد الدبور"},{"$f":"Table1[[#This Row],[اجمالي الايام]]","v":1},{"$f":"Table2[[#This Row],[الأيام]]*65","v":65},null,{"$f":"Table2[[#This Row],[الراتب]]-E241","v":65}]
[{"$f":"'المصرية يوميات'!A242","v":241},{"$f":"Table1[[#This Row],[الاسم]]","v":"كيرلس فادي ناجي حبشي"},{"$f":"Table1[[#This Row],[اجمالي الايام]]","v":2},{"$f":"Table2[[#This Row],[الأيام]]*65","v":130},100,{"$f":"Table2[[#This Row],[الراتب]]-E242","v":30}]
[{"$f":"'المصرية يوميات'!A243","v":242},{"$f":"Table1[[#This Row],[الاسم]]","v":"ماهر احمد علي حماد"},{"$f":"Table1[[#This Row],[اجمالي الايام]]","v":11},{"$f":"Table2[[#This Row],[الأيام]]*65","v":715},null,{"$f":"Table2[[#This Row],[الراتب]]-E243","v":715},null,"سعيد عبدالهادي"]
[{"$f":"'المصرية يوميات'!A244","v":243},{"$f":"Table1[[#This Row],[الاسم]]","v":"ماهر حسني عبدالعظيم محمد حمزاوي"},{"$f":"Table1[[#This Row],[اجمالي الايام]]","v":11},{"$f":"Table2[[#This Row],[الأيام]]*65","v":715},715,{"$f":"Table2[[#This Row],[الراتب]]-E244","v":0}]
[{"$f":"'المصرية يوميات'!A245","v":244},{"$f":"Table1[[#This Row],[الاسم]]","v":"مجهول "},{"$f":"Table1[[#This Row],[اجمالي الايام]]","v":0},{"$f":"Table2[[#This Row],[الأيام]]*65","v":0},null,{"$f":"Table2[[#This Row],[الراتب]]-E245","v":0}]
[{"$f":"'المصرية يوميات'!A246","v":245},{"$f":"Table1[[#This Row],[الاسم]]","v":"محمد ابراهيم السيد ابراهيم"},{"$f":"Table1[[#This Row],[اجمالي الايام]]","v":19},{"$f":"Table2[[#This Row],[الأيام]]*65","v":1235},null,{"$f":"Table2[[#This Row],[الراتب]]-E246","v":1235},null,"سعيد عبدالهادي"]
[{"$f":"'المصرية يوميات'!A247","v":246},{"$f":"Table1[[#This Row],[الاسم]]","v":"محمد ابراهيم عاشور عبدالوهاب"},{"$f":"Table1[[#This Row],[اجمالي الايام]]","v":14},{"$f":"Table2[[#This Row],[الأيام]]*65","v":910},null,{"$f":"Table2[[#This Row],[الراتب]]-E247","v":910},null,"سعيد عبدالهادي"]
[{"$f":"'المصرية يوميات'!A248","v":247},{"$f":"Table1[[#This Row],[الاسم]]","v":"محمد ابراهيم محمد ابراهيم"},{"$f":"Table1[[#This Row],[اجمالي الايام]]","v":7},{"$f":"Table2[[#This Row],[الأيام]]*65","v":455},null,{"$f":"Table2[[#This Row],[الراتب]]-E248","v":455}]
[{"$f":"'المصرية يوميات'!A249","v":248},{"$f":"Table1[[#This Row],[الاسم]]","v":"محمد احمد عبدالبديع قوطه"},{"$f":"Table1[[#This Row],[اجمالي الايام]]","v":7},{"$f":"Table2[[#This Row],[الأيام]]*65","v":455},200,{"$f":"Table2[[#This Row],[الراتب]]-E249","v":255}]
[{"$f":"'المصرية يوميات'!A250","v":249},{"$f":"Table1[[#This Row],[الاسم]]","v":"محمد احمد عبدالسميع البدري"},{"$f":"Table1[[#This Row],[اجمالي الايام]]","v":10},{"$f":"Table2[[#This Row],[الأيام]]*65","v":650},null,{"$f":"Table2[[#This Row],[الراتب]]-E250","v":650}]
[{"$f":"'المصرية يوميات'!A251","v":250},{"$f":"Table1[[#This Row],[الاسم]]","v":"محمد احمد عبدالمقصود شتله "},{"$f":"Table1[[#This Row],[اجمالي الايام]]","v":28},{"$f":"Table2[[#This Row],[الأيام]]*65","v":1820},null,{"$f":"Table2[[#This Row],[الراتب]]-E251","v":1820},null,"سعيد عبدالهادي"]
[{"$f":"'المصرية يوميات'!A252","v":251},{"$f":"Table1[[#This Row],[الاسم]]","v":"محمد احمد علي قنديل"},{"$f":"Table1[[#This Row],[اجمالي الايام]]","v":2},{"$f":"Table2[[#This Row],[الأيام]]*65","v":130},null,{"$f":"Table2[[#This Row],[الراتب]]-E252","v":130},null,"سعيد عبدالهادي"]
[{"$f":"'المصرية يوميات'!A253","v":252},{"$f":"Table1[[#This Row],[الاسم]]","v":"محمد احمد محرم مصطفي"},{"$f":"Table1[[#This Row],[اجمالي الايام]]","v":23},{"$f":"Table2[[#This Row],[الأيام]]*65","v":1495},null,{"$f":"Table2[[#This Row],[الراتب]]-E253","v":1495},null,"سعيد عبدالهادي"]
[{"$f":"'المصرية يوميات'!A254","v":253},{"$f":"Table1[[#This Row],[الاسم]]","v":"محمد احمد محمد احمد شلبي"},{"$f":"Table1[[#This Row],[اجمالي الايام]]","v":26},{"$f":"Table2[[#This Row],[الأيام]]*65","v":1690},null,{"$f":"Table2[[#This Row],[الراتب]]-E254","v":1690},null,"سعيد عبدالهادي"]
[{"$f":"'المصرية يوميات'!A255","v":254},{"$f":"Table1[[#This Row],[الاسم]]","v":"محمد اسامه مبارك الشيخ"},{"$f":"Table1[[#This Row],[اجمالي الايام]]","v":7},{"$f":"Table2[[#This Row],[الأيام]]*65","v":455},null,{"$f":"Table2[[#This Row],[الراتب]]-E255","v":455}]
[{"$f":"'المصرية يوميات'!A256","v":255},{"$f":"Table1[[#This Row],[الاسم]]","v":"محمد اشرف محمد محمود"},{"$f":"Table1[[#This Row],[اجمالي الايام]]","v":4},{"$f":"Table2[[#This Row],[الأيام]]*65","v":260},null,{"$f":"Table2[[#This Row],[الراتب]]-E256","v":260}]
[{"$f":"'المصرية يوميات'!A257","v":256},{"$f":"Table1[[#This Row],[الاسم]]","v":"محمد السعيد عبدالجواد درويش"},{"$f":"Table1[[#This Row],[اجمالي الايام]]","v":1},{"$f":"Table2[[#This Row],[الأيام]]*65","v":65},null,{"$f":"Table2[[#This Row],[الراتب]]-E257","v":65}]
[{"$f":"'المصرية يوميات'!A258","v":257},{"$f":"Table1[[#This Row],[الاسم]]","v":"محمد السيد عباس السيد"},{"$f":"Table1[[#This Row],[اجمالي الايام]]","v":1},{"$f":"Table2[[#This Row],[الأيام]]*65","v":65},70,{"$f":"Table2[[#This Row],[الراتب]]-E258","v":-5}]
[{"$f":"'المصرية يوميات'!A259","v":258},{"$f":"Table1[[#This Row],[الاسم]]","v":"محمد العربي جمعه السيد"},{"$f":"Table1[[#This Row],[اجمالي الايام]]","v":9},{"$f":"Table2[[#This Row],[الأيام]]*65","v":585},null,{"$f":"Table2[[#This Row],[الراتب]]-E259","v":585},null,"سعيد عبدالهادي"]
[{"$f":"'المصرية يوميات'!A260","v":259},{"$f":"Table1[[#This Row],[الاسم]]","v":"محمد جابر محمد جابر الشيمي"},{"$f":"Table1[[#This Row],[اجمالي الايام]]","v":1},{"$f":"Table2[[#This Row],[الأيام]]*65","v":65},70,{"$f":"Table2[[#This Row],[الراتب]]-E260","v":-5}]
[{"$f":"'المصرية يوميات'!A261","v":260},{"$f":"Table1[[#This Row],[الاسم]]","v":"محمد جبريل محمود عبدالرحيم"},{"$f":"Table1[[#This Row],[اجمالي الايام]]","v":2},{"$f":"Table2[[#This Row],[الأيام]]*65","v":130},130,{"$f":"Table2[[#This Row],[الراتب]]-E261","v":0}]
[{"$f":"'المصرية يوميات'!A262","v":261},{"$f":"Table1[[#This Row],[الاسم]]","v":"محمد حامد حامد الشيخ"},{"$f":"Table1[[#This Row],[اجمالي الايام]]","v":6},{"$f":"Table2[[#This Row],[الأيام]]*65","v":390},360,{"$f":"Table2[[#This Row],[الراتب]]-E262","v":30}]
[{"$f":"'المصرية يوميات'!A263","v":262},{"$f":"Table1[[#This Row],[الاسم]]","v":"محمد حسني فتح الله فتح الله"},{"$f":"Table1[[#This Row],[اجمالي الايام]]","v":4},{"$f":"Table2[[#This Row],[الأيام]]*65","v":260},260,{"$f":"Table2[[#This Row],[الراتب]]-E263","v":0}]
[{"$f":"'المصرية يوميات'!A264","v":263},{"$f":"Table1[[#This Row],[الاسم]]","v":"محمد حمدي حسن محمد"},{"$f":"Table1[[#This Row],[اجمالي الايام]]","v":3},{"$f":"Table2[[#This Row],[الأيام]]*65","v":195},null,{"$f":"Table2[[#This Row],[الراتب]]-E264","v":195}]
[{"$f":"'المصرية يوميات'!A265","v":264},{"$f":"Table1[[#This Row],[الاسم]]","v":"محمد خالد عمر عبدالحميد"},{"$f":"Table1[[#This Row],[اجمالي الايام]]","v":3},{"$f":"Table2[[#This Row],[الأيام]]*65","v":195},130,{"$f":"Table2[[#This Row],[الراتب]]-E265","v":65}]
[{"$f":"'المصرية يوميات'!A266","v":265},{"$f":"Table1[[#This Row],[الاسم]]","v":"محمد خالد محمود احمد شهاب"},{"$f":"Table1[[#This Row],[اجمالي الايام]]","v":7},{"$f":"Table2[[#This Row],[الأيام]]*65","v":455},455,{"$f":"Table2[[#This Row],[الراتب]]-E266","v":0}]
[{"$f":"'المصرية يوميات'!A267","v":266},{"$f":"Table1[[#This Row],[الاسم]]","v":"محمد داود قطب"},{"$f":"Table1[[#This Row],[اجمالي الايام]]","v":1},{"$f":"Table2[[#This Row],[الأيام]]*65","v":65},null,{"$f":"Table2[[#This Row],[الراتب]]-E267","v":65}]
[{"$f":"'المصرية يوميات'!A268","v":267},{"$f":"Table1[[#This Row],[الاسم]]","v":"محمد رافت احمد السيد"},{"$f":"Table1[[#This Row],[اجمالي الايام]]","v":1},{"$f":"Table2[[#This Row],[الأيام]]*65","v":65},70,{"$f":"Table2[[#This Row],[الراتب]]-E268","v":-5}]
[{"$f":"'المصرية يوميات'!A269","v":268},{"$f":"Table1[[#This Row],[الاسم]]","v":"محمد رضا جاد علام"},{"$f":"Table1[[#This Row],[اجمالي الايام]]","v":1},{"$f":"Table2[[#This Row],[الأيام]]*65","v":65},70,{"$f":"Table2[[#This Row],[الراتب]]-E269","v":-5}]
[{"$f":"'المصرية يوميات'!A270","v":269},{"$f":"Table1[[#This Row],[الاسم]]","v":"محمد رضا سعيد محمد هيبه"},{"$f":"Table1[[#This Row],[اجمالي الايام]]","v":5},{"$f":"Table2[[#This Row],[الأيام]]*65","v":325},null,{"$f":"Table2[[#This Row],[الراتب]]-E270","v":325}]
[{"$f":"'المصرية يوميات'!A271","v":270},{"$f":"Table1[[#This Row],[الاسم]]","v":"محمد رضا ناصف عبدالله مغربي"},{"$f":"Table1[[#This Row],[اجمالي الايام]]","v":21},{"$f":"Table2[[#This Row],[الأيام]]*65","v":1365},null,{"$f":"Table2[[#This Row],[الراتب]]-E271","v":1365},null,"سعيد عبدالهادي"]
[{"$f":"'المصرية يوميات'!A272","v":271},{"$f":"Table1[[#This Row],[الاسم]]","v":"محمد رفعت علي علي "},{"$f":"Table1[[#This Row],[اجمالي الايام]]","v":1},{"$f":"Table2[[#This Row],[الأيام]]*65","v":65},null,{"$f":"Table2[[#This Row],[الراتب]]-E272","v":65}]
[{"$f":"'المصرية يوميات'!A273","v":272},{"$f":"Table1[[#This Row],[الاسم]]","v":"محمد رمضان محمد عبدالغني"},{"$f":"Table1[[#This Row],[اجمالي الايام]]","v":13},{"$f":"Table2[[#This Row],[الأيام]]*65","v":845},null,{"$f":"Table2[[#This Row],[الراتب]]-E273","v":845},null,"سعيد عبدالهادي"]
[{"$f":"'المصرية يوميات'!A274","v":273},{"$f":"Table1[[#This Row],[الاسم]]","v":"محمد سعد بدر السيد حجازي"},{"$f":"Table1[[#This Row],[اجمالي الايام]]","v":14},{"$f":"Table2[[#This Row],[الأيام]]*65","v":910},910,{"$f":"Table2[[#This Row],[الراتب]]-E274","v":0}]
[{"$f":"'المصرية يوميات'!A275","v":274},{"$f":"Table1[[#This Row],[الاسم]]","v":"محمد سعيد احمد الشرع"},{"$f":"Table1[[#This Row],[اجمالي الايام]]","v":2},{"$f":"Table2[[#This Row],[الأيام]]*65","v":130},null,{"$f":"Table2[[#This Row],[الراتب]]-E275","v":130}]
[{"$f":"'المصرية يوميات'!A276","v":275},{"$f":"Table1[[#This Row],[الاسم]]","v":"محمد سعيد محمد حسين سالم"},{"$f":"Table1[[#This Row],[اجمالي الايام]]","v":16},{"$f":"Table2[[#This Row],[الأيام]]*65","v":1040},380,{"$f":"Table2[[#This Row],[الراتب]]-E276","v":660},null,"مراجعه يوميات 11"]
[{"$f":"'المصرية يوميات'!A277","v":276},{"$f":"Table1[[#This Row],[الاسم]]","v":"محمد سعيد محمد فنجوح"},{"$f":"Table1[[#This Row],[اجمالي الايام]]","v":13},{"$f":"Table2[[#This Row],[الأيام]]*65","v":845},null,{"$f":"Table2[[#This Row],[الراتب]]-E277","v":845}]
[{"$f":"'المصرية يوميات'!A278","v":277},{"$f":"Table1[[#This Row],[الاسم]]","v":"محمد شحات حلمي مزروع"},{"$f":"Table1[[#This Row],[اجمالي الايام]]","v":18},{"$f":"Table2[[#This Row],[الأيام]]*65","v":1170},null,{"$f":"Table2[[#This Row],[الراتب]]-E278","v":1170},null,"سعيد عبدالهادي"]
[{"$f":"'المصرية يوميات'!A279","v":278},{"$f":"Table1[[#This Row],[الاسم]]","v":"محمد صبحي شعبان احمد"},{"$f":"Table1[[#This Row],[اجمالي الايام]]","v":2},{"$f":"Table2[[#This Row],[الأيام]]*65","v":130},null,{"$f":"Table2[[#This Row],[الراتب]]-E279","v":130}]
[{"$f":"'المصرية يوميات'!A280","v":279},{"$f":"Table1[[#This Row],[الاسم]]","v":"محمد صلاح محمد مليجي"},{"$f":"Table1[[#This Row],[اجمالي الايام]]","v":1},{"$f":"Table2[[#This Row],[الأيام]]*65","v":65},70,{"$f":"Table2[[#This Row],[الراتب]]-E280","v":-5}]
[{"$f":"'المصرية يوميات'!A281","v":280},{"$f":"Table1[[#This Row],[الاسم]]","v":"محمد عادل توفيق محمد"},{"$f":"Table1[[#This Row],[اجمالي الايام]]","v":1},{"$f":"Table2[[#This Row],[الأيام]]*65","v":65},70,{"$f":"Table2[[#This Row],[الراتب]]-E281","v":-5}]
[{"$f":"'المصرية يوميات'!A282","v":281},{"$f":"Table1[[#This Row],[الاسم]]","v":"محمد عادل فارس هلال"},{"$f":"Table1[[#This Row],[اجمالي الايام]]","v":36},{"$f":"Table2[[#This Row],[الأيام]]*65","v":2340},100,{"$f":"Table2[[#This Row],[الراتب]]-E282","v":2240}]
[{"$f":"'المصرية يوميات'!A283","v":282},{"$f":"Table1[[#This Row],[الاسم]]","v":"محمد عادل محمد عبدالحي"},{"$f":"Table1[[#This Row],[اجمالي الايام]]","v":3},{"$f":"Table2[[#This Row],[الأيام]]*65","v":195},null,{"$f":"Table2[[#This Row],[الراتب]]-E283","v":195}]
[{"$f":"'المصرية يوميات'!A284","v":283},{"$f":"Table1[[#This Row],[الاسم]]","v":"محمد عبدالحميد محمد عبدالحميد"},{"$f":"Table1[[#This Row],[اجمالي الايام]]","v":2},{"$f":"Table2[[#This Row],[الأيام]]*65","v":130},140,{"$f":"Table2[[#This Row],[الراتب]]-E284","v":-10}]
[{"$f":"'المصرية يوميات'!A285","v":284},{"$f":"Table1[[#This Row],[الاسم]]","v":"محمد عبداللطيف محمد عثمان"},{"$f":"Table1[[#This Row],[اجمالي الايام]]","v":17},{"$f":"Table2[[#This Row],[الأيام]]*65","v":1105},640,{"$f":"Table2[[#This Row],[الراتب]]-E285","v":465}]
[{"$f":"'المصرية يوميات'!A286","v":285},{"$f":"Table1[[#This Row],[الاسم]]","v":"محمد عبدالمجيد علي عبدالعال"},{"$f":"Table1[[#This Row],[اجمالي الايام]]","v":18},{"$f":"Table2[[#This Row],[الأيام]]*65","v":1170},null,{"$f":"Table2[[#This Row],[الراتب]]-E286","v":1170},null,"سعيد عبدالهادي"]
[{"$f":"'المصرية يوميات'!A287","v":286},{"$f":"Table1[[#This Row],[الاسم]]","v":"محمد عبدالمنعم مصطفي عيد"},{"$f":"Table1[[#This Row],[اجمالي الايام]]","v":5},{"$f":"Table2[[#This Row],[الأيام]]*65","v":325},140,{"$f":"Table2[[#This Row],[الراتب]]-E287","v":185}]
[{"$f":"'المصرية يوميات'!A288","v":287},{"$f":"Table1[[#This Row],[الاسم]]","v":"محمد عبدالناصر علي علي"},{"$f":"Table1[[#This Row],[اجمالي الايام]]","v":2},{"$f":"Table2[[#This Row],[الأيام]]*65","v":130},null,{"$f":"Table2[[#This Row],[الراتب]]-E288","v":130},null,"سعيد عبدالهادي"]
[{"$f":"'المصرية يوميات'!A289","v":288},{"$f":"Table1[[#This Row],[الاسم]]","v":"محمد عبدالناصرمحمد حسن "},{"$f":"Table1[[#This Row],[اجمالي الايام]]","v":2},{"$f":"Table2[[#This Row],[الأيام]]*65","v":130},70,{"$f":"Table2[[#This Row],[الراتب]]-E289","v":60}]
[{"$f":"'المصرية يوميات'!A290","v":289},{"$f":"Table1[[#This Row],[الاسم]]","v":"محمد عبده عبدالحميد صديق"},{"$f":"Table1[[#This Row],[اجمالي الايام]]","v":10},{"$f":"Table2[[#This Row],[الأيام]]*65","v":650},650,{"$f":"Table2[[#This Row],[الراتب]]-E290","v":0}]
[{"$f":"'المصرية يوميات'!A291","v":290},{"$f":"Table1[[#This Row],[الاسم]]","v":"محمد عطيه عبدالقوي السيد"},{"$f":"Table1[[#This Row],[اجمالي الايام]]","v":24},{"$f":"Table2[[#This Row],[الأيام]]*65","v":1560},1560,{"$f":"Table2[[#This Row],[الراتب]]-E291","v":0}]
[{"$f":"'المصرية يوميات'!A292","v":291},{"$f":"Table1[[#This Row],[الاسم]]","v":"محمد علي رجب العبساوي"},{"$f":"Table1[[#This Row],[اجمالي الايام]]","v":1},{"$f":"Table2[[#This Row],[الأيام]]*65","v":65},null,{"$f":"Table2[[#This Row],[الراتب]]-E292","v":65}]
[{"$f":"'المصرية يوميات'!A293","v":292},{"$f":"Table1[[#This Row],[الاسم]]","v":"محمد علي رمضان علي"},{"$f":"Table1[[#This Row],[اجمالي الايام]]","v":3},{"$f":"Table2[[#This Row],[الأيام]]*65","v":195},null,{"$f":"Table2[[#This Row],[الراتب]]-E293","v":195}]
[{"$f":"'المصرية يوميات'!A294","v":293},{"$f":"Table1[[#This Row],[الاسم]]","v":"محمد علي محمد جمعه عمران"},{"$f":"Table1[[#This Row],[اجمالي الايام]]","v":19},{"$f":"Table2[[#This Row],[الأيام]]*65","v":1235},null,{"$f":"Table2[[#This Row],[الراتب]]-E294","v":1235},null,"سعيد عبدالهادي"]
[{"$f":"'المصرية يوميات'!A295","v":294},{"$f":"Table1[[#This Row],[الاسم]]","v":"محمد عماد محمد حمد"},{"$f":"Table1[[#This Row],[اجمالي الايام]]","v":2},{"$f":"Table2[[#This Row],[الأيام]]*65","v":130},140,{"$f":"Table2[[#This Row],[الراتب]]-E295","v":-10}]
[{"$f":"'المصرية يوميات'!A296","v":295},{"$f":"Table1[[#This Row],[الاسم]]","v":"محمد عمران حسن محمد"},{"$f":"Table1[[#This Row],[اجمالي الايام]]","v":2},{"$f":"Table2[[#This Row],[الأيام]]*65","v":130},null,{"$f":"Table2[[#This Row],[الراتب]]-E296","v":130},null,"سعيد عبدالهادي"]
[{"$f":"'المصرية يوميات'!A297","v":296},{"$f":"Table1[[#This Row],[الاسم]]","v":"محمد فتحي السيد العطار"},{"$f":"Table1[[#This Row],[اجمالي الايام]]","v":6},{"$f":"Table2[[#This Row],[الأيام]]*65","v":390},390,{"$f":"Table2[[#This Row],[الراتب]]-E297","v":0}]
[{"$f":"'المصرية يوميات'!A298","v":297},{"$f":"Table1[[#This Row],[الاسم]]","v":"محمد فوزي حوده"},{"$f":"Table1[[#This Row],[اجمالي الايام]]","v":1},{"$f":"Table2[[#This Row],[الأيام]]*65","v":65},70,{"$f":"Table2[[#This Row],[الراتب]]-E298","v":-5}]
[{"$f":"'المصرية يوميات'!A299","v":298},{"$f":"Table1[[#This Row],[الاسم]]","v":"محمد مجدي احمد الشرقاوي"},{"$f":"Table1[[#This Row],[اجمالي الايام]]","v":1},{"$f":"Table2[[#This Row],[الأيام]]*65","v":65},null,{"$f":"Table2[[#This Row],[الراتب]]-E299","v":65},null,"سعيد عبدالهادي"]
[{"$f":"'المصرية يوميات'!A300","v":299},{"$f":"Table1[[#This Row],[الاسم]]","v":"محمد مجدي محمد احمد عبدالعاطي"},{"$f":"Table1[[#This Row],[اجمالي الايام]]","v":2},{"$f":"Table2[[#This Row],[الأيام]]*65","v":130},null,{"$f":"Table2[[#This Row],[الراتب]]-E300","v":130}]
[{"$f":"'المصرية يوميات'!A301","v":300},{"$f":"Table1[[#This Row],[الاسم]]","v":"محمد محمد سليم علي"},{"$f":"Table1[[#This Row],[اجمالي الايام]]","v":1},{"$f":"Table2[[#This Row],[الأيام]]*65","v":65},70,{"$f":"Table2[[#This Row],[الراتب]]-E301","v":-5}]
[{"$f":"'المصرية يوميات'!A302","v":301},{"$f":"Table1[[#This Row],[الاسم]]","v":"محمد محمود شعبان ابراهيم"},{"$f":"Table1[[#This Row],[اجمالي الايام]]","v":12},{"$f":"Table2[[#This Row],[الأيام]]*65","v":780},400,{"$f":"Table2[[#This Row],[الراتب]]-E302","v":380}]
[{"$f":"'المصرية يوميات'!A303","v":302},{"$f":"Table1[[#This Row],[الاسم]]","v":"محمد مدني طاهر خضراوي"},{"$f":"Table1[[#This Row],[اجمالي الايام]]","v":35},{"$f":"Table2[[#This Row],[الأيام]]*65","v":2275},150,{"$f":"Table2[[#This Row],[الراتب]]-E303","v":2125}]
[{"$f":"'المصرية يوميات'!A304","v":303},{"$f":"Table1[[#This Row],[الاسم]]","v":"محمد مصطفي ربيع عطيه"},{"$f":"Table1[[#This Row],[اجمالي الايام]]","v":1},{"$f":"Table2[[#This Row],[الأيام]]*65","v":65},null,{"$f":"Table2[[#This Row],[الراتب]]-E304","v":65}]
[{"$f":"'المصرية يوميات'!A305","v":304},{"$f":"Table1[[#This Row],[الاسم]]","v":"محمد ممدوح امين سيد احمد"},{"$f":"Table1[[#This Row],[اجمالي الايام]]","v":7},{"$f":"Table2[[#This Row],[الأيام]]*65","v":455},null,{"$f":"Table2[[#This Row],[الراتب]]-E305","v":455},null,"سعيد عبدالهادي"]
[{"$f":"'المصرية يوميات'!A306","v":305},{"$f":"Table1[[#This Row],[الاسم]]","v":"محمد منصور زيدان قاسم"},{"$f":"Table1[[#This Row],[اجمالي الايام]]","v":23},{"$f":"Table2[[#This Row],[الأيام]]*65","v":1495},null,{"$f":"Table2[[#This Row],[الراتب]]-E306","v":1495}]
[{"$f":"'المصرية يوميات'!A307","v":306},{"$f":"Table1[[#This Row],[الاسم]]","v":"محمد منصور سعيد"},{"$f":"Table1[[#This Row],[اجمالي الايام]]","v":1},{"$f":"Table2[[#This Row],[الأيام]]*65","v":65},null,{"$f":"Table2[[#This Row],[الراتب]]-E307","v":65}]
[{"$f":"'المصرية يوميات'!A308","v":307},{"$f":"Table1[[#This Row],[الاسم]]","v":"محمد منصور عبدالمجيد زيدان"},{"$f":"Table1[[#This Row],[اجمالي الايام]]","v":23},{"$f":"Table2[[#This Row],[الأيام]]*65","v":1495},100,{"$f":"Table2[[#This Row],[الراتب]]-E308","v":1395}]
[{"$f":"'المصرية يوميات'!A309","v":308},{"$f":"Table1[[#This Row],[الاسم]]","v":"محمد منصور عبدالمرضي السرس"},{"$f":"Table1[[#This Row],[اجمالي الايام]]","v":2},{"$f":"Table2[[#This Row],[الأيام]]*65","v":130},null,{"$f":"Table2[[#This Row],[الراتب]]-E309","v":130}]
[{"$f":"'المصرية يوميات'!A310","v":309},{"$f":"Table1[[#This Row],[الاسم]]","v":"محمد مهدي سالم سليمان"},{"$f":"Table1[[#This Row],[اجمالي الايام]]","v":27},{"$f":"Table2[[#This Row],[الأيام]]*65","v":1755},500,{"$f":"Table2[[#This Row],[الراتب]]-E310","v":1255}]
[{"$f":"'المصرية يوميات'!A311","v":310},{"$f":"Table1[[#This Row],[الاسم]]","v":"محمد ناصف عبدالله"},{"$f":"Table1[[#This Row],[اجمالي الايام]]","v":1},{"$f":"Table2[[#This Row],[الأيام]]*65","v":65},null,{"$f":"Table2[[#This Row],[الراتب]]-E311","v":65},null,"سعيد عبدالهادي"]
[{"$f":"'المصرية يوميات'!A312","v":311},{"$f":"Table1[[#This Row],[الاسم]]","v":"محمد نشات محمد احمد مرسي"},{"$f":"Table1[[#This Row],[اجمالي الايام]]","v":19},{"$f":"Table2[[#This Row],[الأيام]]*65","v":1235},1235,{"$f":"Table2[[#This Row],[الراتب]]-E312","v":0}]
[{"$f":"'المصرية يوميات'!A313","v":312},{"$f":"Table1[[#This Row],[الاسم]]","v":"محمود ابراهيم عاشور"},{"$f":"Table1[[#This Row],[اجمالي الايام]]","v":2},{"$f":"Table2[[#This Row],[الأيام]]*65","v":130},null,{"$f":"Table2[[#This Row],[الراتب]]-E313","v":130},null,"سعيد عبدالهادي"]
[{"$f":"'المصرية يوميات'!A314","v":313},{"$f":"Table1[[#This Row],[الاسم]]","v":"محمود ابراهيم عبدالعزيز"},{"$f":"Table1[[#This Row],[اجمالي الايام]]","v":3},{"$f":"Table2[[#This Row],[الأيام]]*65","v":195},195,{"$f":"Table2[[#This Row],[الراتب]]-E314","v":0}]
[{"$f":"'المصرية يوميات'!A315","v":314},{"$f":"Table1[[#This Row],[الاسم]]","v":"محمود احمد محمد مبروك"},{"$f":"Table1[[#This Row],[اجمالي الايام]]","v":24},{"$f":"Table2[[#This Row],[الأيام]]*65","v":1560},null,{"$f":"Table2[[#This Row],[الراتب]]-E315","v":1560},null,"سعيد عبدالهادي"]
[{"$f":"'المصرية يوميات'!A316","v":315},{"$f":"Table1[[#This Row],[الاسم]]","v":"محمود احمد محمود جوده"},{"$f":"Table1[[#This Row],[اجمالي الايام]]","v":2},{"$f":"Table2[[#This Row],[الأيام]]*65","v":130},null,{"$f":"Table2[[#This Row],[الراتب]]-E316","v":130}]
[{"$f":"'المصرية يوميات'!A317","v":316},{"$f":"Table1[[#This Row],[الاسم]]","v":"محمود اشرف محمد محمود"},{"$f":"Table1[[#This Row],[اجمالي الايام]]","v":23},{"$f":"Table2[[#This Row],[الأيام]]*65","v":1495},null,{"$f":"Table2[[#This Row],[الراتب]]-E317","v":1495},null,"سعيد عبدالهادي"]
[{"$f":"'المصرية يوميات'!A318","v":317},{"$f":"Table1[[#This Row],[الاسم]]","v":"محمود بغدادي توفيق"},{"$f":"Table1[[#This Row],[اجمالي الايام]]","v":35},{"$f":"Table2[[#This Row],[الأيام]]*65","v":2275},50,{"$f":"Table2[[#This Row],[الراتب]]-E318","v":2225}]
[{"$f":"'المصرية يوميات'!A319","v":318},{"$f":"Table1[[#This Row],[الاسم]]","v":"محمود حسن السيد احمد ابراهيم"},{"$f":"Table1[[#This Row],[اجمالي الايام]]","v":2},{"$f":"Table2[[#This Row],[الأيام]]*65","v":130},130,{"$f":"Table2[[#This Row],[الراتب]]-E319","v":0}]
[{"$f":"'المصرية يوميات'!A320","v":319},{"$f":"Table1[[#This Row],[الاسم]]","v":"محمود حنفي محمود هيكل"},{"$f":"Table1[[#This Row],[اجمالي الايام]]","v":19},{"$f":"Table2[[#This Row],[الأيام]]*65","v":1235},850,{"$f":"Table2[[#This Row],[الراتب]]-E320","v":385}]
[{"$f":"'المصرية يوميات'!A321","v":320},{"$f":"Table1[[#This Row],[الاسم]]","v":"محمود خالد معوض البهلول"},{"$f":"Table1[[#This Row],[اجمالي الايام]]","v":5},{"$f":"Table2[[#This Row],[الأيام]]*65","v":325},325,{"$f":"Table2[[#This Row],[الراتب]]-E321","v":0}]
[{"$f":"'المصرية يوميات'!A322","v":321},{"$f":"Table1[[#This Row],[الاسم]]","v":"محمود خميس محمد فرج"},{"$f":"Table1[[#This Row],[اجمالي الايام]]","v":1},{"$f":"Table2[[#This Row],[الأيام]]*65","v":65},null,{"$f":"Table2[[#This Row],[الراتب]]-E322","v":65}]
[{"$f":"'المصرية يوميات'!A323","v":322},{"$f":"Table1[[#This Row],[الاسم]]","v":"محمود داود قطب محمد"},{"$f":"Table1[[#This Row],[اجمالي الايام]]","v":2},{"$f":"Table2[[#This Row],[الأيام]]*65","v":130},null,{"$f":"Table2[[#This Row],[الراتب]]-E323","v":130}]
[{"$f":"'المصرية يوميات'!A324","v":323},{"$f":"Table1[[#This Row],[الاسم]]","v":"محمود سامي قرني محمد"},{"$f":"Table1[[#This Row],[اجمالي الايام]]","v":1},{"$f":"Table2[[#This Row],[الأيام]]*65","v":65},null,{"$f":"Table2[[#This Row],[الراتب]]-E324","v":65}]
[{"$f":"'المصرية يوميات'!A325","v":324},{"$f":"Table1[[#This Row],[الاسم]]","v":"محمود عبدالسميع السعيد عبدالجواد"},{"$f":"Table1[[#This Row],[اجمالي الايام]]","v":21},{"$f":"Table2[[#This Row],[الأيام]]*65","v":1365},230,{"$f":"Table2[[#This Row],[الراتب]]-E325","v":1135}]
[{"$f":"'المصرية يوميات'!A326","v":325},{"$f":"Table1[[#This Row],[الاسم]]","v":"محمود عبدالعزيز مهني محمد"},{"$f":"Table1[[#This Row],[اجمالي الايام]]","v":2},{"$f":"Table2[[#This Row],[الأيام]]*65","v":130},130,{"$f":"Table2[[#This Row],[الراتب]]-E326","v":0}]
[{"$f":"'المصرية يوميات'!A327","v":326},{"$f":"Table1[[#This Row],[الاسم]]","v":"محمود عبدالغني محمد عبدالغني"},{"$f":"Table1[[#This Row],[اجمالي الايام]]","v":1},{"$f":"Table2[[#This Row],[الأيام]]*65","v":65},70,{"$f":"Table2[[#This Row],[الراتب]]-E327","v":-5}]
[{"$f":"'المصرية يوميات'!A328","v":327},{"$f":"Table1[[#This Row],[الاسم]]","v":"محمود عبدالكريم حسان"},{"$f":"Table1[[#This Row],[اجمالي الايام]]","v":2},{"$f":"Table2[[#This Row],[الأيام]]*65","v":130},140,{"$f":"Table2[[#This Row],[الراتب]]-E328","v":-10}]
[{"$f":"'المصرية يوميات'!A329","v":328},{"$f":"Table1[[#This Row],[الاسم]]","v":"محمود علي محمد معبد"},{"$f":"Table1[[#This Row],[اجمالي الايام]]","v":1},{"$f":"Table2[[#This Row],[الأيام]]*65","v":65},70,{"$f":"Table2[[#This Row],[الراتب]]-E329","v":-5}]
[{"$f":"'المصرية يوميات'!A330","v":329},{"$f":"Table1[[#This Row],[الاسم]]","v":"محمود مجدي محمود شعلان"},{"$f":"Table1[[#This Row],[اجمالي الايام]]","v":12},{"$f":"Table2[[#This Row],[الأيام]]*65","v":780},690,{"$f":"Table2[[#This Row],[الراتب]]-E330","v":90}]
[{"$f":"'المصرية يوميات'!A331","v":330},{"$f":"Table1[[#This Row],[الاسم]]","v":"محمود محمد ابرهيم حسن جعفر"},{"$f":"Table1[[#This Row],[اجمالي الايام]]","v":21},{"$f":"Table2[[#This Row],[الأيام]]*65","v":1365},null,{"$f":"Table2[[#This Row],[الراتب]]-E331","v":1365}]
[{"$f":"'المصرية يوميات'!A332","v":331},{"$f":"Table1[[#This Row],[الاسم]]","v":"محمود محمد عبدالفتاح سيد احمد"},{"$f":"Table1[[#This Row],[اجمالي الايام]]","v":17},{"$f":"Table2[[#This Row],[الأيام]]*65","v":1105},1105,{"$f":"Table2[[#This Row],[الراتب]]-E332","v":0}]
[{"$f":"'المصرية يوميات'!A333","v":332},{"$f":"Table1[[#This Row],[الاسم]]","v":"محمود محمد قطب"},{"$f":"Table1[[#This Row],[اجمالي الايام]]","v":1},{"$f":"Table2[[#This Row],[الأيام]]*65","v":65},50,{"$f":"Table2[[#This Row],[الراتب]]-E333","v":15}]
[{"$f":"'المصرية يوميات'!A334","v":333},{"$f":"Table1[[#This Row],[الاسم]]","v":"محمود محمد محمد حامد الزرقاني"},{"$f":"Table1[[#This Row],[اجمالي الايام]]","v":27},{"$f":"Table2[[#This Row],[الأيام]]*65","v":1755},700,{"$f":"Table2[[#This Row],[الراتب]]-E334","v":1055}]
[{"$f":"'المصرية يوميات'!A335","v":334},{"$f":"Table1[[#This Row],[الاسم]]","v":"محمود محمد مصطفي دويدار"},{"$f":"Table1[[#This Row],[اجمالي الايام]]","v":37},{"$f":"Table2[[#This Row],[الأيام]]*65","v":2405},115,{"$f":"Table2[[#This Row],[الراتب]]-E335","v":2290}]
[{"$f":"'المصرية يوميات'!A336","v":335},{"$f":"Table1[[#This Row],[الاسم]]","v":"محمود يوسف محمود محمد"},{"$f":"Table1[[#This Row],[اجمالي الايام]]","v":25},{"$f":"Table2[[#This Row],[الأيام]]*65","v":1625},1625,{"$f":"Table2[[#This Row],[الراتب]]-E336","v":0}]
[{"$f":"'المصرية يوميات'!A337","v":336},{"$f":"Table1[[#This Row],[الاسم]]","v":"مصطفي احمد عبدالحميد عبدالمنصف"},{"$f":"Table1[[#This Row],[اجمالي الايام]]","v":12},{"$f":"Table2[[#This Row],[الأيام]]*65","v":780},null,{"$f":"Table2[[#This Row],[الراتب]]-E337","v":780},null,"سعيد عبدالهادي"]
[{"$f":"'المصرية يوميات'!A338","v":337},{"$f":"Table1[[#This Row],[الاسم]]","v":"مصطفي احمد عبدالعزيز عبدالمنصف"},{"$f":"Table1[[#This Row],[اجمالي الايام]]","v":4},{"$f":"Table2[[#This Row],[الأيام]]*65","v":260},null,{"$f":"Table2[[#This Row],[الراتب]]-E338","v":260}]
[{"$f":"'المصرية يوميات'!A339","v":338},{"$f":"Table1[[#This Row],[الاسم]]","v":"مصطفي عاطف فضل"},{"$f":"Table1[[#This Row],[اجمالي الايام]]","v":7},{"$f":"Table2[[#This Row],[الأيام]]*65","v":455},200,{"$f":"Table2[[#This Row],[الراتب]]-E339","v":255}]
[{"$f":"'المصرية يوميات'!A340","v":339},{"$f":"Table1[[#This Row],[الاسم]]","v":"مصطفي عبدالحميد علي القصاص"},{"$f":"Table1[[#This Row],[اجمالي الايام]]","v":1},{"$f":"Table2[[#This Row],[الأيام]]*65","v":65},null,{"$f":"Table2[[#This Row],[الراتب]]-E340","v":65}]
[{"$f":"'المصرية يوميات'!A341","v":340},{"$f":"Table1[[#This Row],[الاسم]]","v":"مصطفي عبدالعزيز علي عبدالعزيز"},{"$f":"Table1[[#This Row],[اجمالي الايام]]","v":4},{"$f":"Table2[[#This Row],[الأيام]]*65","v":260},null,{"$f":"Table2[[#This Row],[الراتب]]-E341","v":260}]
[{"$f":"'المصرية يوميات'!A342","v":341},{"$f":"Table1[[#This Row],[الاسم]]","v":"مصطفي عبدالمنعم محمد ابراهيم"},{"$f":"Table1[[#This Row],[اجمالي الايام]]","v":13},{"$f":"Table2[[#This Row],[الأيام]]*65","v":845},null,{"$f":"Table2[[#This Row],[الراتب]]-E342","v":845},null,"سعيد عبدالهادي"]
[{"$f":"'المصرية يوميات'!A343","v":342},{"$f":"Table1[[#This Row],[الاسم]]","v":"مصطفي فتحي امين سيد احمد"},{"$f":"Table1[[#This Row],[اجمالي الايام]]","v":13},{"$f":"Table2[[#This Row],[الأيام]]*65","v":845},null,{"$f":"Table2[[#This Row],[الراتب]]-E343","v":845},null,"سعيد عبدالهادي"]
[{"$f":"'المصرية يوميات'!A344","v":343},{"$f":"Table1[[#This Row],[الاسم]]","v":"مصطفي محمد عبدالمنعم البربري"},{"$f":"Table1[[#This Row],[اجمالي الايام]]","v":1},{"$f":"Table2[[#This Row],[الأيام]]*65","v":65},null,{"$f":"Table2[[#This Row],[الراتب]]-E344","v":65}]
[{"$f":"'المصرية يوميات'!A345","v":344},{"$f":"Table1[[#This Row],[الاسم]]","v":"مصطفي محمد عثمان علي"},{"$f":"Table1[[#This Row],[اجمالي الايام]]","v":1},{"$f":"Table2[[#This Row],[الأيام]]*65","v":65},70,{"$f":"Table2[[#This Row],[الراتب]]-E345","v":-5}]
[{"$f":"'المصرية يوميات'!A346","v":345},{"$f":"Table1[[#This Row],[الاسم]]","v":"مصطفي محمد موسي محمد"},{"$f":"Table1[[#This Row],[اجمالي الايام]]","v":15},{"$f":"Table2[[#This Row],[الأيام]]*65","v":975},null,{"$f":"Table2[[#This Row],[الراتب]]-E346","v":975},null,"سعيد عبدالهادي"]
[{"$f":"'المصرية يوميات'!A347","v":346},{"$f":"Table1[[#This Row],[الاسم]]","v":"مصطفي محمود جمعه السيد عطيه"},{"$f":"Table1[[#This Row],[اجمالي الايام]]","v":23},{"$f":"Table2[[#This Row],[الأيام]]*65","v":1495},null,{"$f":"Table2[[#This Row],[الراتب]]-E347","v":1495},null,"سعيد عبدالهادي"]
[{"$f":"'المصرية يوميات'!A348","v":347},{"$f":"Table1[[#This Row],[الاسم]]","v":"مصطفي معوض علي عماره"},{"$f":"Table1[[#This Row],[اجمالي الايام]]","v":1},{"$f":"Table2[[#This Row],[الأيام]]*65","v":65},null,{"$f":"Table2[[#This Row],[الراتب]]-E348","v":65}]
[{"$f":"'المصرية يوميات'!A349","v":348},{"$f":"Table1[[#This Row],[الاسم]]","v":"مصطفي موسي محمد موسي"},{"$f":"Table1[[#This Row],[اجمالي الايام]]","v":1},{"$f":"Table2[[#This Row],[الأيام]]*65","v":65},null,{"$f":"Table2[[#This Row],[الراتب]]-E349","v":65},null,"سعيد عبدالهادي"]
[{"$f":"'المصرية يوميات'!A350","v":349},{"$f":"Table1[[#This Row],[الاسم]]","v":"معتز سمير عبدربه محمد"},{"$f":"Table1[[#This Row],[اجمالي الايام]]","v":18},{"$f":"Table2[[#This Row],[الأيام]]*65","v":1170},null,{"$f":"Table2[[#This Row],[الراتب]]-E350","v":1170},null,"سعيد عبدالهادي"]
[{"$f":"'المصرية يوميات'!A351","v":350},{"$f":"Table1[[#This Row],[الاسم]]","v":"منير سعيد الخطاب الفزيري"},{"$f":"Table1[[#This Row],[اجمالي الايام]]","v":2},{"$f":"Table2[[#This Row],[الأيام]]*65","v":130},140,{"$f":"Table2[[#This Row],[الراتب]]-E351","v":-10}]
[{"$f":"'المصرية يوميات'!A352","v":351},{"$f":"Table1[[#This Row],[الاسم]]","v":"مهند محمد احمد صالح"},{"$f":"Table1[[#This Row],[اجمالي الايام]]","v":1},{"$f":"Table2[[#This Row],[الأيام]]*65","v":65},null,{"$f":"Table2[[#This Row],[الراتب]]-E352","v":65}]
[{"$f":"'المصرية يوميات'!A353","v":352},{"$f":"Table1[[#This Row],[الاسم]]","v":"ميلر ميلاد فوزي يعقوب"},{"$f":"Table1[[#This Row],[اجمالي الايام]]","v":20},{"$f":"Table2[[#This Row],[الأيام]]*65","v":1300},1110,{"$f":"Table2[[#This Row],[الراتب]]-E353","v":190}]
[{"$f":"'المصرية يوميات'!A354","v":353},{"$f":"Table1[[#This Row],[الاسم]]","v":"مينا نادي عزيز غالي"},{"$f":"Table1[[#This Row],[اجمالي الايام]]","v":3},{"$f":"Table2[[#This Row],[الأيام]]*65","v":195},195,{"$f":"Table2[[#This Row],[الراتب]]-E354","v":0}]
[{"$f":"'المصرية يوميات'!A355","v":354},{"$f":"Table1[[#This Row],[الاسم]]","v":"نادر محمد ادم عبدالرحمن"},{"$f":"Table1[[#This Row],[اجمالي الايام]]","v":2},{"$f":"Table2[[#This Row],[الأيام]]*65","v":130},130,{"$f":"Table2[[#This Row],[الراتب]]-E355","v":0}]
[{"$f":"'المصرية يوميات'!A356","v":355},{"$f":"Table1[[#This Row],[الاسم]]","v":"نادر محمد شبابي علي"},{"$f":"Table1[[#This Row],[اجمالي الايام]]","v":3},{"$f":"Table2[[#This Row],[الأيام]]*65","v":195},100,{"$f":"Table2[[#This Row],[الراتب]]-E356","v":95}]
[{"$f":"'المصرية يوميات'!A357","v":356},{"$f":"Table1[[#This Row],[الاسم]]","v":"نادي صلاح محمد مصباح"},{"$f":"Table1[[#This Row],[اجمالي الايام]]","v":5},{"$f":"Table2[[#This Row],[الأيام]]*65","v":325},325,{"$f":"Table2[[#This Row],[الراتب]]-E357","v":0}]
[{"$f":"'المصرية يوميات'!A358","v":357},{"$f":"Table1[[#This Row],[الاسم]]","v":"نصر شعبان الشحات"},{"$f":"Table1[[#This Row],[اجمالي الايام]]","v":1},{"$f":"Table2[[#This Row],[الأيام]]*65","v":65},null,{"$f":"Table2[[#This Row],[الراتب]]-E358","v":65}]
[{"$f":"'المصرية يوميات'!A359","v":358},{"$f":"Table1[[#This Row],[الاسم]]","v":"نصر محمد احمد صالح"},{"$f":"Table1[[#This Row],[اجمالي الايام]]","v":9},{"$f":"Table2[[#This Row],[الأيام]]*65","v":585},null,{"$f":"Table2[[#This Row],[الراتب]]-E359","v":585}]
[{"$f":"'المصرية يوميات'!A360","v":359},{"$f":"Table1[[#This Row],[الاسم]]","v":"هيثم احمد جابر الدماطي"},{"$f":"Table1[[#This Row],[اجمالي الايام]]","v":3},{"$f":"Table2[[#This Row],[الأيام]]*65","v":195},null,{"$f":"Table2[[#This Row],[الراتب]]-E360","v":195}]
[{"$f":"'المصرية يوميات'!A361","v":360},{"$f":"Table1[[#This Row],[الاسم]]","v":"وائل رجب فتح الله حماده"},{"$f":"Table1[[#This Row],[اجمالي الايام]]","v":2},{"$f":"Table2[[#This Row],[الأيام]]*65","v":130},null,{"$f":"Table2[[#This Row],[الراتب]]-E361","v":130}]
[{"$f":"'المصرية يوميات'!A362","v":361},{"$f":"Table1[[#This Row],[الاسم]]","v":"وائل سالم محمد الفقي"},{"$f":"Table1[[#This Row],[اجمالي الايام]]","v":6},{"$f":"Table2[[#This Row],[الأيام]]*65","v":390},70,{"$f":"Table2[[#This Row],[الراتب]]-E362","v":320}]
[{"$f":"'المصرية يوميات'!A363","v":362},{"$f":"Table1[[#This Row],[الاسم]]","v":"وجيه محسب احمد قرشم"},{"$f":"Table1[[#This Row],[اجمالي الايام]]","v":9},{"$f":"Table2[[#This Row],[الأيام]]*65","v":585},585,{"$f":"Table2[[#This Row],[الراتب]]-E363","v":0}]
[{"$f":"'المصرية يوميات'!A364","v":363},{"$f":"Table1[[#This Row],[الاسم]]","v":"وحيد عبدالعزيز عبدالعزيز"},{"$f":"Table1[[#This Row],[اجمالي الايام]]","v":4},{"$f":"Table2[[#This Row],[الأيام]]*65","v":260},100,{"$f":"Table2[[#This Row],[الراتب]]-E364","v":160}]
[{"$f":"'المصرية يوميات'!A365","v":364},{"$f":"Table1[[#This Row],[الاسم]]","v":"وليد خالد عبدالقادر"},{"$f":"Table1[[#This Row],[اجمالي الايام]]","v":1},{"$f":"Table2[[#This Row],[الأيام]]*65","v":65},null,{"$f":"Table2[[#This Row],[الراتب]]-E365","v":65}]
[{"$f":"'المصرية يوميات'!A366","v":365},{"$f":"Table1[[#This Row],[الاسم]]","v":"وليد سعيد عبدالحميد"},{"$f":"Table1[[#This Row],[اجمالي الايام]]","v":1},{"$f":"Table2[[#This Row],[الأيام]]*65","v":65},null,{"$f":"Table2[[#This Row],[الراتب]]-E366","v":65}]
[{"$f":"'المصرية يوميات'!A367","v":366},{"$f":"Table1[[#This Row],[الاسم]]","v":"ياسين صفوت حامد زيدان"},{"$f":"Table1[[#This Row],[اجمالي الايام]]","v":4},{"$f":"Table2[[#This Row],[الأيام]]*65","v":260},255,{"$f":"Table2[[#This Row],[الراتب]]-E367","v":5}]
[{"$f":"'المصرية يوميات'!A368","v":367},{"$f":"Table1[[#This Row],[الاسم]]","v":"يوسف رشاد ابراهيم غنيم"},{"$f":"Table1[[#This Row],[اجمالي الايام]]","v":8},{"$f":"Table2[[#This Row],[الأيام]]*65","v":520},140,{"$f":"Table2[[#This Row],[الراتب]]-E368","v":380}]
[{"$f":"'المصرية يوميات'!A369","v":368},{"$f":"Table1[[#This Row],[الاسم]]","v":"يوسف رشاد غنيم"},{"$f":"Table1[[#This Row],[اجمالي الايام]]","v":1},{"$f":"Table2[[#This Row],[الأيام]]*65","v":65},null,{"$f":"Table2[[#This Row],[الراتب]]-E369","v":65}]
[{"$f":"'المصرية يوميات'!A370","v":369},{"$f":"Table1[[#This Row],[الاسم]]","v":"يوسف صبحي سعيد صابر"},{"$f":"Table1[[#This Row],[اجمالي الايام]]","v":2},{"$f":"Table2[[#This Row],[الأيام]]*65","v":130},null,{"$f":"Table2[[#This Row],[الراتب]]-E370","v":130},null,"سعيد عبدالهادي"]
[{"$f":"'المصرية يوميات'!A371","v":370},{"$f":"Table1[[#This Row],[الاسم]]","v":"يوسف صبحي عبدالمرضي"},{"$f":"Table1[[#This Row],[اجمالي الايام]]","v":11},{"$f":"Table2[[#This Row],[الأيام]]*65","v":715},600,{"$f":"Table2[[#This Row],[الراتب]]-E371","v":115}]
[{"$f":"'المصرية يوميات'!A372","v":371},{"$f":"Table1[[#This Row],[الاسم]]","v":"يوسف فاروق محمود عبدالحافظ"},{"$f":"Table1[[#This Row],[اجمالي الايام]]","v":1},{"$f":"Table2[[#This Row],[الأيام]]*65","v":65},null,{"$f":"Table2[[#This Row],[الراتب]]-E372","v":65}]
[{"$f":"'المصرية يوميات'!A373","v":372},{"$f":"Table1[[#This Row],[الاسم]]","v":"يوسف محمد محمد زايد"},{"$f":"Table1[[#This Row],[اجمالي الايام]]","v":2},{"$f":"Table2[[#This Row],[الأيام]]*65","v":130},null,{"$f":"Table2[[#This Row],[الراتب]]-E373","v":130}]
[{"$f":"'المصرية يوميات'!A374","v":0},{"$f":"Table1[[#This Row],[الاسم]]","v":"مــــــــــــجــــــــــــــــمـــــــــــــــوع"},{"$f":"Table1[[#This Row],[اجمالي الايام]]","v":2896},{"$f":"Table2[[#This Row],[الأيام]]*65","v":188240},{"$f":"SUM(E2:E373)","v":64785},{"$f":"SUM(F2:F373)","v":123455}]
[{"$f":"'المصرية يوميات'!A375","v":0},null,-1112,{"$f":"Table2[[#This Row],[الأيام]]*65","v":-72280}]
[null,null,null,{"$f":"D374+D375","v":115960},{"$f":"E374","v":64785},{"$f":"Table2[[#Totals],[الراتب]]-E376","v":51175}]

{"sheet":"الجل يوميات ","index":2,"n_rows":305,"n_cols":34,"rows_kept":305,"cut":false,"hidden":true,"merged":[]}
["م","الاسم","01-يوليو","02-يوليو","03-يوليو","04-يوليو","05-يوليو","06-يوليو","07-يوليو","08-يوليو","09-يوليو","10-يوليو","11-يوليو","12-يوليو","13-يوليو","14-يوليو","15-يوليو","16-يوليو","17-يوليو","18-يوليو","19-يوليو","20-يوليو","21-يوليو","22-يوليو","23-يوليو","24-يوليو","25-يوليو","26-يوليو","27-يوليو","28-يوليو","29-يوليو","30-يوليو","31-يوليو","الاجمالي"]
[1,"اباذر عثمان احمد فضل",null,null,null,null,null,null,null,null,null,null,null,null,null,null,null,null,1,1,null,null,1,1,1,1,1,null,null,null,null,null,null,{"$f":"SUM(C2:AG2)","v":7}]
[2,"ابانوب اشرف حبيب",null,null,null,null,null,null,1,null,null,null,null,null,null,null,null,null,null,null,null,null,null,null,null,null,null,null,null,null,null,null,null,1]
[3,"ابراهيم السيد ابراهيم عبدالمجيد",null,null,null,null,null,null,null,null,0.5,1,null,null,null,1,1,null,null,null,null,null,null,null,null,null,null,null,null,null,null,null,null,3.5]
[4,"ابراهيم الطيب ابراهيم",0.72299999999999998,1,1,null,null,null,null,null,null,null,null,null,null,null,null,null,null,null,null,null,null,null,null,null,null,null,null,null,null,null,null,2.7229999999999999]
[5,"ابراهيم رفقي سليمان",null,null,null,null,null,null,null,null,null,null,null,null,null,null,null,null,null,null,null,null,1,null,null,null,null,null,null,null,null,null,null,1]
[6,"ابراهيم فضل المولي ابراهيم",null,null,1,null,null,null,null,null,null,null,null,null,null,null,null,null,null,null,null,null,null,null,null,null,null,null,null,null,null,null,null,1]
[7,"ابراهيم محمد ابراهيم عبدالعاطي",null,null,null,null,null,null,null,null,0.5,null,null,null,null,null,null,null,null,null,null,null,null,null,null,null,null,null,null,null,null,null,null,0.5]
[8,"ابوالقاسم فتح الرحمن الطيب",0.72299999999999998,1,1,null,null,null,1,null,1,null,null,null,null,null,null,null,null,null,null,null,null,null,null,null,null,null,null,null,null,null,null,4.7229999999999999]
[9,"ابوبكر الصديق الجاك",null,null,null,null,null,null,null,null,null,null,null,null,null,null,null,null,null,1,null,null,null,null,null,null,null,null,null,null,null,null,null,1]
[10,"ابوبكر علي يوسف علي",null,null,null,null,null,null,null,null,null,null,null,null,null,1,1,1,1,1,null,null,1,1,1,1,1,null,null,1,1,null,null,12]
[11,"ابوبكر محمد الحسن صالح",0.72299999999999998,1,1,null,null,null,null,null,null,null,null,null,null,null,null,null,null,null,null,null,null,null,null,null,null,null,null,null,null,null,null,2.7229999999999999]
[12,"ابوسبع ممدوح ابوسبع",0.72299999999999998,1,null,null,null,null,1,1,null,null,null,null,null,null,null,null,null,null,null,null,null,null,null,null,null,null,null,null,null,null,null,3.7229999999999999]
[13,"احمد ابراهيم ابوالمكارم",0.72299999999999998,null,1,null,null,null,1,1,1,1,1,null,null,1,1,1,1,1,null,null,1,1,1,1,1,null,null,1,1,null,null,18.722999999999999]
[14,"احمد ابراهيم جمعه علي",null,null,null,null,null,null,null,null,null,null,null,null,null,null,null,null,null,null,null,null,null,1,1,1,1,null,null,1,1,null,null,6]
[15,"احمد ابراهيم محمد محمد",null,null,null,null,null,null,null,null,null,null,null,null,null,null,null,null,null,null,null,null,null,null,null,null,1,null,null,null,null,null,null,1]
[16,"احمد ابوالريش رسلان عبدالعاطي",null,null,null,null,null,null,null,1,null,null,null,null,null,null,null,null,null,null,null,null,null,null,null,null,null,null,null,null,null,null,null,1]
[17,"احمد اسامه صديق شعيب",null,null,null,null,null,null,1,null,null,null,null,null,null,null,null,null,null,1,null,null,null,null,null,null,null,null,null,null,null,null,null,2]
[18,"احمد اشرف محمد عبدالعزيز نصر",null,null,null,null,null,null,null,null,null,null,null,null,null,1,1,null,null,null,null,null,null,null,null,null,null,null,null,null,null,null,null,2]
[19,"احمد الامين حسن ابراهيم",null,null,null,null,null,null,null,null,null,null,null,null,null,null,null,null,1,1,null,null,null,null,null,null,null,null,null,null,null,null,null,2]
[20,"احمد الحاج عبدالله العوض",null,1,1,null,null,null,1,1,null,null,null,null,null,null,null,null,null,null,null,null,null,null,null,null,null,null,null,null,null,null,null,4]
[21,"احمد السيد مبروك خطاب",null,null,null,null,null,null,1,1,null,null,null,null,null,null,null,1,1,null,null,null,null,null,null,null,null,null,null,null,null,null,null,4]
[22,"احمد انور احمد القلا",0.72299999999999998,1,null,null,null,null,null,null,null,null,null,null,null,null,null,null,null,null,null,null,null,null,null,null,null,null,null,null,null,null,null,1.7229999999999999]
[23,"احمد ايهاب عبدالمحسن عبدالحفيظ",null,null,null,null,null,null,null,null,null,null,null,null,null,null,1,null,null,null,null,null,null,null,null,null,null,null,null,null,null,null,null,1]
[24,"احمد حامد ادم حامد",null,null,null,null,null,null,null,null,null,null,null,null,null,null,null,null,1,1,null,null,null,null,null,null,null,null,null,null,null,null,null,2]
[25,"احمد حسام عبد العاطي",null,null,null,null,null,null,null,null,0.5,null,null,null,null,null,null,null,null,null,null,null,null,null,null,null,null,null,null,null,null,null,null,0.5]
[26,"احمد حسام عبدالكريم شاهين",0.72299999999999998,1,1,null,null,null,null,null,null,null,null,null,null,null,null,null,null,null,null,null,null,null,null,null,null,null,null,null,null,null,null,2.7229999999999999]
[27,"احمد حسن محمد حسان",null,null,null,null,null,null,null,null,null,null,null,null,null,1,1,1,1,1,null,null,null,null,null,null,null,null,null,null,null,null,null,5]
[28,"احمد رجب عبدالعزيز ابراهيم",null,null,null,null,null,null,null,null,null,null,null,null,null,null,null,null,null,null,null,null,1,1,1,null,null,null,null,1,1,null,null,5]
[29,"احمد سعيد صادق بحيري",null,null,null,null,null,null,null,null,null,null,null,null,null,null,null,null,null,null,null,null,1,null,null,null,null,null,null,null,null,null,null,1]
[30,"احمد سلامه فؤاد محمد",null,null,null,null,null,null,1,1,1,null,null,null,null,null,null,null,null,null,null,null,null,null,null,null,null,null,null,null,null,null,null,3]
[31,"احمد شعبان صبحي محمد",0.72299999999999998,1,1,null,null,null,1,1,null,null,null,null,null,null,null,null,null,null,null,null,1,1,null,1,1,null,null,1,1,null,null,10.722999999999999]
[32,"احمد شوقي صقر",null,null,null,null,null,null,null,null,0.5,null,null,null,null,null,null,null,null,null,null,null,null,null,null,null,null,null,null,null,null,null,null,0.5]
[33,"احمد عادل اسماعيل",null,null,null,null,null,null,null,null,null,null,null,null,null,null,null,1,null,null,null,null,null,null,null,null,null,null,null,null,null,null,null,1]
[34,"احمد عبدالعزيز صلاح عامر",null,null,null,null,null,null,null,null,null,null,null,null,null,1,null,null,null,null,null,null,null,null,null,null,null,null,null,null,null,null,null,1]
[35,"احمد عبدالعزيز محمد شحاته",null,null,null,null,null,null,null,null,null,1,null,null,null,null,null,null,null,null,null,null,null,null,null,null,null,null,null,null,null,null,null,1]
[36,"احمد عبدالعظيم محمد النجار",null,null,1,null,null,null,null,null,null,null,null,null,null,null,null,null,null,null,null,null,null,null,null,null,null,null,null,null,null,null,null,1]
[37,"احمد عبدالمنطلب محمد عبدالمطلب",null,null,null,null,null,null,1,null,0.5,null,null,null,null,null,null,null,null,null,null,null,null,null,null,null,null,null,null,null,null,null,null,1.5]
[38,"احمد علي منصور علي",0.72299999999999998,1,1,null,null,null,1,1,1,1,1,null,null,1,1,1,1,1,null,null,null,null,null,null,null,null,null,1,1,null,null,14.722999999999999]
[39,"احمد عنتر عبدالهادي مسعود",null,null,null,null,null,null,null,null,null,null,null,null,null,null,null,null,null,null,null,null,null,null,null,null,null,null,null,null,null,null,null,0]
[40,"احمد عيد محمدين عبدالكريم",null,null,null,null,null,null,null,null,null,null,null,null,null,null,null,null,null,null,null,null,1,null,null,null,null,null,null,null,null,null,null,1]
[41,"احمد فراج زكي مصطفي",null,null,null,null,null,null,1,null,null,null,1,null,null,1,1,1,1,1,null,null,1,1,1,1,1,null,null,1,1,null,null,14]
[42,"احمد فرج محمد حسن",0.72299999999999998,1,1,null,null,null,1,1,1,1,1,null,null,1,1,1,1,1,null,null,1,1,1,1,1,null,null,1,1,null,null,19.722999999999999]
[43,"احمد فؤاد علي احمد",null,null,null,null,null,null,1,1,null,null,null,null,null,null,null,null,1,1,null,null,null,null,null,null,null,null,null,null,null,null,null,4]
[44,"احمد محمد احمد حمدناالله",0.72299999999999998,1,1,null,null,null,1,1,1,null,null,null,null,null,null,null,null,null,null,null,null,null,null,null,null,null,null,null,null,null,null,5.7229999999999999]
[45,"احمد محمد سيد عبدالغني",null,null,null,null,null,null,null,null,null,null,null,null,null,null,null,null,null,null,null,null,1,null,null,null,null,null,null,null,null,null,null,1]
[46,"احمد محمد طه الكحلي",null,null,null,null,null,null,null,null,null,null,null,null,null,null,null,null,null,null,null,null,1,1,null,null,null,null,null,null,null,null,null,2]
[47,"احمد محمد فاروق عباس",null,null,1,null,null,null,null,null,null,null,null,null,null,1,null,null,null,null,null,null,null,null,null,null,null,null,null,null,null,null,null,2]
[48,"احمد محمد محمد خليفه",null,null,null,null,null,null,null,1,1,null,1,null,null,null,null,null,null,null,null,null,null,null,null,null,null,null,null,null,null,null,null,3]
[49,"احمد محمد مصطفي البدوي",null,null,null,null,null,null,null,null,null,null,null,null,null,null,null,null,1,1,null,null,1,null,null,null,null,null,null,null,null,null,null,3]
[50,"احمد محمد هاشم علي الاشرم",null,null,null,null,null,null,1,1,null,null,null,null,null,1,1,1,null,null,null,null,1,null,null,null,null,null,null,null,1,null,null,7]
[51,"احمد محمود كامل الدين الزناتي",null,null,1,null,null,null,null,null,null,null,null,null,null,null,null,null,null,null,null,null,null,null,null,null,null,null,null,null,null,null,null,1]
[52,"احمد محمود مصطفي علي مصطفي",null,null,null,null,null,null,null,1,null,2,null,null,null,null,null,null,null,null,null,null,null,null,null,1,null,null,null,null,null,null,null,4]
[53,"احمد نادي ابراهيم علي",0.72299999999999998,1,1,null,null,null,null,null,null,null,null,null,null,null,null,null,null,null,null,null,null,null,null,null,null,null,null,null,null,null,null,2.7229999999999999]
[54,"احمد يوسف محمد البشاري",0.72299999999999998,1,1,null,null,null,1,1,1,null,1,null,null,1,null,null,null,1,null,null,1,1,1,1,1,null,null,1,1,null,null,15.722999999999999]
[55,"ادم ابراهيم ادم محمد",0.72299999999999998,1,1,null,null,null,null,1,1,null,null,null,null,null,null,null,null,null,null,null,null,null,null,null,null,null,null,null,null,null,null,4.7229999999999999]
[56,"ادهم رمضان عوض محمد",null,null,null,null,null,null,1,null,null,null,null,null,null,null,null,null,1,1,null,null,null,null,null,null,null,null,null,null,null,null,null,3]
[57,"اسامه عبدالرحمن محمد ابراهيم",0.72299999999999998,1,1,null,null,null,null,null,null,null,null,null,null,null,null,null,null,null,null,null,null,null,null,null,null,null,null,null,null,null,null,2.7229999999999999]
[58,"اسلام احمد محمد السيد",0.72299999999999998,1,1,null,null,null,null,null,null,null,null,null,null,null,null,null,null,null,null,null,null,null,null,null,null,null,null,null,null,null,null,2.7229999999999999]
[59,"اسلام عبدالراضي عربي",null,null,null,null,null,null,null,null,null,null,null,null,null,1,1,null,1,null,null,null,null,null,null,null,null,null,null,null,null,null,null,3]
[60,"اسلام محمد عبدالرحيم عبدالمنعم",null,null,null,null,null,null,null,null,null,1,null,null,null,null,null,null,null,null,null,null,null,null,null,null,null,null,null,null,null,null,null,1]
[61,"اسلام محمد علي عاشور",null,null,null,null,null,null,null,null,null,null,null,null,null,1,null,null,null,null,null,null,null,null,null,null,null,null,null,1,1,null,null,3]
[62,"اسلام محمود حسن خليل",0.72299999999999998,1,1,null,null,null,1,1,1,1,1,null,null,1,1,1,1,1,null,null,1,1,1,1,1,null,null,1,1,null,null,19.722999999999999]
[63,"اشرف حسن حمدان حسين",null,null,null,null,null,null,null,null,null,null,null,null,null,null,null,null,null,null,null,null,null,null,null,null,1,null,null,null,null,null,null,1]
[64,"البراء عباس ادم محمد",0.72299999999999998,1,1,null,null,null,1,1,1,null,null,null,null,null,null,null,null,null,null,null,null,null,null,null,null,null,null,null,null,null,null,5.7229999999999999]
[65,"التجاني يوسف ردمه ابكر",0.72299999999999998,1,1,null,null,null,null,null,null,null,null,null,null,null,null,null,null,null,null,null,null,null,null,null,null,null,null,null,null,null,null,{"$f":"SUM(C66:AG66)","v":2.7229999999999999}]
[66,"الحاج صالح النورالفضل",null,null," ",null,null,null,null,null,null,null,null,null,null,null,1,null,null,1,null,null,null,null,null,null,null,null,null,null,null,null,null,2]
[67,"الحسن محمد الشحات السيد",null,null,null,null,null,null,1,1,null,1,1,null,null,null,null,1,null,null,null,null,null,null,null,null,null,null,null,null,null,null,null,5]
[68,"السيد طلعت سعد الشوربجي",0.72299999999999998,1,null,null,null,null,1,1,null,null,null,null,null,1,1,1,null,null,null,null,null,null,null,null,null,null,null,null,null,null,null,6.7229999999999999]
[69,"الصادق محمد فضل السيد محمد",null,null,null,null,null,null,null,null,null,1,1,null,null,1,null,1,1,1,null,null,null,null,null,null,null,null,null,null,null,null,null,6]
[70,"الصافي تجاني الصافي عبدالقادر",0.72299999999999998,1,1,null,null,null,1,1,1,null,null,null,null,null,null,null,null,null,null,null,null,null,null,null,null,null,null,null,null,null,null,5.7229999999999999]
[71,"الضو البدوي الضو بابكر",null,null,null,null,null,null,null,null,null,null,null,null,null,null,1,null,null,null,null,null,null,null,null,null,null,null,null,null,null,null,null,1]
[72,"الطيب بشير محمد عبدالله",null,null,null,null,null,null,null,null,null,null,null,null,null,null,1,null,null,null,null,null,null,null,null,null,null,null,null,null,null,null,null,1]
[73,"الطيب يوسف محمد الحاج",null,null,null,null,null,null,null,null,null,null,null,null,null,null,null,1,null,null,null,null,null,null,null,null,null,null,null,null,null,null,null,1]
[74,"الهادي جمعه حمدان",0.72299999999999998,1,1,null,null,null,null,null,0.5,null,null,null,null,null,null,null,1,1,null,null,null,null,null,null,null,null,null,null,null,null,null,5.2229999999999999]
[75,"امير عادل خليفه عثمان",0.72299999999999998,1,null,null,null,null,null,null,null,null,null,null,null,null,null,null,null,null,null,null,null,null,null,null,null,null,null,null,null,null,null,1.7229999999999999]
[76,"امير محروس انجلوس",null,null,null,null,null,null,null,null,null,null,null,null,null,null,null,null,null,null,null,null,1,null,null,null,null,null,null,null,null,null,null,1]
[77,"انس الهادي ابراهيم عبدالله",null,null,null,null,null,null,null,null,null,null,null,null,null,null,null,1,null,null,null,null,null,null,null,null,null,null,null,null,null,null,null,1]
[78,"انورناجي شديد سليمان",null,null,null,null,null,null,1,null,null,null,null,null,null,null,null,null,null,null,null,null,null,null,null,null,null,null,null,null,null,null,null,1]
[79,"ايهاب عادل عبدالحميد صديق",null,null,null,null,null,null,1,1,1,null,null,null,null,null,null,null,null,null,null,null,null,null,null,null,null,null,null,null,null,null,null,3]
[80,"باشا عبدالرازق باشا",null,null,null,null,null,null,null,null,null,null,null,null,null,null,null,null,null,null,null,null,1,1,null,1,1,null,null,1,1,null,null,6]
[81,"بدرالدين سيد احمد الخليفه",0.72299999999999998,1,1,null,null,null,1,1,1,null,null,null,null,1,1,1,1,1,null,null,1,1,1,1,1,null,null,1,1,null,null,17.722999999999999]
[82,"بشري عبدالله خالد بشير",null,null,null,null,null,null,null,null,null,null,null,null,null,null,null,1,1,1,null,null,null,null,null,null,null,null,null,null,null,null,null,3]
[83,"بشير احمد الطيب احمد",null,null,1,null,null,null,null,null,null,null,null,null,null,null,null,null,null,null,null,null,null,null,null,null,null,null,null,null,null,null,null,1]
[84,"بشير محمد بشير عبدالرحمن",null,null,null,null,null,null,null,null,null,null,null,null,null,null,1,1,null,null,null,null,null,null,null,null,null,null,null,null,null,null,null,2]
[85,"بكر حسن يوسف ادم",null,null,null,null,null,null,null,null,null,null,null,null,null,null,null,null,null,null,null,null,null,null,1,1,1,null,null,null,null,null,null,3]
[86,"بلال عطيه علي احمد",null,null,null,null,null,null,null,null,null,null,null,null,null,null,null,null,null,null,null,null,1,null,null,null,null,null,null,null,null,null,null,1]
[87,"تامر مشيل اسكندر",null,null,null,null,null,null,1,null,0.5,1,1,null,null,1,null,1,1,1,null,null,1,1,null,null,1,null,null,null,null,null,null,10.5]
[88,"جبرالدارعبدالله صالح",0.72299999999999998,1,1,null,null,null,null,null,null,null,null,null,null,null,null,null,null,null,null,null,null,null,null,null,null,null,null,null,null,null,null,2.7229999999999999]
[89,"جمال كمال احمد سالم",null,1,null,null,null,null,null,null,null,null,1,null,null,null,null,null,null,null,null,null,null,null,null,null,null,null,null,null,null,null,null,2]
[90,"جهاد عبدالحميد امام",null,null,null,null,null,null,1,null,0.5,null,null,null,null,null,null,null,null,null,null,null,null,null,null,null,null,null,null,null,null,null,null,1.5]
[91,"حازم علي محمد جاد الله",null,null,null,null,null,null,null,null,null,null,null,null,null,null,1,1,1,1,null,null,1,null,null,null,null,null,null,null,null,null,null,5]
[92,"حامد ديني احمد محمد ديني",null,null,null,null,null,null,null,null,null,null,null,null,null,null,null,null,null,null,null,null,1,1,null,null,null,null,null,null,null,null,null,2]
[93,"حسام رضا فاروق عبدالكريم",null,null,null,null,null,null,null,null,null,1,null,null,null,null,null,null,null,null,null,null,null,null,null,null,null,null,null,null,null,null,null,1]
[94,"حسن محمد ارباب عبدالله",null,null,null,null,null,null,null,null,null,null,null,null,null,null,null,null,null,null,null,null,1,1,1,null,null,null,null,null,null,null,null,3]
[95,"حسن محمد حسن",null,null,null,null,null,null,null,null,null,null,null,null,null,null,null,null,1,null,null,null,null,null,null,null,null,null,null,null,null,null,null,1]
[96,"حسين حسن فاروق جلال",null,null,null,null,null,null,1,1,1,1,1,null,null,1,1,1,1,1,null,null,null,null,null,null,null,null,null,null,null,null,null,10]
[97,"حسين محمد عبدالمؤمن",0.72299999999999998,null,null,null,null,null,null,null,null,1,null,null,null,null,null,null,null,null,null,null,null,null,null,null,null,null,null,null,null,null,null,1.7229999999999999]
[98,"حمدان حموده محمد ادم",0.72299999999999998,1,1,null,null,null,null,1,1,null,null,null,null,null,null,null,null,null,null,null,null,null,null,null,null,null,null,null,null,null,null,4.7229999999999999]
[99,"حمزه احمد حمزه العريان",0.72299999999999998,1,1,null,null,null,1,1,1,1,1,null,null,1,1,1,1,1,null,null,1,1,null,null,null,null,null,null,null,null,null,14.722999999999999]
[100,"حمزه محمد سالم عزالي",null,null,null,null,null,null,1,null,null,null,null,null,null,null,1,null,null,null,null,null,null,null,null,null,null,null,null,null,null,null,null,2]
[101,"خالد ايمن عبدالسميع جوهر",null,null,null,null,null,null,1,1,null,1,1,null,null,1,1,1,1,1,null,null,null,null,null,null,null,null,null,null,null,null,null,9]
[102,"خالد عثمان ادريس يحي",null,null,null,null,null,null,null,null,null,null,null,null,null,null,null,null,1,1,null,null,1,null,1,1,null,null,null,null,null,null,null,5]
[103,"خالد مجدي امين السيد",null,null,null,null,null,null,null,null,null,null,null,null,null,1,1,1,1,null,null,null,null,null,null,null,null,null,null,null,null,null,null,4]
[104,"خضر صلاح الدين خضرعمر ",null,null,null,null,null,null,null,null,null,1,null,null,null,1,null,null,null,null,null,null,null,null,null,null,null,null,null,null,null,null,null,2]
[105,"راشد نصر الدين الباهي",null,null,1,null,null,null,null,null,null,null,null,null,null,1,null,null,null,null,null,null,null,null,null,null,null,null,null,null,null,null,null,2]
[106,"رجب شحاته محمد ابواحمد",null,null,null,null,null,null,null,null,null,null,null,null,null,null,null,null,null,null,null,null,null,null,1,null,null,null,null,null,null,null,null,1]
[107,"زكي محمد زكي مصطفي",null,null,null,null,null,null,1,null,null,null,1,null,null,1,1,1,1,1,null,null,1,1,1,1,null,null,null,1,1,null,null,13]
[108,"سامر سعد سيد محمود",null,null,null,null,null,null,null,null,null,null,null,null,null,null,null,null,1,1,null,null,1,1,null,1,1,null,null,null,null,null,null,6]
[109,"سعد شعبان الشحات العربي",null,null,null,null,null,null,null,null,null,null,1,null,null,null,null,null,null,null,null,null,null,1,null,null,null,null,null,null,null,null,null,2]
[110,"سعد عبدالباقي سعد",0.72299999999999998,null,null,null,null,null,null,null,null,null,null,null,null,null,null,null,null,null,null,null,null,null,null,null,null,null,null,null,null,null,null,0.72299999999999998]
[111,"سعيد محمد قرني محمد ",0.72299999999999998,1,1,null,null,null,1,1,null,null,null,null,null,null,null,null,null,null,null,null,1,1,null,1,1,null,null,null,null,null,null,8.722999999999999]
[112,"سليم عماد رمضان عيد",null,null,null,null,null,null,1,1,null,1,1,null,null,1,1,1,1,1,null,null,null,null,null,null,null,null,null,null,null,null,null,9]
[113,"سليمان موسي ابوبكر ادم",0.72299999999999998,1,1,null,null,null,null,null,null,null,null,null,null,null,null,null,null,null,null,null,null,null,null,null,null,null,null,null,null,null,null,2.7229999999999999]
[114,"سمير وليد سمير نور",0.72299999999999998,1,1,null,null,null,null,null,null,null,null,null,null,null,null,null,null,null,null,null,null,null,null,null,null,null,null,null,null,null,null,2.7229999999999999]
[115,"سيد محمد فرج علي منصور",null,null,null,null,null,null,null,null,null,null,null,null,null,null,null,null,null,null,null,null,1,1,1,1,1,null,null,1,1,null,null,7]
[116,"شريف محمد نجيب احمد",null,null,null,null,null,null,null,null,null,null,null,null,null,1,null,null,null,null,null,null,1,null,null,null,null,null,null,null,null,null,null,2]
[117,"صديق محمد الطاهر",null,null,null,null,null,null,null,null,null,null,null,null,null,null,null,null,null,null,null,null,1,1,null,null,null,null,null,null,null,null,null,2]
[118,"صديق محمد سليمان عبدالله ",null,null,null,null,null,null,null,null,null,null,null,null,null,null,null,null,1,1,null,null,1,null,null,null,null,null,null,null,null,null,null,3]
[119,"طارق احمد صلاح الدين قطب",null,null,null,null,null,null,1,1,null,1,1,null,null,1,1,1,1,1,null,null,1,1,1,1,1,null,null,null,null,null,null,14]
[120,"عادل محمد مصطفي موسي",null,null,null,null,null,null,null,null,null,null,null,null,null,null,null,1,null,null,null,null,null,null,null,null,null,null,null,null,null,null,null,1]
[121,"عاطف محمد محمد دراز",null,null,null,null,null,null,1,1,null,null,null,null,null,null,null,null,null,null,null,null,null,null,null,null,null,null,null,null,null,null,null,2]
[122,"عباس ابراهيم يحي هارون",null,null,null,null,null,null,1,1,1,1,1,null,null,1,1,1,1,1,null,null,1,1,1,1,1,null,null,1,1,null,null,17]
[123,"عبدالحليم احمد عبدالحكيم",null,null,null,null,null,null,null,null,null,null,null,null,null,null,null,null,null,1,null,null,1,null,null,null,null,null,null,null,null,null,null,2]
[124,"عبدالحليم محمد عصام",null,null,null,null,null,null,null,null,null,null,null,null,null,null,null,null,null,null,null,null,1,1,1,1,1,null,null,1,null,null,null,6]
[125,"عبدالراضي نبيل عبدالراضي ",null,null,null,null,null,null,null,1,1,null,null,null,null,null,null,null,null,1,null,null,null,null,null,null,null,null,null,null,null,null,null,3]
[126,"عبدالرحمن ايمن عبدالعزيز",0.72299999999999998,1,1,null,null,null,1,1,null,null,null,null,null,null,null,null,null,null,null,null,null,null,null,null,null,null,null,null,null,null,null,4.7229999999999999]
[127,"عبدالرحمن باسم صلاح خود",null,null,null,null,null,null,null,null,null,null,null,null,null,null,null,null,null,null,null,null,null,1,1,null,null,null,null,null,null,null,null,2]
[128,"عبدالرحمن حمدي عبدالحليم محمد",null,1,null,null,null,null,null,null,null,null,null,null,null,null,null,null,null,null,null,null,null,null,null,null,null,null,null,null,null,null,null,1]
[129,"عبدالرحمن رجب شحات ابواحمد",null,null,null,null,null,null,null,null,null,null,null,null,null,null,null,null,null,null,null,null,null,null,1,null,null,null,null,null,null,null,null,{"$f":"SUM(C130:AG130)","v":1}]
[130,"عبدالرحمن سعد احمداحمد",null,null,null,null,null,null,1,1,1,null,1,null,null,1,null,null,null,null,null,null,null,null,null,null,null,null,null,null,null,null,null,5]
[131,"عبدالرحمن شريف عبدالمجيد",null,null,null,null,null,null,null,null,null,null,null,null,null,null,null,null,null,null,null,null,null,1,1,null,null,null,null,null,null,null,null,2]
[132,"عبدالرحمن صابر محمد عشماوي",0.72299999999999998,1,1,null,null,null,null,null,null,null,null,null,null,null,null,null,null,null,null,null,null,null,null,null,null,null,null,null,null,null,null,2.7229999999999999]
[133,"عبدالرحمن عادل جعفر",null,1,1,null,null,null,null,null,null,null,null,null,null,null,1,null,null,null,null,null,null,null,null,null,null,null,null,null,null,null,null,3]
[134,"عبدالرحمن محمد حسن عبدالرحيم",null,null,null,null,null,null,1,1,1,null,null,null,null,null,null,null,null,null,null,null,null,null,null,null,null,null,null,null,null,null,null,3]
[135,"عبدالرحمن محمد سليمان عبدالله",null,null,null,null,null,null,1,null,0.5,null,null,null,null,null,null,null,null,null,null,null,null,null,null,null,null,null,null,null,null,null,null,1.5]
[136,"عبدالرحمن محمد عبدالله محمد",null,null,null,null,null,null,null,null,null,null,null,null,null,null,null,1,null,null,null,null,null,null,null,null,null,null,null,null,null,null,null,1]
[137,"عبدالرحمن محي الدين محمد ",null,null,null,null,null,null,null,null,null,null,null,null,null,null,null,null,null,null,null,null,1,1,1,1,1,null,null,1,1,null,null,7]
[138,"عبدالرحيم محمد صالح عبدالرحيم",null,null,null,null,null,null,null,null,null,null,null,null,null,null,null,null,null,null,null,null,1,1,null,null,null,null,null,null,null,null,null,2]
[139,"عبدالعزيز الفاضل ابراهيم ",null,null,null,null,null,null,null,null,null,null,null,null,null,null,1,null,null,null,null,null,null,null,null,null,null,null,null,null,null,null,null,1]
[140,"عبدالعظيم محمد ابراهيم احمد",null,null,1,null,null,null,null,null,null,null,null,null,null,null,null,null,null,null,null,null,null,null,null,null,null,null,null,null,null,null,null,1]
[141,"عبدالغني حجاج علي عبدالغني",0.72299999999999998,1,null,null,null,null,null,null,null,null,null,null,null,null,null,null,null,null,null,null,null,null,null,null,null,null,null,null,null,null,null,1.7229999999999999]
[142,"عبدالقادر عطا المنان الخير عبدالله",null,null,null,null,null,null,null,null,null,null,null,null,null,null,1,null,null,null,null,null,null,null,null,null,null,null,null,null,null,null,null,1]
[143,"عبداللطيف صالح عبدالله عثمان",null,null,null,null,null,null,null,null,null,null,null,null,null,null,null,null,null,null,null,null,1,1,null,null,null,null,null,null,null,null,null,2]
[144,"عبداللطيف عثمان ادم عمر",null,null,null,null,null,null,null,null,null,null,1,null,null,1,null,1,1,1,null,null,null,null,null,null,null,null,null,null,null,null,null,5]
[145,"عبدالله احمد السيد الغباشي",null,1,1,null,null,null,null,null,null,1,null,null,null,null,1,1,null,1,null,null,null,null,null,null,null,null,null,null,null,null,null,6]
[146,"عبدالله احمد صلاح النجار",null,null,null,null,null,null,null,null,null,null,null,null,null,null,null,null,null,null,null,null,null,1,1,null,null,null,null,null,null,null,null,2]
[147,"عبدالله احمد عبيد احمد",null,1,null,null,null,null,null,null,null,null,null,null,null,null,null,null,null,null,null,null,null,null,null,null,null,null,null,null,null,null,null,1]
[148,"عبدالله تاج الدين محمد احمد",null,null,null,null,null,null,null,null,0.5,1,1,null,null,1,1,null,null,null,null,null,null,null,null,null,null,null,null,null,null,null,null,4.5]
[149,"عبدالله حمدي عبدالحليم محمد",null,null,1,null,null,null,null,null,null,null,null,null,null,null,null,null,null,null,null,null,null,null,null,null,null,null,null,null,null,null,null,1]
[150,"عبدالله سعيد عبدالله محمد",null,1,1,null,null,null,1,null,null,null,null,null,null,null,null,null,null,null,null,null,null,null,null,null,null,null,null,null,null,null,null,3]
[151,"عبدالله شعبان عبدالله الروبي",0.72299999999999998,1,1,null,null,null,1,1,1,1,1,null,null,1,1,1,1,1,null,null,1,1,null,null,null,null,null,null,null,null,null,14.722999999999999]
[152,"عبدالله محمد الامين عبدالله ",null,null,null,null,null,null,null,null,null,null,null,null,null,null,1,null,null,null,null,null,null,null,null,null,null,null,null,null,null,null,null,1]
[153,"عبدالله محمد عبدالله محمد",0.72299999999999998,null,null,null,null,null,null,null,null,null,null,null,null,null,null,null,null,null,null,null,null,null,null,null,null,null,null,null,null,null,null,0.72299999999999998]
[154,"عبدالمنعم محمد عبدالمنعم ابواحمد",null,null,1,null,null,null,null,null,null,1,null,null,null,null,null,1,null,null,null,null,null,null,null,null,null,null,null,null,null,null,null,3]
[155,"عبدالمؤمن اسحاق خميس",null,null,null,null,null,null,null,null,null,null,null,null,null,null,null,null,null,null,null,null,null,null,1,1,null,null,null,null,null,null,null,2]
[156,"عبدالناصر محمد ادم يعقوب",null,null,null,null,null,null,null,null,null,null,null,null,null,null,null,null,null,null,null,null,null,null,1,1,1,null,null,null,null,null,null,3]
[157,"عبدالهادي عيدعبدالهادي",null,null,null,null,null,null,null,null,null,null,1,null,null,null,null,null,null,null,null,null,null,null,null,null,null,null,null,null,null,null,null,1]
[158,"عبدالوهاب محمد عبدالوهاب علي",null,null,null,null,null,null,null,null,null,1,null,null,null,1,1,null,null,null,null,null,null,null,null,null,null,null,null,null,null,null,null,3]
[159,"عبده علي عبدالعزيز فرج",null,null,null,null,null,null,null,null,null,null,null,null,null,null,null,null,null,null,null,null,null,null,null,null,null,null,null,1,1,null,null,2]
[160,"عصام حيد محمد عثمان",0.72299999999999998,1,1,null,null,null,null,null,null,null,null,null,null,null,null,null,null,null,null,null,null,null,null,null,null,null,null,null,null,null,null,2.7229999999999999]
[161,"عصام سعد الشناوي بطيخ",0.72299999999999998,1,1,null,null,null,1,1,null,null,null,null,null,1,1,1,null,null,null,null,1,null,null,null,null,null,null,null,null,null,null,8.722999999999999]
[162,"علاء الدين الواثق الريح",0.72299999999999998,1,1,null,null,null,null,null,null,null,null,null,null,null,null,null,null,null,null,null,null,null,null,null,null,null,null,null,null,null,null,2.7229999999999999]
[163,"علاء الدين يونس احمد",0.72299999999999998,1,1,null,null,null,null,null,null,null,null,null,null,null,null,1,1,1,null,null,null,null,null,null,null,null,null,null,null,null,null,5.7229999999999999]
[164,"علاء ربيع سيد امين",null,null,null,null,null,null,null,null,null,null,null,null,null,null,null,null,null,null,null,null,1,null,null,null,null,null,null,null,null,null,null,1]
[165,"علاء عبدالناصرعبدالعظيم",0.72299999999999998,1,1,null,null,null,1,null,0.5,null,null,null,null,null,null,null,null,null,null,null,null,null,null,null,null,null,null,null,null,null,null,4.2229999999999999]
[166,"علاء محمد رمزي محمد زهران",null,1,null,null,null,null,null,null,null,null,null,null,null,1,1,1,1,null,null,null,1,null,null,null,null,null,null,1,1,null,null,8]
[167,"علم الدين فضل الله فضل محمدين",null,1,1,null,null,null,1,null,null,null,null,null,null,null,null,null,null,null,null,null,null,null,null,null,null,null,null,null,null,null,null,3]
[168,"علي حسن علي عشري",null,null,null,null,null,null,1,null,null,null,null,null,null,null,null,null,null,null,null,null,null,null,null,null,null,null,null,null,null,null,null,1]
[169,"عماد احمد مصطفي ابوشنب",null,null,null,null,null,null,null,null,null,null,null,null,null,null,null,null,null,null,null,null,1,1,1,1,1,null,null,1,1,null,null,7]
[170,"عمار توفيق شحاته",null,null,null,null,null,null,null,null,null,null,null,null,null,null,null,null,null,null,null,null,null,null,null,null,null,null,null,1,1,null,null,2]
[171,"عمار محمد عيد مرعي",null,null,null,null,null,null,null,null,null,null,null,null,null,null,1,1,1,1,null,null,1,null,null,null,null,null,null,null,null,null,null,5]
[172,"عمر ابشر عوض موسي",null,1,null,null,null,null,1,null,null,null,null,null,null,null,null,null,null,null,null,null,null,null,null,null,null,null,null,null,null,null,null,2]
[173,"عمران الداي عبد القدار",null,null,null,null,null,null,null,null,0.5,null,null,null,null,null,null,null,null,null,null,null,null,null,null,null,null,null,null,null,null,null,null,0.5]
[174,"عيسي محمد حلو ادم",null,1,1,null,null,null,null,null,0.5,null,null,null,null,null,null,null,null,null,null,null,null,null,null,null,null,null,null,null,null,null,null,2.5]
[175,"فارس سامي السيد الحسيني",null,null,null,null,null,null,null,null,null,1,null,null,null,null,1,1,null,null,null,null,null,null,null,null,null,null,null,null,null,null,null,3]
[176,"فتح الرحمن نواي علي احمد",0.72299999999999998,null,1,null,null,null,null,null,null,null,null,null,null,null,null,null,null,null,null,null,null,null,null,null,null,null,null,null,null,null,null,1.7229999999999999]
[177,"فراج محمد حمزه معروف",0.72299999999999998,1,1,null,null,null,null,null,null,null,null,null,null,null,null,null,null,null,null,null,null,1,1,1,1,null,null,1,1,null,null,8.722999999999999]
[178,"فرحات حسن عواد خميس",null,1,1,null,null,null,1,1,null,null,null,null,null,null,null,null,null,null,null,null,null,null,null,null,null,null,null,null,null,null,null,4]
[179,"فضل المولي حسن فضل",null,null,null,null,null,null,null,null,null,null,null,null,null,null,1,null,null,null,null,null,null,null,null,null,null,null,null,null,null,null,null,1]
[180,"فكري محمد رجائي عبداللطيف",null,null,null,null,null,null,null,null,null,1,1,null,null,1,1,1,1,1,null,null,1,1,null,null,null,null,null,null,null,null,null,9]
[181,"فلاح محمد عبدالرحمن محمد",null,1,1,null,null,null,null,null,null,null,null,null,null,null,null,null,null,null,null,null,null,null,null,null,null,null,null,null,null,null,null,2]
[182,"قيس كمال محمد حسن",0.72299999999999998,null,1,null,null,null,1,1,null,null,null,null,null,null,null,null,null,null,null,null,null,null,null,null,null,null,null,null,null,null,null,3.7229999999999999]
[183,"كريم سعيد ابراهيم محمد",null,null,null,null,null,null,null,null,null,null,null,null,null,null,null,null,null,null,null,null,1,1,null,1,1,null,null,null,null,null,null,4]
[184,"كريم محمد جابرابوشب",null,null,null,null,null,null,null,null,null,null,null,null,null,null,null,null,1,1,null,null,1,null,null,null,null,null,null,null,null,null,null,3]
[185,"كريم وليد محمد توفيق",0.72299999999999998,1,1,null,null,null,null,1,null,null,null,null,null,null,null,null,null,null,null,null,null,null,null,null,null,null,null,null,null,null,null,3.7229999999999999]
[186,"مازن احمد مرضي الرزافي",0.72299999999999998,1,1,null,null,null,1,1,null,2,1,null,null,null,null,null,null,null,null,null,1,1,1,1,1,null,null,1,1,null,null,14.722999999999999]
[187,"ماهر حسني عبدالعظيم محمد",null,null,null,null,null,null,1,null,0.5,null,1,null,null,1,null,1,1,1,null,null,1,1,null,null,null,null,null,null,null,null,null,8.5]
[188,"مجاهد ابوبكر الصديق عبدالوهاب",0.72299999999999998,1,1,null,null,null,null,null,null,1,null,null,null,null,null,1,1,1,null,null,null,null,null,null,null,null,null,null,null,null,null,6.7229999999999999]
[189,"مجاهد حمدون كافي تيه",null,1,1,null,null,null,1,1,1,1,1,null,null,1,1,1,1,1,null,null,1,1,1,1,1,null,null,1,1,null,null,19]
[190,"محمد ابراهيم محمد حسين",null,null,null,null,null,null,null,null,null,null,null,null,null,null,null,null,null,null,null,null,null,null,null,null,null,null,null,1,null,null,null,1]
[191,"محمد ابوبكر محمد الطاهر",null,1,1,null,null,null,null,null,null,null,1,null,null,1,1,1,1,1,null,null,null,null,null,null,null,null,null,null,null,null,null,8]
[192,"محمد احمد بليدي عامر",null,null,null,null,null,null,null,1,null,null,null,null,null,null,null,null,null,null,null,null,null,null,null,null,null,null,null,null,null,null,null,1]
[193,"محمد احمد عبدالباقي احمد",null,null,null,null,null,null,null,null,null,null,null,null,null,1,1,1,null,null,null,null,null,null,null,null,null,null,null,null,null,null,null,{"$f":"SUM(C194:AG194)","v":3}]
[194,"محمد الجزولي عباس الجزولي",null,null,null,null,null,null,null,null,null,null,null,null,null,null,null,null,null,null,null,null,1,null,null,null,null,null,null,null,null,null,null,1]
[195,"محمد السعيد احمد الشرع",null,null,null,null,null,null,null,null,0.5,null,null,null,null,null,null,null,null,null,null,null,null,null,null,null,null,null,null,null,null,null,null,0.5]
[196,"محمد السيد عبدالغفار زايد",0.72299999999999998,1,1,null,null,null,null,null,null,null,null,null,null,null,null,null,null,null,null,null,null,null,null,null,null,null,null,null,null,null,null,2.7229999999999999]
[197,"محمد ايمن محمد سيد ",null,null,null,null,null,null,null,null,null,null,null,null,null,null,null,null,null,null,null,null,1,null,null,null,null,null,null,null,null,null,null,1]
[198,"محمد ايهاب محمد مهدي",null,null,null,null,null,null,null,null,null,null,null,null,null,null,null,null,null,null,null,null,null,null,null,null,null,null,null,1,1,null,null,2]
[199,"محمد بسيوني عبدالعزيز الميت",null,null,1,null,null,null,null,null,null,null,null,null,null,null,1,1,null,null,null,null,null,null,null,null,null,null,null,null,null,null,null,3]
[200,"محمد حسني محمد حسن رمضان",null,null,1,null,null,null,null,null,null,null,null,null,null,null,null,null,null,null,null,null,null,null,null,null,null,null,null,null,null,null,null,1]
[201,"محمد خالد محمود احمد",null,null,null,null,null,null,1,1,null,null,null,null,null,null,null,null,null,null,null,null,null,null,null,null,null,null,null,null,null,null,null,2]
[202,"محمد ربيع السيد",null,null,null,null,null,null,null,null,0.5,null,null,null,null,null,null,null,null,null,null,null,null,null,null,null,null,null,null,null,null,null,null,0.5]
[203,"محمد رضا جاد علام",0.72299999999999998,1,1,null,null,null,1,1,1,1,1,null,null,1,1,1,1,1,null,null,null,null,null,null,null,null,null,null,null,null,null,12.722999999999999]
[204,"محمد زين الحاج صرون",null,null,null,null,null,null,null,null,null,null,null,null,null,null,1,null,null,null,null,null,null,null,null,null,null,null,null,null,null,null,null,1]
[205,"محمد سالم عبدالله سالم",null,null,null,null,null,null,null,1,null,null,null,null,null,null,null,1,1,null,null,null,null,null,null,null,null,null,null,null,null,null,null,3]
[206,"محمد سعد السيد محمد توفيق",null,null,null,null,null,null,1,null,null,null,null,null,null,null,null,null,null,null,null,null,null,null,null,null,null,null,null,null,null,null,null,1]
[207,"محمد سعد بدر السيد حجازي",null,null,null,null,null,null,null,null,null,null,null,null,null,1,1,null,null,null,null,null,null,null,null,null,null,null,null,null,null,null,null,2]
[208,"محمد سعد محمد احمد",0.72299999999999998,1,1,null,null,null,null,null,null,null,null,null,null,null,null,null,null,null,null,null,null,null,null,null,null,null,null,null,null,null,null,2.7229999999999999]
[209,"محمد سعيد احمد الشرع",null,null,null,null,null,null,1,null,null,null,null,null,null,null,1,1,1,1,null,null,1,1,1,1,1,null,null,1,1,null,null,12]
[210,"محمد سعيد السيد الجزار",0.72299999999999998,1,null,null,null,null,1,1,null,null,null,null,null,null,1,1,null,null,null,null,1,null,null,null,null,null,null,null,null,null,null,6.7229999999999999]
[211,"محمد سمير فهيم الشيخ",null,1,1,null,null,null,null,null,null,null,null,null,null,null,null,null,null,null,null,null,null,null,null,null,null,null,null,null,null,null,null,2]
[212,"محمد صلاح عبدالقوي عبدالله",0.72299999999999998,null,1,null,null,null,null,null,null,null,null,null,null,null,null,null,null,null,null,null,null,null,null,null,null,null,null,null,null,null,null,1.7229999999999999]
[213,"محمد عبدالرافع ابوالفضل",0.72299999999999998,1,1,null,null,null,null,1,1,1,1,null,null,1,1,1,1,2,null,null,1,1,null,null,null,null,null,1,1,null,null,16.722999999999999]
[214,"محمد عبدالرحمن سليمان عثمان",0.72299999999999998,1,1,null,null,null,1,1,1,null,null,null,null,null,null,null,null,null,null,null,null,null,null,null,null,null,null,null,null,null,null,5.7229999999999999]
[215,"محمد عبدالرحيم النور ابراهيم",null,null,null,null,null,null,null,null,null,null,null,null,null,null,null,null,1,1,null,null,1,null,1,null,null,null,null,null,null,null,null,4]
[216,"محمد عبدالستار عبدالمقصود",0.72299999999999998,null,null,null,null,null,1,null,null,null,null,null,null,null,null,null,null,null,null,null,1,1,1,1,1,null,null,null,1,null,null,7.7229999999999999]
[217,"محمد عبداللطيف محمد عثمان",null,null,null,null,null,null,null,null,null,null,null,null,null,1,null,null,null,null,null,null,null,null,null,null,null,null,null,null,null,null,null,1]
[218,"محمد عبدالله خيري حبيب",null,null,1,null,null,null,null,null,null,null,null,null,null,null,null,null,null,null,null,null,null,null,null,null,null,null,null,null,null,null,null,1]
[219,"محمد عبدالله داود عبدالله",0.72299999999999998,1,1,null,null,null,1,1,1,null,null,null,null,null,null,null,null,null,null,null,null,null,null,null,null,null,null,null,null,null,null,5.7229999999999999]
[220,"محمد عبدالله محمد نورادريس",0.72299999999999998,1,1,null,null,null,1,1,1,null,null,null,null,null,null,null,null,null,null,null,null,null,null,null,null,null,null,null,null,null,null,5.7229999999999999]
[221,"محمد عثمان علي محمد",null,1,1,null,null,null,1,1,null,null,null,null,null,null,null,null,null,null,null,null,null,null,null,null,null,null,null,null,null,null,null,4]
[222,"محمد عصام رياض خلف",null,null,null,null,null,null,null,null,null,null,null,null,null,null,1,null,null,null,null,null,null,null,null,null,null,null,null,null,null,null,null,1]
[223,"محمد عطيه عبدالقوي السيد",null,null,null,null,null,null,null,null,null,null,null,null,null,null,1,1,null,null,null,null,null,null,null,null,null,null,null,null,null,null,null,2]
[224,"محمد علي رمضان علي",null,null,null,null,null,null,null,null,null,null,null,null,null,null,null,null,null,null,null,null,null,1,1,1,1,null,null,1,1,null,null,6]
[225,"محمد علي عبدالمنعم الخربتاوي",null,null,null,null,null,null,null,1,null,null,null,null,null,null,null,null,null,null,null,null,null,null,null,null,null,null,null,null,null,null,null,1]
[226,"محمد علي محمد عبدالمولي",null,null,null,null,null,null,null,null,null,null,null,null,null,null,null,null,null,null,null,null,1,null,null,null,null,null,null,null,null,null,null,1]
[227,"محمد فتحي السيد العطار",null,null,null,null,null,null,null,null,null,1,1,null,null,1,1,null,null,null,null,null,null,null,null,null,null,null,null,null,null,null,null,4]
[228,"محمد فتحي عبدالستار جمعه",0.72299999999999998,1,1,null,null,null,null,null,null,null,null,null,null,null,null,null,null,null,null,null,null,null,null,null,null,null,null,null,null,null,null,2.7229999999999999]
[229,"محمد فراج زكي مصطفي ",0.72299999999999998,1,1,null,null,null,null,null,null,null,null,null,null,null,null,null,null,null,null,null,null,null,null,null,null,null,null,null,null,null,null,2.7229999999999999]
[230,"محمد فضل الله محمد احمد محمد",0.72299999999999998,1,1,null,null,null,1,1,1,null,null,null,null,null,null,null,null,null,null,null,1,1,1,1,1,null,null,1,1,null,null,12.722999999999999]
[231,"محمد مبروك محمد دغيدي",null,null,null,null,null,null,null,null,null,null,null,null,null,null,null,null,null,null,null,null,null,null,null,null,null,null,null,1,1,null,null,2]
[232,"محمد محمد سليم علي",null,null,null,null,null,null,null,null,null,null,null,null,null,1,1,1,1,1,null,null,null,null,null,null,null,null,null,null,null,null,null,5]
[233,"محمد محمود حسن خليل",0.72299999999999998,1,1,null,null,null,1,1,1,1,1,null,null,1,1,1,1,1,null,null,1,1,1,1,null,null,null,1,1,null,null,18.722999999999999]
[234,"محمد محمود شعبان ابراهيم",null,null,null,null,null,null,1,1,null,null,null,null,null,null,null,null,null,null,null,null,null,null,null,null,null,null,null,null,null,null,null,2]
[235,"محمد محمود محمد محمود",null,null,null,null,null,null,null,null,null,null,null,null,null,null,null,null,null,null,null,null,1,null,null,null,null,null,null,null,null,null,null,1]
[236,"محمد مصططفي محمد عبدالنبي",null,1,1,null,null,null,null,null,null,null,null,null,null,null,null,null,null,null,null,null,null,null,null,null,null,null,null,null,null,null,null,2]
[237,"محمد ناصر محمد سليم",null,null,null,null,null,null,1,1,null,null,null,null,null,null,null,null,null,null,null,null,null,null,null,null,null,null,null,null,null,null,null,2]
[238,"محمد نبيل احمد يوسف",null,null,null,null,null,null,null,null,0.5,null,1,null,null,null,null,null,null,null,null,null,null,null,null,null,null,null,null,null,null,null,null,1.5]
[239,"محمد نشات محمد احمد",null,null,null,null,null,null,null,null,null,null,null,null,null,null,null,null,null,null,null,null,null,null,null,1,null,null,null,null,null,null,null,1]
[240,"محمد هدايه محمد علي وهدان",0.72299999999999998,1,1,null,null,null,1,1,null,null,null,null,null,null,1,1,1,1,null,null,1,1,null,1,1,null,null,1,1,null,null,14.722999999999999]
[241,"محمد هلال بدر ابوالنصر",0.72299999999999998,1,null,null,null,null,null,null,null,null,null,null,null,null,null,null,null,null,null,null,null,null,null,null,null,null,null,null,null,null,null,1.7229999999999999]
[242,"محمد وائل شوقي",null,null,null,null,null,null,null,null,null,null,null,null,null,null,null,null,1,null,null,null,null,null,null,null,null,null,null,null,null,null,null,1]
[243,"محمود ابراهيم عبد العزيز ",null,null,null,null,null,null,null,null,0.5,null,null,null,null,null,null,null,null,null,null,null,null,null,null,null,null,null,null,null,null,null,null,0.5]
[244,"محمود السيد محمد السيد",0.72299999999999998,1,1,null,null,null,null,null,null,null,null,null,null,null,null,null,null,null,null,null,null,null,null,null,null,null,null,null,null,null,null,2.7229999999999999]
[245,"محمود بغدادي  توفيق",null,null,null,null,null,null,null,null,null,null,null,null,null,null,null,null,null,null,null,null,1,null,null,null,null,null,null,null,null,null,null,1]
[246,"محمود جمال محمد عبداللرحمن ",null,null,null,null,null,null,null,null,null,1,null,null,null,null,null,null,null,null,null,null,null,null,null,null,null,null,null,null,null,null,null,1]
[247,"محمود جمعه عبدالوهاب عيد",null,null,null,null,null,null,null,1,null,null,null,null,null,null,null,null,null,null,null,null,null,null,null,null,null,null,null,null,null,null,null,1]
[248,"محمود حسن الامام محمود",null,null,null,null,null,null,null,null,0.5,1,1,null,null,1,1,1,1,1,null,null,null,null,null,null,null,null,null,null,null,null,null,7.5]
[249,"محمود حسن عبدالمرضي عماره",null,null,null,null,null,null,1,null,null,null,null,null,null,null,null,null,null,null,null,null,null,null,null,null,null,null,null,null,null,null,null,1]
[250,"محمود سالم عبدالحليم عكاشه",null,null,null,null,null,null,1,null,null,null,null,null,null,null,null,null,null,null,null,null,null,null,null,null,null,null,null,null,null,null,null,1]
[251,"محمود صلاح عبدالقوي",null,1,null,null,null,null,null,null,null,null,null,null,null,null,null,null,null,null,null,null,null,null,null,null,null,null,null,null,null,null,null,1]
[252,"محمود طارق الباهجي",null,null,null,null,null,null,null,null,0.5,null,null,null,null,null,null,null,null,null,null,null,null,null,null,null,null,null,null,null,null,null,null,0.5]
[253,"محمود عبدالستار سعد قاسم",null,1,null,null,null,null,null,1,null,null,null,null,null,null,null,1,null,null,null,null,null,null,null,null,null,null,null,null,null,null,null,3]
[254,"محمود عبدالغني محمد",null,null,null,null,null,null,null,null,null,null,null,null,null,null,null,null,null,null,null,null,1,null,null,null,null,null,null,null,null,null,null,1]
[255,"محمود عبدالكريم حسان علي",null,null,null,null,null,null,null,null,null,null,null,null,null,1,1,1,1,null,null,null,null,null,null,null,null,null,null,null,null,null,null,4]
[256,"محمود عصام الدين محمد محمد",null,null,null,null,null,null,1,null,0.5,null,null,null,null,null,null,null,null,null,null,null,null,null,null,null,null,null,null,null,null,null,null,1.5]
[257,"محمود عصام رياض خلف الله",0.72299999999999998,1,1,null,null,null,1,1,null,null,null,null,null,null,null,1,1,null,null,null,null,null,null,null,null,null,null,1,null,null,null,{"$f":"SUM(C258:AG258)","v":7.7229999999999999}]
[258,"محمود علي محمد معبد",null,null,null,null,null,null,null,null,null,null,null,null,null,1,null,null,null,null,null,null,null,null,null,null,null,null,null,null,null,null,null,1]
[259,"محمود مجدي محمود شعلان",null,null,null,null,null,null,1,1,null,null,1,null,null,1,1,1,1,1,null,null,null,null,null,null,null,null,null,null,null,null,null,8]
[260,"محمود محمد احمد ابوالقاسم",null,null,null,null,null,null,null,null,0.5,1,2,null,null,1,1,1,null,null,null,null,1,null,null,null,null,null,null,null,null,null,null,7.5]
[261,"محمود محمد عبدالفتاح سيد احمد",null,null,null,null,null,null,null,null,null,null,null,null,null,1,1,null,null,null,null,null,null,null,null,null,null,null,null,null,null,null,null,2]
[262,"محمود محمد محمد حامد الزرقاني",null,null,null,null,null,null,1,null,null,1,1,null,null,1,1,1,1,1,null,null,null,null,null,null,null,null,null,null,null,null,null,8]
[263,"محمود نبيل احمد يوسف",null,null,null,null,null,null,null,null,0.5,null,null,null,null,null,null,null,null,null,null,null,null,null,null,null,null,null,null,null,null,null,null,0.5]
[264,"محمود ياسر محمود مريق",null,null,null,null,null,null,null,null,null,null,null,null,null,null,null,null,null,1,null,null,null,null,null,null,null,null,null,null,null,null,null,1]
[265,"مدثر مشير ابراهيم بابكر",null,null,1,null,null,null,null,null,null,null,null,null,null,null,null,null,null,null,null,null,null,null,null,null,null,null,null,null,null,null,null,1]
[266,"مروان سليمان احمد عبدالله",0.72299999999999998,1,1,null,null,null,null,null,null,null,null,null,null,null,null,null,null,null,null,null,null,null,null,null,null,null,null,null,null,null,null,2.7229999999999999]
[267,"مزمل بابكر محمد عبدالله",0.72299999999999998,1,1,null,null,null,1,1,1,null,null,null,null,null,null,null,null,null,null,null,null,null,null,null,null,null,null,1,1,null,null,7.7229999999999999]
[268,"مصطفي احمد عبدالله غالي",null,null,null,null,null,null,null,null,null,null,null,null,null,null,null,null,null,null,null,null,null,null,null,null,null,null,null,1,1,null,null,2]
[269,"مصطفي صديق عبدالله عثمان",null,null,null,null,null,null,null,null,null,null,null,null,null,null,null,null,1,1,null,null,null,null,1,1,1,null,null,1,1,null,null,7]
[270,"مصطفي عاطف فضل مصطفي",null,null,null,null,null,null,null,null,null,1,1,null,null,1,1,1,1,1,null,null,1,1,1,1,1,null,null,1,1,null,null,14]
[271,"مصطفي كرم عبدالعزيز",null,null,null,null,null,null,null,null,null,null,null,null,null,null,null,null,1,1,null,null,1,null,null,null,null,null,null,null,null,null,null,3]
[272,"مصطفي محمد محمد احمد",null,null,null,null,null,null,null,null,null,null,null,null,null,null,null,1,null,null,null,null,null,null,null,null,null,null,null,null,null,null,null,1]
[273,"مصطفي محمود فتوح محمد",null,null,null,null,null,null,null,null,null,null,null,null,null,null,null,null,null,null,null,null,1,1,1,null,null,null,null,null,null,null,null,3]
[274,"مصطفي موسي عبدالله ادريس",null,null,null,null,null,null,null,null,null,null,null,null,null,null,null,null,1,1,null,null,1,1,null,null,null,null,null,null,null,null,null,4]
[275,"مصعب عبدالرحمن عبدالله",null,null,null,null,null,null,null,null,null,null,null,null,null,null,null,null,1,1,null,null,null,null,null,null,null,null,null,null,null,null,null,2]
[276,"معاذ سامي سعد سالمان",null,null,null,null,null,null,null,null,null,null,null,null,null,null,null,null,1,1,null,null,1,null,null,null,null,null,null,null,null,null,null,3]
[277,"معتصم حمزه عبدالله ابوبكر",null,1,null,null,null,null,null,null,null,null,null,null,null,null,null,null,null,null,null,null,null,null,null,null,null,null,null,null,null,null,null,1]
[278,"معمر الواثق الريح يوسف",0.72299999999999998,1,1,null,null,null,null,null,null,null,null,null,null,null,null,null,null,null,null,null,null,null,null,null,null,null,null,null,null,null,null,2.7229999999999999]
[279,"مهند احمد عبدالمنطلب الامين",0.72299999999999998,1,1,null,null,null,1,1,1,null,null,null,null,null,null,null,null,null,null,null,null,null,null,null,null,null,null,null,null,null,null,5.7229999999999999]
[280,"مهند عبداللطيف ابراهيم علي",null,null,null,null,null,null,null,null,null,null,null,null,null,null,1,null,null,null,null,null,null,null,null,null,null,null,null,null,null,null,null,1]
[281,"مهند معتصم وقيع الله عبدالرحمن",null,null,null,null,null,null,null,null,null,null,null,null,null,null,null,null,null,null,null,null,1,1,1,1,1,null,null,1,1,null,null,7]
[282,"موسي جدهم حمدان محمد",0.72299999999999998,1,null,null,null,null,null,null,null,null,null,null,null,null,null,null,null,null,null,null,null,null,null,null,null,null,null,null,null,null,null,1.7229999999999999]
[283,"مؤمن الكومي وصال ابوحجازي",0.72299999999999998,1,1,null,null,null,null,null,null,null,null,null,null,null,null,null,null,null,null,null,null,null,null,null,null,null,null,null,null,null,null,2.7229999999999999]
[284,"مؤيد عصام الدين الخير فضل الله",null,null,null,null,null,null,null,null,null,null,null,null,null,null,null,null,null,null,null,null,1,1,1,1,1,null,null,1,1,null,null,7]
[285,"ميلر ميلاد فوزي يعقوب",null,null,null,null,null,null,1,1,null,null,1,null,null,1,null,1,1,1,null,null,null,null,null,null,null,null,null,null,null,null,null,7]
[286,"مينا نادي عزيز غالي",null,null,null,null,null,null,1,null,null,null,null,null,null,null,null,null,null,null,null,null,null,null,null,null,null,null,null,null,null,null,null,1]
[287,"نادي صلاح محمد مصباح",null,null,null,null,null,null,1,null,null,1,1,null,null,null,null,null,null,null,null,null,null,null,null,null,null,null,null,null,null,null,null,3]
[288,"نورين الماحي الضو الماحي",null,1,1,null,null,null,null,null,null,null,null,null,null,null,null,null,null,null,null,null,null,null,null,null,null,null,null,null,null,null,null,2]
[289,"هشام عبدالستار السيد مصطفي",0.72299999999999998,1,null,null,null,null,null,null,null,null,null,null,null,null,null,null,null,null,null,null,null,null,null,null,null,null,null,null,null,null,null,1.7229999999999999]
[290,"هيثم احمد جابر الدماطي",null,null,null,null,null,null,null,null,1.5,null,1,null,null,null,1,1,1,1,null,null,1,null,null,null,null,null,null,null,null,null,null,7.5]
[291,"وائل محمد ابراهيم محمد",0.72299999999999998,null,null,null,null,null,null,null,null,1,null,null,null,1,null,null,null,null,null,null,null,null,null,null,null,null,null,null,null,null,null,2.7229999999999999]
[292,"وجيه محسب احمد قرشم",null,null,null,null,null,null,1,1,null,1,1,null,null,1,null,1,1,1,null,null,1,1,null,null,null,null,null,null,null,null,null,10]
[293,"وحيد عبدالعزيز عبدالعزيز",null,null,null,null,null,null,1,null,0.5,null,null,null,null,null,null,null,null,null,null,null,null,null,null,null,null,null,null,null,null,null,null,1.5]
[294,"ياسين صفوت حامد ",null,null,null,null,null,null,1,null,0.5,null,null,null,null,null,null,null,null,null,null,null,null,null,null,null,null,null,null,null,null,null,null,1.5]
[295,"ياسين علي صابر عبدالمؤمن",0.72299999999999998,1,1,null,null,null,1,1,null,null,null,null,null,null,null,null,null,null,null,null,null,null,null,null,null,null,null,null,null,null,null,4.7229999999999999]
[296,"يحي محمد الشحات",null,null,null,null,null,null,null,null,null,null,null,null,null,null,null,null,1,null,null,null,null,null,null,null,null,null,null,null,null,null,null,1]
[297,"يوسف ابراهيم يوسف محمود",null,1,1,null,null,null,null,null,null,null,null,null,null,null,null,null,null,null,null,null,null,null,null,null,null,null,null,null,null,null,null,2]
[298,"يوسف بيتر موسي علي",null,1,null,null,null,null,null,null,null,null,null,null,null,null,null,null,null,null,null,null,null,null,null,null,null,null,null,null,null,null,null,1]
[299,"يوسف سلامه عبدالمحسن النحاس",0.72299999999999998,1,1,null,null,null,1,1,1,1,1,null,null,1,1,1,1,1,null,null,1,1,1,1,1,null,null,1,1,null,null,19.722999999999999]
[300,"يوسف عبدالرازق عبدالهادي",null,null,null,null,null,null,null,null,null,null,null,null,null,null,null,1,null,null,null,null,null,null,null,null,null,null,null,null,null,null,null,1]
[301,"يوسف محمد عبدالحفيظ",null,null,null,null,null,null,null,null,null,null,null,null,null,null,null,1,null,null,null,null,null,null,null,null,null,null,null,null,null,null,null,1]
[302,"يوسف محمود رسمي عبدالله",null,1,1,null,null,null,1,null,null,null,null,null,null,null,1,null,null,null,null,null,null,null,null,null,null,null,null,null,null,null,null,4]
[303,"يوسف هشام سيد محمد يوسف",null,1,1,null,null,null,1,null,null,null,null,null,null,1,1,null,1,1,null,null,1,null,null,null,1,null,null,1,1,null,null,11]
[0,"مـــــــــــــــــجـــــــــــــــــموع",{"$f":"SUM(C2:C304)","v":54.947999999999958},93,92,0,0,0,87,69,47,45,45,0,0,62,70,70,70,69,0,null,{"$f":"SUM(W2:W304)","v":78},54,42,41,39,0,0,43,42,0,null,{"$f":"SUM(C305:AG305)","v":1212.9479999999999}]

{"sheet":"المخزن يوميات","index":3,"n_rows":18,"n_cols":7,"rows_kept":18,"cut":false,"hidden":false,"merged":[]}
[null,null,{"$f":"TEXT(C2,\"DDD\")","v":"الإثنين"},"الثلاثاء","الأربعاء","الخميس","Total"]
["الوظيفة","الاسم ","2019-07-01","2019-07-02","2019-07-03","2019-07-04"]
["مشرف ","ابراهيم عبدالعظيم محمد ","A","A","A","A",{"$f":"COUNTIF(C3:F3,\"A\")","v":4}]
["عامل يومية ","السيد محى الدين على","A","A","A","A",4]
["عامل يومية ","احمد شوقى صقر",null,"A","A","A",3]
["عامل يومية ","احمد على منصور",null,"A",null,"A",2]
["عامل يومية ","اسماعيل محمد العراقى","A","A","A","A",4]
["عامل يومية ","عبدالرحمن شوقى صقر","A","A","A","A",4]
["عامل يومية ","عطية السيد عطية","A","A","A","A",4]
["سائق كلارك ","محمد سعيد ابراهيم ","A","A","A",null,3]
["عامل يومية ","مصطفى خيرى على","A",null,"A",null,2]
["عامل يومية ","محمد مهدى سالم","A","A","A","A",4]
["عامل يومية ","محمد عرفة على",null,"A","A","A",3]
["عامل يومية ","يوسف محمود رسمى","A",null,null,"A",2]
["عامل يومية ","محمود يوسف محمود","A","A","A","A",4]
["عامل يومية ","محمود طارق محمدى",null,null,"A","A",2]
["عامل يومية ","محمود عبدالفتاح عبدالفضيل","A","A","A",null,3]
[null,"مــــــجـــــــــموع",{"$f":"COUNTIF(C3:C17,\"A\")","v":11},{"$f":"COUNTIF(D3:D17,\"A\")","v":12},{"$f":"COUNTIF(E3:E17,\"A\")","v":13},{"$f":"COUNTIF(F3:F17,\"A\")","v":12},{"$f":"SUM(G3:G17)","v":48}]

{"sheet":"المخزن قبض","index":4,"n_rows":17,"n_cols":8,"rows_kept":17,"cut":false,"hidden":false,"merged":[]}
["م","الاسم ","الأيام","الراتب","السلف","الإجمالي","انتظام","التوقيع"]
[1,{"$f":"'المخزن يوميات'!B3","v":"ابراهيم عبدالعظيم محمد "},{"$f":"'المخزن يوميات'!G3","v":4},480,480,{"$f":"Table3[[#This Row],[الراتب]]-Table3[[#This Row],[السلف]]","v":0}]
[2,{"$f":"'المخزن يوميات'!B4","v":"السيد محى الدين على"},{"$f":"'المخزن يوميات'!G4","v":4},{"$f":"Table3[[#This Row],[الأيام]]*75","v":300},225,{"$f":"Table3[[#This Row],[الراتب]]-Table3[[#This Row],[السلف]]","v":75}]
[3,{"$f":"'المخزن يوميات'!B5","v":"احمد شوقى صقر"},{"$f":"'المخزن يوميات'!G5","v":3},{"$f":"Table3[[#This Row],[الأيام]]*75","v":225},150,{"$f":"Table3[[#This Row],[الراتب]]-Table3[[#This Row],[السلف]]","v":75}]
[4,{"$f":"'المخزن يوميات'!B6","v":"احمد على منصور"},{"$f":"'المخزن يوميات'!G6","v":2},{"$f":"Table3[[#This Row],[الأيام]]*75","v":150},null,{"$f":"Table3[[#This Row],[الراتب]]-Table3[[#This Row],[السلف]]","v":150}]
[5,{"$f":"'المخزن يوميات'!B7","v":"اسماعيل محمد العراقى"},{"$f":"'المخزن يوميات'!G7","v":4},{"$f":"Table3[[#This Row],[الأيام]]*75","v":300},300,{"$f":"Table3[[#This Row],[الراتب]]-Table3[[#This Row],[السلف]]","v":0}]
[6,{"$f":"'المخزن يوميات'!B8","v":"عبدالرحمن شوقى صقر"},{"$f":"'المخزن يوميات'!G8","v":4},{"$f":"Table3[[#This Row],[الأيام]]*75","v":300},300,{"$f":"Table3[[#This Row],[الراتب]]-Table3[[#This Row],[السلف]]","v":0}]
[7,{"$f":"'المخزن يوميات'!B9","v":"عطية السيد عطية"},{"$f":"'المخزن يوميات'!G9","v":4},{"$f":"Table3[[#This Row],[الأيام]]*75","v":300},300,{"$f":"Table3[[#This Row],[الراتب]]-Table3[[#This Row],[السلف]]","v":0}]
[8,{"$f":"'المخزن يوميات'!B10","v":"محمد سعيد ابراهيم "},{"$f":"'المخزن يوميات'!G10","v":3},{"$f":"Table3[[#This Row],[الأيام]]*75","v":225},100,{"$f":"Table3[[#This Row],[الراتب]]-Table3[[#This Row],[السلف]]","v":125}]
[9,{"$f":"'المخزن يوميات'!B11","v":"مصطفى خيرى على"},{"$f":"'المخزن يوميات'!G11","v":2},{"$f":"Table3[[#This Row],[الأيام]]*75","v":150},75,{"$f":"Table3[[#This Row],[الراتب]]-Table3[[#This Row],[السلف]]","v":75}]
[10,{"$f":"'المخزن يوميات'!B12","v":"محمد مهدى سالم"},{"$f":"'المخزن يوميات'!G12","v":4},{"$f":"Table3[[#This Row],[الأيام]]*75","v":300},null,{"$f":"Table3[[#This Row],[الراتب]]-Table3[[#This Row],[السلف]]","v":300}]
[11,{"$f":"'المخزن يوميات'!B13","v":"محمد عرفة على"},{"$f":"'المخزن يوميات'!G13","v":3},{"$f":"Table3[[#This Row],[الأيام]]*75","v":225},225,{"$f":"Table3[[#This Row],[الراتب]]-Table3[[#This Row],[السلف]]","v":0}]
[12,{"$f":"'المخزن يوميات'!B14","v":"يوسف محمود رسمى"},{"$f":"'المخزن يوميات'!G14","v":2},{"$f":"Table3[[#This Row],[الأيام]]*75","v":150},110,{"$f":"Table3[[#This Row],[الراتب]]-Table3[[#This Row],[السلف]]","v":40}]
[13,{"$f":"'المخزن يوميات'!B15","v":"محمود يوسف محمود"},{"$f":"'المخزن يوميات'!G15","v":4},{"$f":"Table3[[#This Row],[الأيام]]*75","v":300},300,{"$f":"Table3[[#This Row],[الراتب]]-Table3[[#This Row],[السلف]]","v":0}]
[14,{"$f":"'المخزن يوميات'!B16","v":"محمود طارق محمدى"},{"$f":"'المخزن يوميات'!G16","v":2},{"$f":"Table3[[#This Row],[الأيام]]*75","v":150},150,{"$f":"Table3[[#This Row],[الراتب]]-Table3[[#This Row],[السلف]]","v":0}]
[15,{"$f":"'المخزن يوميات'!B17","v":"محمود عبدالفتاح عبدالفضيل"},{"$f":"'المخزن يوميات'!G17","v":3},{"$f":"Table3[[#This Row],[الأيام]]*75","v":225},225,{"$f":"Table3[[#This Row],[الراتب]]-Table3[[#This Row],[السلف]]","v":0}]
[16,{"$f":"'المخزن يوميات'!B18","v":"مــــــجـــــــــموع"},{"$f":"'المخزن يوميات'!G18","v":48},{"$f":"Table3[[#This Row],[الأيام]]*75","v":3600},{"$f":"SUM(E2:E16)","v":2940},{"$f":"Table3[[#This Row],[الراتب]]-Table3[[#This Row],[السلف]]","v":660}]

{"sheet":"الزيت يوميات","index":5,"n_rows":45,"n_cols":8,"rows_kept":45,"cut":false,"hidden":true,"merged":[]}
["4"," ","2019-07-27","2019-07-28","2019-07-29","2019-07-30","2019-07-31","اجمالي الايام"]
[1,"احمد اسامه صديق ",null,1,null,1,null,{"$f":"SUM(C2:G2)","v":2}]
[2,"احمد جمال ",null,1,null,null,null,1]
[3,"احمد رجب خميس",null,1,null,null,null,1]
[39,"احمد رضا سعد",null,null,1,1,1,3]
[40,"احمد زغلول احمد",null,null,null,1,1,2]
[41,"احمد سعيد صادق",null,null,null,1,null,1]
[4,"احمد صابر محمد",null,1,1,1,1,4]
[5,"احمد فؤاد علي ",2,1,null,null,null,3]
[6,"احمد محمد السيد",null,1,1,1,1,4]
[7,"احمد محمد محمد خليفه",2,1,1,1,1,6]
[8,"احمد محمود احمد ",null,1,null,1,null,2]
[9,"احمد مصطفي السعيد",null,1,null,null,null,1]
[10,"اسلام احمد محمد ",2,null,null,null,null,2]
[11,"اسلام فرغلي محمود",2,null,1,1,1,5]
[12,"امير سمير راشد",null,1,null,1,1,3]
[13,"باسل محمد احمد",null,1,null,null,null,1]
[14,"بلال رزق عبدالعزيز",2,null,null,null,null,2]
[15,"حسام محمد احمد",null,1,1,null,null,2]
[43,"خالد ايمن جوهر",null,null,null,null,1,1]
[16,"سعيد محمد سعيد",null,1,null,null,null,1]
[17,"سعيد محمد قرني ",2,1,1,null,null,4]
[42,"شريف محمد نجيب",null,null,null,1,null,1]
[18,"صابر صبحي لبيب",2,null,1,null,null,3]
[37,"طارق احمد صلاح",null,null,1,1,1,3]
[19,"عبدالراضي نبيل",2,null,null,null,null,2]
[20,"عمرو ايمن طه",null,1,1,null,null,2]
[21,"عمرو عماد الديب",null,1,1,null,null,2]
[22,"فايز عبدالله احمد",null,2,1,1,1,5]
[23,"كريم سعيد إبراهيم",2,1,1,1,null,5]
[24,"محمد احمد راشد",null,1,null,null,null,1]
[25,"محمد السيد مصطفي ",2,null,1,null,null,3]
[26,"محمد جمال محمد",null,1,null,null,null,1]
[27,"محمد سعيد محمد ",2,1,null,null,null,3]
[28,"محمد عادل توفيق",null,1,null,null,null,1]
[29,"محمد عبدالحميد احمد",null,1,null,null,null,1]
[30,"محمد عبداللطيف محمد ",2,1,null,1,null,4]
[38,"محمد عطيه عبدالقوى",null,null,1,null,null,1]
[31,"محمود مجدي شعلان",2,1,null,null,null,3]
[32,"محمود مجدي محمود",null,1,null,null,null,1]
[33,"محمود محمد احمد ابوالقاسم",2,2,1,1,1,7]
[34,"محمود محمد مصطفي",null,1,null,null,null,1]
[35,"هشام حمدي محمد",null,1,null,null,null,1]
[36,"هنداوي محمد الشناوي",null,1,null,null,null,1]
[null,"مجــــــــــــمـــــــــــــــــــــوع",{"$f":"SUM(C2:C44)","v":28},{"$f":"SUM(D2:D44)","v":32},{"$f":"SUM(E2:E44)","v":16},{"$f":"SUM(F2:F44)","v":16},{"$f":"SUM(G2:G44)","v":11},103]

{"sheet":"سعيد عبدالهادي","index":6,"n_rows":95,"n_cols":8,"rows_kept":95,"cut":false,"hidden":true,"merged":[]}
["م","الاسم","الأيام","الراتب","السلف","الإجمالي","انتظام","التوقيع"]
[9,"ابراهيم كامل علي عويان",19,1235,null,1235,{"$f":"C2*2","v":38},"سعيد عبدالهادي"]
[10,"ابراهيم محمد ابراهيم محمد عبداللطيف",1,65,null,65,{"$f":"C3*2","v":2},"سعيد عبدالهادي"]
[12,"ابوالعلا محمد ابوالعلا",20,1300,null,1300,40,"سعيد عبدالهادي"]
[16,"احمد ابراهيم محمد زكي",1,65,null,65,2,"سعيد عبدالهادي"]
[19,"احمد العربي جمعه السيد السيد",24,1560,null,1560,48,"سعيد عبدالهادي"]
[20,"احمد بكار شاهين صقر",6,390,null,390,12,"سعيد عبدالهادي"]
[22,"احمد جمال عيسي حمزه",2,130,null,130,4,"سعيد عبدالهادي"]
[25,"احمد حسن حميده عبدالعليم",15,975,null,975,30,"سعيد عبدالهادي"]
[32,"احمد رشاد عيسي محمد الدومي",20,1300,null,1300,40,"سعيد عبدالهادي"]
[34,"احمد سامي ابراهيم حميده",21,1365,null,1365,42,"سعيد عبدالهادي"]
[36,"احمد سعيد رجب السقا",14,910,null,910,28,"سعيد عبدالهادي"]
[39,"احمد سمير احمد محمود محمد",18,1170,null,1170,36,"سعيد عبدالهادي"]
[42,"احمد شحاته احمد شحاته محمد",10,650,null,650,20,"سعيد عبدالهادي"]
[58,"احمد عزمي احمد السيد مساعد",22,1430,null,1430,44,"سعيد عبدالهادي"]
[62,"احمد عماد محمد عبدالحميد نجم",1,65,null,65,2,"سعيد عبدالهادي"]
[65,"احمد فتحي ابراهيم سلامه الشرقاوي",20,1300,null,1300,40,"سعيد عبدالهادي"]
[77,"احمد محمد حمد عبدالسيد",10,650,null,650,20,"سعيد عبدالهادي"]
[83,"احمد محمد عبدالعزيز عيد",13,845,null,845,26,"سعيد عبدالهادي"]
[90,"احمد محمود السيد السعداوي",3,195,null,195,6,"سعيد عبدالهادي"]
[92,"احمد محمود عبدالله جمعه زيدان ",21,1365,null,1365,42,"سعيد عبدالهادي"]
[96,"احمد ممدوح امين سيد احمد",21,1365,null,1365,42,"سعيد عبدالهادي"]
[98,"احمد منير محتمد سعد",16,1040,null,1040,32,"سعيد عبدالهادي"]
[99,"احمد يوسف حافظ علي",22,1430,null,1430,44,"سعيد عبدالهادي"]
[105,"اسلام خضر عبدالفضيل سلامه",15,975,null,975,30,"سعيد عبدالهادي"]
[106,"اسلام سامي فتحي ابوالعنين",3,195,null,195,6,"سعيد عبدالهادي"]
[115,"السيد اشرف السيد بريك",2,130,null,130,4,"سعيد عبدالهادي"]
[124,"باسم  محمد محمود محمد سالم",10,650,null,650,20,"سعيد عبدالهادي"]
[126,"باسم نصر ابراهيم اسماعيل",7,455,null,455,14,"سعيد عبدالهادي"]
[128,"بلال جمعه عمر امين",17,1105,null,1105,34,"سعيد عبدالهادي"]
[134,"جمعه فتح شبل محمد شبل",4,260,null,260,8,"سعيد عبدالهادي"]
[140,"حسب النبي سعيد فتحي",22,1430,null,1430,44,"سعيد عبدالهادي"]
[144,"حسين ياسر حسن علي حسن",1,65,null,65,2,"سعيد عبدالهادي"]
[147,"حمدي فرج عبدالله فرج",2,130,null,130,4,"سعيد عبدالهادي"]
[156,"رضا عبدالغني عبدالغني",1,65,null,65,2,"سعيد عبدالهادي"]
[157,"رمضان سالم عبدالرحمن جاب الله",21,1365,null,1365,42,"سعيد عبدالهادي"]
[162,"سعيد علي سعيد صابر الفرجاني",9,585,null,585,18,"سعيد عبدالهادي"]
[167,"شحات حلمي زكي مزروع",19,1235,210,1025,38,"سعيد عبدالهادي"]
[170,"شريف عمر امين محمد",6,390,null,390,12,"سعيد عبدالهادي"]
[174,"طارق عاطف انور سعيد سالم",16,1040,null,1040,32,"سعيد عبدالهادي"]
[182,"عبدالحميد غريب عاشور",1,65,null,65,2,"سعيد عبدالهادي"]
[183,"عبدالحميد غريب عبدالحميد عاشور",22,1430,null,1430,44,"سعيد عبدالهادي"]
[186,"عبدالرحمن سالم عبدالرحمن جاب الله",25,1625,null,1625,50,"سعيد عبدالهادي"]
[194,"عبدالرحمن محمود عبدالغفار",13,845,null,845,26,"سعيد عبدالهادي"]
[196,"عبدالعزيز جمال عبدالعزيز ابراهيم",9,585,null,585,18,"سعيد عبدالهادي"]
[199,"عبدالغفار محمد منيرعبدالغفار",14,910,null,910,28,"سعيد عبدالهادي"]
[200,"عبداللطيف طه عبداللطيف",4,260,null,260,8,"سعيد عبدالهادي"]
[202,"عبدالله حسين احمد جاد الرحمن",3,195,null,195,6,"سعيد عبدالهادي"]
[204,"عبدالله علي عبدالله علي",9,585,null,585,18,"سعيد عبدالهادي"]
[208,"عبده رضا عبده مساعد",24,1560,null,1560,48,"سعيد عبدالهادي"]
[210,"عزالدين مراد محمد توفيق",21,1365,null,1365,42,"سعيد عبدالهادي"]
[212,"عصام عبدالواحد عبدالمقصود",7,455,null,455,14,"سعيد عبدالهادي"]
[215,"علي احمد علي قنديل",21,1365,null,1365,42,"سعيد عبدالهادي"]
[219,"علي صلاح علي سليمان حواس",28,1820,null,1820,56,"سعيد عبدالهادي"]
[225,"عمرو ثابت عبدالفتاح علي حماد",22,1430,null,1430,44,"سعيد عبدالهادي"]
[239,"كريم عبدالقوي عبدالفتاح",18,1170,null,1170,36,"سعيد عبدالهادي"]
[242,"ماهر احمد علي حماد",11,715,null,715,22,"سعيد عبدالهادي"]
[245,"محمد ابراهيم السيد ابراهيم",19,1235,null,1235,38,"سعيد عبدالهادي"]
[246,"محمد ابراهيم عاشور عبدالوهاب",14,910,null,910,28,"سعيد عبدالهادي"]
[250,"محمد احمد عبدالمقصود شتله ",28,1820,null,1820,56,"سعيد عبدالهادي"]
[251,"محمد احمد علي قنديل",2,130,null,130,4,"سعيد عبدالهادي"]
[252,"محمد احمد محرم مصطفي",23,1495,null,1495,46,"سعيد عبدالهادي"]
[253,"محمد احمد محمد احمد شلبي",26,1690,null,1690,52,"سعيد عبدالهادي"]
[258,"محمد العربي جمعه السيد",9,585,null,585,18,"سعيد عبدالهادي"]
[270,"محمد رضا ناصف عبدالله مغربي",21,1365,null,1365,42,"سعيد عبدالهادي"]
[272,"محمد رمضان محمد عبدالغني",13,845,null,845,26,"سعيد عبدالهادي"]
[277,"محمد شحات حلمي مزروع",18,1170,null,1170,{"$f":"C67*2","v":36},"سعيد عبدالهادي"]
[285,"محمد عبدالمجيد علي عبدالعال",18,1170,null,1170,36,"سعيد عبدالهادي"]
[287,"محمد عبدالناصر علي علي",2,130,null,130,4,"سعيد عبدالهادي"]
[293,"محمد علي محمد جمعه عمران",19,1235,null,1235,38,"سعيد عبدالهادي"]
[295,"محمد عمران حسن محمد",2,130,null,130,4,"سعيد عبدالهادي"]
[298,"محمد مجدي احمد الشرقاوي",1,65,null,65,2,"سعيد عبدالهادي"]
[304,"محمد ممدوح امين سيد احمد",7,455,null,455,14,"سعيد عبدالهادي"]
[310,"محمد ناصف عبدالله",1,65,null,65,2,"سعيد عبدالهادي"]
[312,"محمود ابراهيم عاشور",2,130,null,130,4,"سعيد عبدالهادي"]
[314,"محمود احمد محمد مبروك",24,1560,null,1560,48,"سعيد عبدالهادي"]
[316,"محمود اشرف محمد محمود",23,1495,null,1495,46,"سعيد عبدالهادي"]
[336,"مصطفي احمد عبدالحميد عبدالمنصف",12,780,null,780,24,"سعيد عبدالهادي"]
[341,"مصطفي عبدالمنعم محمد ابراهيم",13,845,null,845,26,"سعيد عبدالهادي"]
[342,"مصطفي فتحي امين سيد احمد",13,845,null,845,26,"سعيد عبدالهادي"]
[346,"مصطفي محمود جمعه السيد عطيه",23,1495,null,1495,46,"سعيد عبدالهادي"]
[348,"مصطفي موسي محمد موسي",1,65,null,65,2,"سعيد عبدالهادي"]
[349,"معتز سمير عبدربه محمد",18,1170,null,1170,36,"سعيد عبدالهادي"]
[null,null,{"$f":"SUM(C2:C83)","v":1079},{"$f":"SUM(D2:D83)","v":70135},{"$f":"SUM(E2:E83)","v":210},{"$f":"SUM(F2:F83)","v":69925},{"$f":"SUM(G2:G83)","v":2158}]
[null,null,33]
[null,"الإجمالي",{"$f":"C84+C85","v":1112},null,null,{"$f":"SUM(F84+G84)","v":72083}]
[null,"تنزيل",null,null,null,-12000]
[]
[null,null,null,null,null,"ـــــــــــــــــــ"]
[]
[null,"المتبقي",null,null,null,{"$f":"SUM(F86:F87)","v":60083}]
[369,"يوسف صبحي سعيد صابر",null,null,null,130]
[345,"مصطفي محمد موسي",null,null,null,975]
[163,"سعيد علي عبدالهادي",null,null,null,1040]
[null,null,null,null,null,{"$f":"SUM(F91:F94)","v":62228}]